{"text_format":"1","workbook":"xlsx","n_sheets":6,"sheets":["Description","Projet","Scénario de référence","Listes","Matériaux","Liste municipalités"],"not_rendered":{"charts":0,"images":0,"macros":1,"external_links":0,"defined_names":9,"comments":2,"pivot_tables":0},"unopened":[],"bounds":{"document_bytes":16777216,"sheet_cells":100000,"rows_first":2000,"rows_last":500,"rows_between":2000,"halvings":0,"cell_chars":16384,"cell_head_chars":4096},"cells_cut":0,"cells_raw":0,"read":"whole","date_system":"1900"}

{"sheet":"Description","index":0,"n_rows":23,"n_cols":3,"rows_kept":23,"cut":false,"hidden":false,"merged":[]}
["INFORMATIONS SUR LE CLIENT"]
[]
["Nom du client :"]
["Adresse du client :"]
["Adresse de facturation :"]
[]
[]
["INFORMATIONS SUR LE PROJET"]
[]
["Nom du projet :"]
["No du projet (si il a lieu) :"]
["Municipalité :",null,"(selon la liste déroulante)"]
["Année de construction :"]
["Budget :"]
["Type de projet :",null,"(selon la liste déroulante)"]
["Type de bâtiment :",null,"(selon la liste déroulante)"]
["Nombre d'étages :"]
["Superficie au sol (m²) :"]
["Superficie totale de plancher (m²) :"]
["Description sommaire du bâtiment réalisé :"]
["Description de la structure du bâtiment :"]
["Description du scénario de référence :"]
["Description de la structure du scénario de référence :\n(incluant une justification des hypothèses, s'il y a lieu)"]

{"sheet":"Projet","index":1,"n_rows":14,"n_cols":5,"rows_kept":14,"cut":false,"hidden":false,"merged":[[13,0,13,4],[0,0,0,2],[0,3,0,4],[8,0,8,4],[10,0,10,4],[12,0,12,4],[2,0,2,4],[4,0,4,4],[6,0,6,4],[9,0,9,4],[7,0,7,4],[3,0,3,4],[5,0,5,4],[11,0,11,4]]}
["QUANTITÉ DE MATÉRIAUX",null,null,"INFORMATIONS COMPLÉMENTAIRES"]
["Matériau","Quantité","Unité","Méthode d'estimation","Commentaires\n(ex. informations sur le matériau, justification de la précision)"]
["Fondations"]
["AJOUTER"]
["Poutres et colonnes"]
["AJOUTER"]
["Planchers"]
["AJOUTER"]
["Toiture"]
["AJOUTER"]
["Murs extérieurs"]
["AJOUTER"]
["Murs intérieurs"]
["AJOUTER"]

{"sheet":"Scénario de référence","index":2,"n_rows":14,"n_cols":5,"rows_kept":14,"cut":false,"hidden":false,"merged":[[13,0,13,4],[10,0,10,4],[12,0,12,4],[0,0,0,2],[0,3,0,4],[2,0,2,4],[4,0,4,4],[6,0,6,4],[8,0,8,4],[3,0,3,4],[5,0,5,4],[7,0,7,4],[9,0,9,4],[11,0,11,4]]}
["QUANTITÉ DE MATÉRIAUX",null,null,"INFORMATIONS COMPLÉMENTAIRES"]
["Matériau","Quantité","Unité","Méthode d'estimation","Commentaires\n(ex. informations sur le matériau, justification de la précision)"]
["Fondations"]
["AJOUTER"]
["Poutres et colonnes"]
["AJOUTER"]
["Planchers"]
["AJOUTER"]
["Toiture"]
["AJOUTER"]
["Murs extérieurs"]
["AJOUTER"]
["Murs intérieurs"]
["AJOUTER"]

{"sheet":"Listes","index":3,"n_rows":35,"n_cols":1,"rows_kept":35,"cut":false,"hidden":true,"merged":[]}
["Stockage de données"]
["Plans et devis"]
["Modèle 3D"]
["Note de calculs"]
["Fournisseurs"]
[]
[]
[]
["Type de projet (source : MFFP-FormulaireRC_Charte du bois_20170510.xlsx)"]
["Construction neuve"]
["Rénovation majeure sans agrandissement"]
["Rénovation majeure avec agrandissement"]
["Agrandissement"]
["Autre"]
[]
[]
[]
["Type de bâtiment (source : MFFP-FormulaireRC_Charte du bois_20170510.xlsx)"]
["Bibliothèques, salles de spectacle, etc."]
["Bureaux, hôtels de ville, etc. "]
["Centre de détention"]
["Centre de la petite enfance"]
["Centre de service d'urgence (postes de police, casernes,etc)"]
["Centres et salles communautaires"]
["Éducation primaire et secondaire"]
["Enseignement supérieur et recherche"]
["Établissement de santé (centres hospitaliers, CHSLD, CLSC, etc.)"]
["Habitation (multiétagées, logements sociauxs, auberges, etc.)"]
["Hébergement plein-air (chalets, etc.)"]
["Palais de justice et cours municipales"]
["Plein-air (bâtiments d'accueil, centres d'interprétation, etc.)"]
["Ponts et passerelles"]
["Sports et loisirs (stades, arénas, complexes multifonctionnels, etc.)"]
["Utilitaire (entrepôts, ateliers, garages, haltes routières, etc.)"]
["Autre "]

{"sheet":"Matériaux","index":4,"n_rows":32,"n_cols":6,"rows_kept":32,"cut":false,"hidden":true,"merged":[]}
["Nom (abbrégé)","Nom (complet)","Groupe de matériaux associé","Description","Unité (abbrégé)","Unité (complet)"]
["Béton 15 MPa","Béton 15 MPa","m³",null,"m³","mètre cube"]
["Béton 20 MPa","Béton 20 MPa","Béton",null,"m³","mètre cube"]
["Béton 25 MPa","Béton 25 MPa","Béton",null,"m³","mètre cube"]
["Béton 30 MPa","Béton 30 MPa","Béton",null,"m³","mètre cube"]
["Béton 35 MPa","Béton 35 MPa","Béton",null,"m³","mètre cube"]
["Béton 50 MPa","Béton 50 MPa","Béton",null,"m³","mètre cube"]
["Blocs de béton","Blocs de béton","Béton",null,"m³","mètre cube"]
["BLC","Bois lamellé-collé (BLC)","Bois",null,"m³","mètre cube"]
["CLT","Bois lamellé-croisé (CLT)","Bois",null,"m³","mètre cube"]
["LVL","Bois de placages stratifiés (LVL)","Bois",null,"m³","mètre cube"]
["PSL","Bois à long copeaux parallèles (PSL)","Bois",null,"m³","mètre cube"]
["Bois d'œuvre","Bois d'œuvre séché au séchoir","Bois",null,"m³","mètre cube"]
["OSB","Panneau de lamelles orientées (OSB)","Bois",null,"m³","mètre cube"]
["Contreplaqué","Contreplaqué","Bois",null,"m³","mètre cube"]
["Poutrelle en I","Poutrelle en I (procédé de fabrication)","Bois",null,"m. lin.","mètre linaire"]
["Poutrelle ajourée","Poutrelle ajourée (procédé de fabrication)","Bois",null,"m. lin.","mètre linaire"]
["Plaques d'acier minces","Plaques d'acier pour fermes de toit et poutrelles ajourées (bois)","Acier (assemblage)",null,"kg","kilogramme"]
["Plaques d'acier épaisses","Plaques d'acier épaisses","Acier (assemblage)",null,"kg","kilogramme"]
["Clous","Clous","Acier (assemblage)",null,"kg","kilogramme"]
["Vis, écrous et boulons","Vis, écrous et boulons","Acier (assemblage)",null,"kg","kilogramme"]
["Treillis d'armature","Treillis d'armature métallique soudé","Acier",null,"t","tonne métrique"]
["Barres d'armature","Barres d'armature de petite section","Acier",null,"t","tonne métrique"]
["Fibre métallique","Fibre métallique","Acier",null,"kg","kilogramme"]
["Fibre synthétique","Fibre synthétique","Autres",null,"kg","kilogramme"]
["Pontage en acier","Pontage en acier","Acier",null,"t","tonne métrique"]
["Montant métallique","Montant métallique","Acier",null,"t","tonne métrique"]
["Profilé extrudé moyen (W,S,C,L)","Profilé extrudé moyen (W,S,C,L)","Acier",null,"t","tonne métrique"]
["HSS","HSS","Acier",null,"t","tonne métrique"]
["WWF","WWF","Acier",null,"t","tonne métrique"]
["Poutrelles d'acier ajourées","Poutrelles et fermes d'acier ajourées assemblées en usine","Acier",null,"t","tonne métrique"]
["Autres","Autres","(Préciser)",null,"(Préciser)"]

{"sheet":"Liste municipalités","index":5,"n_rows":1137,"n_cols":3,"rows_kept":1137,"cut":false,"hidden":true,"merged":[]}
["Source : https://www.donneesquebec.ca/recherche/fr/dataset/repertoire-des-municipalites-du-quebec/resource/19385b4e-5503-4330-9e59-f998f5918363"]
[]
[]
["Nom de municipalité","Région administrative","Nom à sélectionner"]
["Abercorn","Montérégie (16)",{"$f":"Tableau6[[#This Row],[Nom de municipalité]]&\" [\"&Tableau6[[#This Row],[Région administrative]]&\"]\"","v":"Abercorn [Montérégie (16)]"}]
["Acton Vale","Montérégie (16)",{"$f":"Tableau6[[#This Row],[Nom de municipalité]]&\" [\"&Tableau6[[#This Row],[Région administrative]]&\"]\"","v":"Acton Vale [Montérégie (16)]"}]
["Adstock","Chaudière-Appalaches (12)",{"$f":"Tableau6[[#This Row],[Nom de municipalité]]&\" [\"&Tableau6[[#This Row],[Région administrative]]&\"]\"","v":"Adstock [Chaudière-Appalaches (12)]"}]
["Aguanish","Côte-Nord (09)",{"$f":"Tableau6[[#This Row],[Nom de municipalité]]&\" [\"&Tableau6[[#This Row],[Région administrative]]&\"]\"","v":"Aguanish [Côte-Nord (09)]"}]
["Akulivik","Nord-du-Québec (10)",{"$f":"Tableau6[[#This Row],[Nom de municipalité]]&\" [\"&Tableau6[[#This Row],[Région administrative]]&\"]\"","v":"Akulivik [Nord-du-Québec (10)]"}]
["Albanel","Saguenay--Lac-Saint-Jean (02)",{"$f":"Tableau6[[#This Row],[Nom de municipalité]]&\" [\"&Tableau6[[#This Row],[Région administrative]]&\"]\"","v":"Albanel [Saguenay--Lac-Saint-Jean (02)]"}]
["Albertville","Bas-Saint-Laurent (01)",{"$f":"Tableau6[[#This Row],[Nom de municipalité]]&\" [\"&Tableau6[[#This Row],[Région administrative]]&\"]\"","v":"Albertville [Bas-Saint-Laurent (01)]"}]
["Alleyn-et-Cawood","Outaouais (07)",{"$f":"Tableau6[[#This Row],[Nom de municipalité]]&\" [\"&Tableau6[[#This Row],[Région administrative]]&\"]\"","v":"Alleyn-et-Cawood [Outaouais (07)]"}]
["Alma","Saguenay--Lac-Saint-Jean (02)",{"$f":"Tableau6[[#This Row],[Nom de municipalité]]&\" [\"&Tableau6[[#This Row],[Région administrative]]&\"]\"","v":"Alma [Saguenay--Lac-Saint-Jean (02)]"}]
["Amherst","Laurentides (15)",{"$f":"Tableau6[[#This Row],[Nom de municipalité]]&\" [\"&Tableau6[[#This Row],[Région administrative]]&\"]\"","v":"Amherst [Laurentides (15)]"}]
["Amos","Abitibi-Témiscamingue (08)",{"$f":"Tableau6[[#This Row],[Nom de municipalité]]&\" [\"&Tableau6[[#This Row],[Région administrative]]&\"]\"","v":"Amos [Abitibi-Témiscamingue (08)]"}]
["Amqui","Bas-Saint-Laurent (01)",{"$f":"Tableau6[[#This Row],[Nom de municipalité]]&\" [\"&Tableau6[[#This Row],[Région administrative]]&\"]\"","v":"Amqui [Bas-Saint-Laurent (01)]"}]
["Ange-Gardien","Montérégie (16)",{"$f":"Tableau6[[#This Row],[Nom de municipalité]]&\" [\"&Tableau6[[#This Row],[Région administrative]]&\"]\"","v":"Ange-Gardien [Montérégie (16)]"}]
["Angliers","Abitibi-Témiscamingue (08)",{"$f":"Tableau6[[#This Row],[Nom de municipalité]]&\" [\"&Tableau6[[#This Row],[Région administrative]]&\"]\"","v":"Angliers [Abitibi-Témiscamingue (08)]"}]
["Armagh","Chaudière-Appalaches (12)",{"$f":"Tableau6[[#This Row],[Nom de municipalité]]&\" [\"&Tableau6[[#This Row],[Région administrative]]&\"]\"","v":"Armagh [Chaudière-Appalaches (12)]"}]
["Arundel","Laurentides (15)",{"$f":"Tableau6[[#This Row],[Nom de municipalité]]&\" [\"&Tableau6[[#This Row],[Région administrative]]&\"]\"","v":"Arundel [Laurentides (15)]"}]
["Asbestos","Estrie (05)",{"$f":"Tableau6[[#This Row],[Nom de municipalité]]&\" [\"&Tableau6[[#This Row],[Région administrative]]&\"]\"","v":"Asbestos [Estrie (05)]"}]
["Ascot Corner","Estrie (05)",{"$f":"Tableau6[[#This Row],[Nom de municipalité]]&\" [\"&Tableau6[[#This Row],[Région administrative]]&\"]\"","v":"Ascot Corner [Estrie (05)]"}]
["Aston-Jonction","Centre-du-Québec (17)",{"$f":"Tableau6[[#This Row],[Nom de municipalité]]&\" [\"&Tableau6[[#This Row],[Région administrative]]&\"]\"","v":"Aston-Jonction [Centre-du-Québec (17)]"}]
["Auclair","Bas-Saint-Laurent (01)",{"$f":"Tableau6[[#This Row],[Nom de municipalité]]&\" [\"&Tableau6[[#This Row],[Région administrative]]&\"]\"","v":"Auclair [Bas-Saint-Laurent (01)]"}]
["Audet","Estrie (05)",{"$f":"Tableau6[[#This Row],[Nom de municipalité]]&\" [\"&Tableau6[[#This Row],[Région administrative]]&\"]\"","v":"Audet [Estrie (05)]"}]
["Aumond","Outaouais (07)",{"$f":"Tableau6[[#This Row],[Nom de municipalité]]&\" [\"&Tableau6[[#This Row],[Région administrative]]&\"]\"","v":"Aumond [Outaouais (07)]"}]
["Aupaluk","Nord-du-Québec (10)",{"$f":"Tableau6[[#This Row],[Nom de municipalité]]&\" [\"&Tableau6[[#This Row],[Région administrative]]&\"]\"","v":"Aupaluk [Nord-du-Québec (10)]"}]
["Austin","Estrie (05)",{"$f":"Tableau6[[#This Row],[Nom de municipalité]]&\" [\"&Tableau6[[#This Row],[Région administrative]]&\"]\"","v":"Austin [Estrie (05)]"}]
["Authier","Abitibi-Témiscamingue (08)",{"$f":"Tableau6[[#This Row],[Nom de municipalité]]&\" [\"&Tableau6[[#This Row],[Région administrative]]&\"]\"","v":"Authier [Abitibi-Témiscamingue (08)]"}]
["Authier-Nord","Abitibi-Témiscamingue (08)",{"$f":"Tableau6[[#This Row],[Nom de municipalité]]&\" [\"&Tableau6[[#This Row],[Région administrative]]&\"]\"","v":"Authier-Nord [Abitibi-Témiscamingue (08)]"}]
["Ayer's Cliff","Estrie (05)",{"$f":"Tableau6[[#This Row],[Nom de municipalité]]&\" [\"&Tableau6[[#This Row],[Région administrative]]&\"]\"","v":"Ayer's Cliff [Estrie (05)]"}]
["Baie-Comeau","Côte-Nord (09)",{"$f":"Tableau6[[#This Row],[Nom de municipalité]]&\" [\"&Tableau6[[#This Row],[Région administrative]]&\"]\"","v":"Baie-Comeau [Côte-Nord (09)]"}]
["Baie-des-Sables","Bas-Saint-Laurent (01)",{"$f":"Tableau6[[#This Row],[Nom de municipalité]]&\" [\"&Tableau6[[#This Row],[Région administrative]]&\"]\"","v":"Baie-des-Sables [Bas-Saint-Laurent (01)]"}]
["Baie-du-Febvre","Centre-du-Québec (17)",{"$f":"Tableau6[[#This Row],[Nom de municipalité]]&\" [\"&Tableau6[[#This Row],[Région administrative]]&\"]\"","v":"Baie-du-Febvre [Centre-du-Québec (17)]"}]
["Baie-D'Urfé","Montréal (06)",{"$f":"Tableau6[[#This Row],[Nom de municipalité]]&\" [\"&Tableau6[[#This Row],[Région administrative]]&\"]\"","v":"Baie-D'Urfé [Montréal (06)]"}]
["Baie-Johan-Beetz","Côte-Nord (09)",{"$f":"Tableau6[[#This Row],[Nom de municipalité]]&\" [\"&Tableau6[[#This Row],[Région administrative]]&\"]\"","v":"Baie-Johan-Beetz [Côte-Nord (09)]"}]
["Baie-Sainte-Catherine","Capitale-Nationale (03)",{"$f":"Tableau6[[#This Row],[Nom de municipalité]]&\" [\"&Tableau6[[#This Row],[Région administrative]]&\"]\"","v":"Baie-Sainte-Catherine [Capitale-Nationale (03)]"}]
["Baie-Saint-Paul","Capitale-Nationale (03)",{"$f":"Tableau6[[#This Row],[Nom de municipalité]]&\" [\"&Tableau6[[#This Row],[Région administrative]]&\"]\"","v":"Baie-Saint-Paul [Capitale-Nationale (03)]"}]
["Baie-Trinité","Côte-Nord (09)",{"$f":"Tableau6[[#This Row],[Nom de municipalité]]&\" [\"&Tableau6[[#This Row],[Région administrative]]&\"]\"","v":"Baie-Trinité [Côte-Nord (09)]"}]
["Barkmere","Laurentides (15)",{"$f":"Tableau6[[#This Row],[Nom de municipalité]]&\" [\"&Tableau6[[#This Row],[Région administrative]]&\"]\"","v":"Barkmere [Laurentides (15)]"}]
["Barnston-Ouest","Estrie (05)",{"$f":"Tableau6[[#This Row],[Nom de municipalité]]&\" [\"&Tableau6[[#This Row],[Région administrative]]&\"]\"","v":"Barnston-Ouest [Estrie (05)]"}]
["Barraute","Abitibi-Témiscamingue (08)",{"$f":"Tableau6[[#This Row],[Nom de municipalité]]&\" [\"&Tableau6[[#This Row],[Région administrative]]&\"]\"","v":"Barraute [Abitibi-Témiscamingue (08)]"}]
["Batiscan","Mauricie (04)",{"$f":"Tableau6[[#This Row],[Nom de municipalité]]&\" [\"&Tableau6[[#This Row],[Région administrative]]&\"]\"","v":"Batiscan [Mauricie (04)]"}]
["Beaconsfield","Montréal (06)",{"$f":"Tableau6[[#This Row],[Nom de municipalité]]&\" [\"&Tableau6[[#This Row],[Région administrative]]&\"]\"","v":"Beaconsfield [Montréal (06)]"}]
["Béarn","Abitibi-Témiscamingue (08)",{"$f":"Tableau6[[#This Row],[Nom de municipalité]]&\" [\"&Tableau6[[#This Row],[Région administrative]]&\"]\"","v":"Béarn [Abitibi-Témiscamingue (08)]"}]
["Beauceville","Chaudière-Appalaches (12)",{"$f":"Tableau6[[#This Row],[Nom de municipalité]]&\" [\"&Tableau6[[#This Row],[Région administrative]]&\"]\"","v":"Beauceville [Chaudière-Appalaches (12)]"}]
["Beauharnois","Montérégie (16)",{"$f":"Tableau6[[#This Row],[Nom de municipalité]]&\" [\"&Tableau6[[#This Row],[Région administrative]]&\"]\"","v":"Beauharnois [Montérégie (16)]"}]
["Beaulac-Garthby","Chaudière-Appalaches (12)",{"$f":"Tableau6[[#This Row],[Nom de municipalité]]&\" [\"&Tableau6[[#This Row],[Région administrative]]&\"]\"","v":"Beaulac-Garthby [Chaudière-Appalaches (12)]"}]
["Beaumont","Chaudière-Appalaches (12)",{"$f":"Tableau6[[#This Row],[Nom de municipalité]]&\" [\"&Tableau6[[#This Row],[Région administrative]]&\"]\"","v":"Beaumont [Chaudière-Appalaches (12)]"}]
["Beaupré","Capitale-Nationale (03)",{"$f":"Tableau6[[#This Row],[Nom de municipalité]]&\" [\"&Tableau6[[#This Row],[Région administrative]]&\"]\"","v":"Beaupré [Capitale-Nationale (03)]"}]
["Bécancour","Centre-du-Québec (17)",{"$f":"Tableau6[[#This Row],[Nom de municipalité]]&\" [\"&Tableau6[[#This Row],[Région administrative]]&\"]\"","v":"Bécancour [Centre-du-Québec (17)]"}]
["Bedford","Montérégie (16)",{"$f":"Tableau6[[#This Row],[Nom de municipalité]]&\" [\"&Tableau6[[#This Row],[Région administrative]]&\"]\"","v":"Bedford [Montérégie (16)]"}]
["Bedford","Montérégie (16)",{"$f":"Tableau6[[#This Row],[Nom de municipalité]]&\" [\"&Tableau6[[#This Row],[Région administrative]]&\"]\"","v":"Bedford [Montérégie (16)]"}]
["Bégin","Saguenay--Lac-Saint-Jean (02)",{"$f":"Tableau6[[#This Row],[Nom de municipalité]]&\" [\"&Tableau6[[#This Row],[Région administrative]]&\"]\"","v":"Bégin [Saguenay--Lac-Saint-Jean (02)]"}]
["Belcourt","Abitibi-Témiscamingue (08)",{"$f":"Tableau6[[#This Row],[Nom de municipalité]]&\" [\"&Tableau6[[#This Row],[Région administrative]]&\"]\"","v":"Belcourt [Abitibi-Témiscamingue (08)]"}]
["Belleterre","Abitibi-Témiscamingue (08)",{"$f":"Tableau6[[#This Row],[Nom de municipalité]]&\" [\"&Tableau6[[#This Row],[Région administrative]]&\"]\"","v":"Belleterre [Abitibi-Témiscamingue (08)]"}]
["Beloeil","Montérégie (16)",{"$f":"Tableau6[[#This Row],[Nom de municipalité]]&\" [\"&Tableau6[[#This Row],[Région administrative]]&\"]\"","v":"Beloeil [Montérégie (16)]"}]
["Berry","Abitibi-Témiscamingue (08)",{"$f":"Tableau6[[#This Row],[Nom de municipalité]]&\" [\"&Tableau6[[#This Row],[Région administrative]]&\"]\"","v":"Berry [Abitibi-Témiscamingue (08)]"}]
["Berthier-sur-Mer","Chaudière-Appalaches (12)",{"$f":"Tableau6[[#This Row],[Nom de municipalité]]&\" [\"&Tableau6[[#This Row],[Région administrative]]&\"]\"","v":"Berthier-sur-Mer [Chaudière-Appalaches (12)]"}]
["Berthierville","Lanaudière (14)",{"$f":"Tableau6[[#This Row],[Nom de municipalité]]&\" [\"&Tableau6[[#This Row],[Région administrative]]&\"]\"","v":"Berthierville [Lanaudière (14)]"}]
["Béthanie","Montérégie (16)",{"$f":"Tableau6[[#This Row],[Nom de municipalité]]&\" [\"&Tableau6[[#This Row],[Région administrative]]&\"]\"","v":"Béthanie [Montérégie (16)]"}]
["Biencourt","Bas-Saint-Laurent (01)",{"$f":"Tableau6[[#This Row],[Nom de municipalité]]&\" [\"&Tableau6[[#This Row],[Région administrative]]&\"]\"","v":"Biencourt [Bas-Saint-Laurent (01)]"}]
["Blainville","Laurentides (15)",{"$f":"Tableau6[[#This Row],[Nom de municipalité]]&\" [\"&Tableau6[[#This Row],[Région administrative]]&\"]\"","v":"Blainville [Laurentides (15)]"}]
["Blanc-Sablon","Côte-Nord (09)",{"$f":"Tableau6[[#This Row],[Nom de municipalité]]&\" [\"&Tableau6[[#This Row],[Région administrative]]&\"]\"","v":"Blanc-Sablon [Côte-Nord (09)]"}]
["Blue Sea","Outaouais (07)",{"$f":"Tableau6[[#This Row],[Nom de municipalité]]&\" [\"&Tableau6[[#This Row],[Région administrative]]&\"]\"","v":"Blue Sea [Outaouais (07)]"}]
["Boileau","Outaouais (07)",{"$f":"Tableau6[[#This Row],[Nom de municipalité]]&\" [\"&Tableau6[[#This Row],[Région administrative]]&\"]\"","v":"Boileau [Outaouais (07)]"}]
["Boisbriand","Laurentides (15)",{"$f":"Tableau6[[#This Row],[Nom de municipalité]]&\" [\"&Tableau6[[#This Row],[Région administrative]]&\"]\"","v":"Boisbriand [Laurentides (15)]"}]
["Boischatel","Capitale-Nationale (03)",{"$f":"Tableau6[[#This Row],[Nom de municipalité]]&\" [\"&Tableau6[[#This Row],[Région administrative]]&\"]\"","v":"Boischatel [Capitale-Nationale (03)]"}]
["Bois-des-Filion","Laurentides (15)",{"$f":"Tableau6[[#This Row],[Nom de municipalité]]&\" [\"&Tableau6[[#This Row],[Région administrative]]&\"]\"","v":"Bois-des-Filion [Laurentides (15)]"}]
["Bois-Franc","Outaouais (07)",{"$f":"Tableau6[[#This Row],[Nom de municipalité]]&\" [\"&Tableau6[[#This Row],[Région administrative]]&\"]\"","v":"Bois-Franc [Outaouais (07)]"}]
["Bolton-Est","Estrie (05)",{"$f":"Tableau6[[#This Row],[Nom de municipalité]]&\" [\"&Tableau6[[#This Row],[Région administrative]]&\"]\"","v":"Bolton-Est [Estrie (05)]"}]
["Bolton-Ouest","Montérégie (16)",{"$f":"Tableau6[[#This Row],[Nom de municipalité]]&\" [\"&Tableau6[[#This Row],[Région administrative]]&\"]\"","v":"Bolton-Ouest [Montérégie (16)]"}]
["Bonaventure","Gaspésie--Îles-de-la-Madeleine (11)",{"$f":"Tableau6[[#This Row],[Nom de municipalité]]&\" [\"&Tableau6[[#This Row],[Région administrative]]&\"]\"","v":"Bonaventure [Gaspésie--Îles-de-la-Madeleine (11)]"}]
["Bonne-Espérance","Côte-Nord (09)",{"$f":"Tableau6[[#This Row],[Nom de municipalité]]&\" [\"&Tableau6[[#This Row],[Région administrative]]&\"]\"","v":"Bonne-Espérance [Côte-Nord (09)]"}]
["Bonsecours","Estrie (05)",{"$f":"Tableau6[[#This Row],[Nom de municipalité]]&\" [\"&Tableau6[[#This Row],[Région administrative]]&\"]\"","v":"Bonsecours [Estrie (05)]"}]
["Boucherville","Montérégie (16)",{"$f":"Tableau6[[#This Row],[Nom de municipalité]]&\" [\"&Tableau6[[#This Row],[Région administrative]]&\"]\"","v":"Boucherville [Montérégie (16)]"}]
["Bouchette","Outaouais (07)",{"$f":"Tableau6[[#This Row],[Nom de municipalité]]&\" [\"&Tableau6[[#This Row],[Région administrative]]&\"]\"","v":"Bouchette [Outaouais (07)]"}]
["Bowman","Outaouais (07)",{"$f":"Tableau6[[#This Row],[Nom de municipalité]]&\" [\"&Tableau6[[#This Row],[Région administrative]]&\"]\"","v":"Bowman [Outaouais (07)]"}]
["Brébeuf","Laurentides (15)",{"$f":"Tableau6[[#This Row],[Nom de municipalité]]&\" [\"&Tableau6[[#This Row],[Région administrative]]&\"]\"","v":"Brébeuf [Laurentides (15)]"}]
["Brigham","Montérégie (16)",{"$f":"Tableau6[[#This Row],[Nom de municipalité]]&\" [\"&Tableau6[[#This Row],[Région administrative]]&\"]\"","v":"Brigham [Montérégie (16)]"}]
["Bristol","Outaouais (07)",{"$f":"Tableau6[[#This Row],[Nom de municipalité]]&\" [\"&Tableau6[[#This Row],[Région administrative]]&\"]\"","v":"Bristol [Outaouais (07)]"}]
["Brome","Montérégie (16)",{"$f":"Tableau6[[#This Row],[Nom de municipalité]]&\" [\"&Tableau6[[#This Row],[Région administrative]]&\"]\"","v":"Brome [Montérégie (16)]"}]
["Bromont","Montérégie (16)",{"$f":"Tableau6[[#This Row],[Nom de municipalité]]&\" [\"&Tableau6[[#This Row],[Région administrative]]&\"]\"","v":"Bromont [Montérégie (16)]"}]
["Brossard","Montérégie (16)",{"$f":"Tableau6[[#This Row],[Nom de municipalité]]&\" [\"&Tableau6[[#This Row],[Région administrative]]&\"]\"","v":"Brossard [Montérégie (16)]"}]
["Brownsburg-Chatham","Laurentides (15)",{"$f":"Tableau6[[#This Row],[Nom de municipalité]]&\" [\"&Tableau6[[#This Row],[Région administrative]]&\"]\"","v":"Brownsburg-Chatham [Laurentides (15)]"}]
["Bryson","Outaouais (07)",{"$f":"Tableau6[[#This Row],[Nom de municipalité]]&\" [\"&Tableau6[[#This Row],[Région administrative]]&\"]\"","v":"Bryson [Outaouais (07)]"}]
["Bury","Estrie (05)",{"$f":"Tableau6[[#This Row],[Nom de municipalité]]&\" [\"&Tableau6[[#This Row],[Région administrative]]&\"]\"","v":"Bury [Estrie (05)]"}]
["Cacouna","Bas-Saint-Laurent (01)",{"$f":"Tableau6[[#This Row],[Nom de municipalité]]&\" [\"&Tableau6[[#This Row],[Région administrative]]&\"]\"","v":"Cacouna [Bas-Saint-Laurent (01)]"}]
["Calixa-Lavallée","Montérégie (16)",{"$f":"Tableau6[[#This Row],[Nom de municipalité]]&\" [\"&Tableau6[[#This Row],[Région administrative]]&\"]\"","v":"Calixa-Lavallée [Montérégie (16)]"}]
["Campbell's Bay","Outaouais (07)",{"$f":"Tableau6[[#This Row],[Nom de municipalité]]&\" [\"&Tableau6[[#This Row],[Région administrative]]&\"]\"","v":"Campbell's Bay [Outaouais (07)]"}]
["Candiac","Montérégie (16)",{"$f":"Tableau6[[#This Row],[Nom de municipalité]]&\" [\"&Tableau6[[#This Row],[Région administrative]]&\"]\"","v":"Candiac [Montérégie (16)]"}]
["Cantley","Outaouais (07)",{"$f":"Tableau6[[#This Row],[Nom de municipalité]]&\" [\"&Tableau6[[#This Row],[Région administrative]]&\"]\"","v":"Cantley [Outaouais (07)]"}]
["Cap-Chat","Gaspésie--Îles-de-la-Madeleine (11)",{"$f":"Tableau6[[#This Row],[Nom de municipalité]]&\" [\"&Tableau6[[#This Row],[Région administrative]]&\"]\"","v":"Cap-Chat [Gaspésie--Îles-de-la-Madeleine (11)]"}]
["Caplan","Gaspésie--Îles-de-la-Madeleine (11)",{"$f":"Tableau6[[#This Row],[Nom de municipalité]]&\" [\"&Tableau6[[#This Row],[Région administrative]]&\"]\"","v":"Caplan [Gaspésie--Îles-de-la-Madeleine (11)]"}]
["Cap-Saint-Ignace","Chaudière-Appalaches (12)",{"$f":"Tableau6[[#This Row],[Nom de municipalité]]&\" [\"&Tableau6[[#This Row],[Région administrative]]&\"]\"","v":"Cap-Saint-Ignace [Chaudière-Appalaches (12)]"}]
["Cap-Santé","Capitale-Nationale (03)",{"$f":"Tableau6[[#This Row],[Nom de municipalité]]&\" [\"&Tableau6[[#This Row],[Région administrative]]&\"]\"","v":"Cap-Santé [Capitale-Nationale (03)]"}]
["Carignan","Montérégie (16)",{"$f":"Tableau6[[#This Row],[Nom de municipalité]]&\" [\"&Tableau6[[#This Row],[Région administrative]]&\"]\"","v":"Carignan [Montérégie (16)]"}]
["Carleton-sur-Mer","Gaspésie--Îles-de-la-Madeleine (11)",{"$f":"Tableau6[[#This Row],[Nom de municipalité]]&\" [\"&Tableau6[[#This Row],[Région administrative]]&\"]\"","v":"Carleton-sur-Mer [Gaspésie--Îles-de-la-Madeleine (11)]"}]
["Cascapédia--Saint-Jules","Gaspésie--Îles-de-la-Madeleine (11)",{"$f":"Tableau6[[#This Row],[Nom de municipalité]]&\" [\"&Tableau6[[#This Row],[Région administrative]]&\"]\"","v":"Cascapédia--Saint-Jules [Gaspésie--Îles-de-la-Madeleine (11)]"}]
["Causapscal","Bas-Saint-Laurent (01)",{"$f":"Tableau6[[#This Row],[Nom de municipalité]]&\" [\"&Tableau6[[#This Row],[Région administrative]]&\"]\"","v":"Causapscal [Bas-Saint-Laurent (01)]"}]
["Cayamant","Outaouais (07)",{"$f":"Tableau6[[#This Row],[Nom de municipalité]]&\" [\"&Tableau6[[#This Row],[Région administrative]]&\"]\"","v":"Cayamant [Outaouais (07)]"}]
["Chambly","Montérégie (16)",{"$f":"Tableau6[[#This Row],[Nom de municipalité]]&\" [\"&Tableau6[[#This Row],[Région administrative]]&\"]\"","v":"Chambly [Montérégie (16)]"}]
["Chambord","Saguenay--Lac-Saint-Jean (02)",{"$f":"Tableau6[[#This Row],[Nom de municipalité]]&\" [\"&Tableau6[[#This Row],[Région administrative]]&\"]\"","v":"Chambord [Saguenay--Lac-Saint-Jean (02)]"}]
["Champlain","Mauricie (04)",{"$f":"Tableau6[[#This Row],[Nom de municipalité]]&\" [\"&Tableau6[[#This Row],[Région administrative]]&\"]\"","v":"Champlain [Mauricie (04)]"}]
["Champneuf","Abitibi-Témiscamingue (08)",{"$f":"Tableau6[[#This Row],[Nom de municipalité]]&\" [\"&Tableau6[[#This Row],[Région administrative]]&\"]\"","v":"Champneuf [Abitibi-Témiscamingue (08)]"}]
["Chandler","Gaspésie--Îles-de-la-Madeleine (11)",{"$f":"Tableau6[[#This Row],[Nom de municipalité]]&\" [\"&Tableau6[[#This Row],[Région administrative]]&\"]\"","v":"Chandler [Gaspésie--Îles-de-la-Madeleine (11)]"}]
["Chapais","Nord-du-Québec (10)",{"$f":"Tableau6[[#This Row],[Nom de municipalité]]&\" [\"&Tableau6[[#This Row],[Région administrative]]&\"]\"","v":"Chapais [Nord-du-Québec (10)]"}]
["Charette","Mauricie (04)",{"$f":"Tableau6[[#This Row],[Nom de municipalité]]&\" [\"&Tableau6[[#This Row],[Région administrative]]&\"]\"","v":"Charette [Mauricie (04)]"}]
["Charlemagne","Lanaudière (14)",{"$f":"Tableau6[[#This Row],[Nom de municipalité]]&\" [\"&Tableau6[[#This Row],[Région administrative]]&\"]\"","v":"Charlemagne [Lanaudière (14)]"}]
["Chartierville","Estrie (05)",{"$f":"Tableau6[[#This Row],[Nom de municipalité]]&\" [\"&Tableau6[[#This Row],[Région administrative]]&\"]\"","v":"Chartierville [Estrie (05)]"}]
["Châteauguay","Montérégie (16)",{"$f":"Tableau6[[#This Row],[Nom de municipalité]]&\" [\"&Tableau6[[#This Row],[Région administrative]]&\"]\"","v":"Châteauguay [Montérégie (16)]"}]
["Château-Richer","Capitale-Nationale (03)",{"$f":"Tableau6[[#This Row],[Nom de municipalité]]&\" [\"&Tableau6[[#This Row],[Région administrative]]&\"]\"","v":"Château-Richer [Capitale-Nationale (03)]"}]
["Chazel","Abitibi-Témiscamingue (08)",{"$f":"Tableau6[[#This Row],[Nom de municipalité]]&\" [\"&Tableau6[[#This Row],[Région administrative]]&\"]\"","v":"Chazel [Abitibi-Témiscamingue (08)]"}]
["Chelsea","Outaouais (07)",{"$f":"Tableau6[[#This Row],[Nom de municipalité]]&\" [\"&Tableau6[[#This Row],[Région administrative]]&\"]\"","v":"Chelsea [Outaouais (07)]"}]
["Chénéville","Outaouais (07)",{"$f":"Tableau6[[#This Row],[Nom de municipalité]]&\" [\"&Tableau6[[#This Row],[Région administrative]]&\"]\"","v":"Chénéville [Outaouais (07)]"}]
["Chertsey","Lanaudière (14)",{"$f":"Tableau6[[#This Row],[Nom de municipalité]]&\" [\"&Tableau6[[#This Row],[Région administrative]]&\"]\"","v":"Chertsey [Lanaudière (14)]"}]
["Chesterville","Centre-du-Québec (17)",{"$f":"Tableau6[[#This Row],[Nom de municipalité]]&\" [\"&Tableau6[[#This Row],[Région administrative]]&\"]\"","v":"Chesterville [Centre-du-Québec (17)]"}]
["Chibougamau","Nord-du-Québec (10)",{"$f":"Tableau6[[#This Row],[Nom de municipalité]]&\" [\"&Tableau6[[#This Row],[Région administrative]]&\"]\"","v":"Chibougamau [Nord-du-Québec (10)]"}]
["Chichester","Outaouais (07)",{"$f":"Tableau6[[#This Row],[Nom de municipalité]]&\" [\"&Tableau6[[#This Row],[Région administrative]]&\"]\"","v":"Chichester [Outaouais (07)]"}]
["Chisasibi","Nord-du-Québec (10)",{"$f":"Tableau6[[#This Row],[Nom de municipalité]]&\" [\"&Tableau6[[#This Row],[Région administrative]]&\"]\"","v":"Chisasibi [Nord-du-Québec (10)]"}]
["Chute-aux-Outardes","Côte-Nord (09)",{"$f":"Tableau6[[#This Row],[Nom de municipalité]]&\" [\"&Tableau6[[#This Row],[Région administrative]]&\"]\"","v":"Chute-aux-Outardes [Côte-Nord (09)]"}]
["Chute-Saint-Philippe","Laurentides (15)",{"$f":"Tableau6[[#This Row],[Nom de municipalité]]&\" [\"&Tableau6[[#This Row],[Région administrative]]&\"]\"","v":"Chute-Saint-Philippe [Laurentides (15)]"}]
["Clarendon","Outaouais (07)",{"$f":"Tableau6[[#This Row],[Nom de municipalité]]&\" [\"&Tableau6[[#This Row],[Région administrative]]&\"]\"","v":"Clarendon [Outaouais (07)]"}]
["Clermont","Capitale-Nationale (03)",{"$f":"Tableau6[[#This Row],[Nom de municipalité]]&\" [\"&Tableau6[[#This Row],[Région administrative]]&\"]\"","v":"Clermont [Capitale-Nationale (03)]"}]
["Clermont","Abitibi-Témiscamingue (08)",{"$f":"Tableau6[[#This Row],[Nom de municipalité]]&\" [\"&Tableau6[[#This Row],[Région administrative]]&\"]\"","v":"Clermont [Abitibi-Témiscamingue (08)]"}]
["Clerval","Abitibi-Témiscamingue (08)",{"$f":"Tableau6[[#This Row],[Nom de municipalité]]&\" [\"&Tableau6[[#This Row],[Région administrative]]&\"]\"","v":"Clerval [Abitibi-Témiscamingue (08)]"}]
["Cleveland","Estrie (05)",{"$f":"Tableau6[[#This Row],[Nom de municipalité]]&\" [\"&Tableau6[[#This Row],[Région administrative]]&\"]\"","v":"Cleveland [Estrie (05)]"}]
["Cloridorme","Gaspésie--Îles-de-la-Madeleine (11)",{"$f":"Tableau6[[#This Row],[Nom de municipalité]]&\" [\"&Tableau6[[#This Row],[Région administrative]]&\"]\"","v":"Cloridorme [Gaspésie--Îles-de-la-Madeleine (11)]"}]
["Coaticook","Estrie (05)",{"$f":"Tableau6[[#This Row],[Nom de municipalité]]&\" [\"&Tableau6[[#This Row],[Région administrative]]&\"]\"","v":"Coaticook [Estrie (05)]"}]
["Colombier","Côte-Nord (09)",{"$f":"Tableau6[[#This Row],[Nom de municipalité]]&\" [\"&Tableau6[[#This Row],[Région administrative]]&\"]\"","v":"Colombier [Côte-Nord (09)]"}]
["Compton","Estrie (05)",{"$f":"Tableau6[[#This Row],[Nom de municipalité]]&\" [\"&Tableau6[[#This Row],[Région administrative]]&\"]\"","v":"Compton [Estrie (05)]"}]
["Contrecoeur","Montérégie (16)",{"$f":"Tableau6[[#This Row],[Nom de municipalité]]&\" [\"&Tableau6[[#This Row],[Région administrative]]&\"]\"","v":"Contrecoeur [Montérégie (16)]"}]
["Cookshire-Eaton","Estrie (05)",{"$f":"Tableau6[[#This Row],[Nom de municipalité]]&\" [\"&Tableau6[[#This Row],[Région administrative]]&\"]\"","v":"Cookshire-Eaton [Estrie (05)]"}]
["Coteau-du-Lac","Montérégie (16)",{"$f":"Tableau6[[#This Row],[Nom de municipalité]]&\" [\"&Tableau6[[#This Row],[Région administrative]]&\"]\"","v":"Coteau-du-Lac [Montérégie (16)]"}]
["Côte-Nord-du-Golfe-du-Saint-Laurent","Côte-Nord (09)",{"$f":"Tableau6[[#This Row],[Nom de municipalité]]&\" [\"&Tableau6[[#This Row],[Région administrative]]&\"]\"","v":"Côte-Nord-du-Golfe-du-Saint-Laurent [Côte-Nord (09)]"}]
["Côte-Saint-Luc","Montréal (06)",{"$f":"Tableau6[[#This Row],[Nom de municipalité]]&\" [\"&Tableau6[[#This Row],[Région administrative]]&\"]\"","v":"Côte-Saint-Luc [Montréal (06)]"}]
["Courcelles","Estrie (05)",{"$f":"Tableau6[[#This Row],[Nom de municipalité]]&\" [\"&Tableau6[[#This Row],[Région administrative]]&\"]\"","v":"Courcelles [Estrie (05)]"}]
["Cowansville","Montérégie (16)",{"$f":"Tableau6[[#This Row],[Nom de municipalité]]&\" [\"&Tableau6[[#This Row],[Région administrative]]&\"]\"","v":"Cowansville [Montérégie (16)]"}]
["Crabtree","Lanaudière (14)",{"$f":"Tableau6[[#This Row],[Nom de municipalité]]&\" [\"&Tableau6[[#This Row],[Région administrative]]&\"]\"","v":"Crabtree [Lanaudière (14)]"}]
["Danville","Estrie (05)",{"$f":"Tableau6[[#This Row],[Nom de municipalité]]&\" [\"&Tableau6[[#This Row],[Région administrative]]&\"]\"","v":"Danville [Estrie (05)]"}]
["Daveluyville","Centre-du-Québec (17)",{"$f":"Tableau6[[#This Row],[Nom de municipalité]]&\" [\"&Tableau6[[#This Row],[Région administrative]]&\"]\"","v":"Daveluyville [Centre-du-Québec (17)]"}]
["Dégelis","Bas-Saint-Laurent (01)",{"$f":"Tableau6[[#This Row],[Nom de municipalité]]&\" [\"&Tableau6[[#This Row],[Région administrative]]&\"]\"","v":"Dégelis [Bas-Saint-Laurent (01)]"}]
["Déléage","Outaouais (07)",{"$f":"Tableau6[[#This Row],[Nom de municipalité]]&\" [\"&Tableau6[[#This Row],[Région administrative]]&\"]\"","v":"Déléage [Outaouais (07)]"}]
["Delson","Montérégie (16)",{"$f":"Tableau6[[#This Row],[Nom de municipalité]]&\" [\"&Tableau6[[#This Row],[Région administrative]]&\"]\"","v":"Delson [Montérégie (16)]"}]
["Denholm","Outaouais (07)",{"$f":"Tableau6[[#This Row],[Nom de municipalité]]&\" [\"&Tableau6[[#This Row],[Région administrative]]&\"]\"","v":"Denholm [Outaouais (07)]"}]
["Desbiens","Saguenay--Lac-Saint-Jean (02)",{"$f":"Tableau6[[#This Row],[Nom de municipalité]]&\" [\"&Tableau6[[#This Row],[Région administrative]]&\"]\"","v":"Desbiens [Saguenay--Lac-Saint-Jean (02)]"}]
["Deschaillons-sur-Saint-Laurent","Centre-du-Québec (17)",{"$f":"Tableau6[[#This Row],[Nom de municipalité]]&\" [\"&Tableau6[[#This Row],[Région administrative]]&\"]\"","v":"Deschaillons-sur-Saint-Laurent [Centre-du-Québec (17)]"}]
["Deschambault-Grondines","Capitale-Nationale (03)",{"$f":"Tableau6[[#This Row],[Nom de municipalité]]&\" [\"&Tableau6[[#This Row],[Région administrative]]&\"]\"","v":"Deschambault-Grondines [Capitale-Nationale (03)]"}]
["Deux-Montagnes","Laurentides (15)",{"$f":"Tableau6[[#This Row],[Nom de municipalité]]&\" [\"&Tableau6[[#This Row],[Région administrative]]&\"]\"","v":"Deux-Montagnes [Laurentides (15)]"}]
["Disraeli","Chaudière-Appalaches (12)",{"$f":"Tableau6[[#This Row],[Nom de municipalité]]&\" [\"&Tableau6[[#This Row],[Région administrative]]&\"]\"","v":"Disraeli [Chaudière-Appalaches (12)]"}]
["Disraeli","Chaudière-Appalaches (12)",{"$f":"Tableau6[[#This Row],[Nom de municipalité]]&\" [\"&Tableau6[[#This Row],[Région administrative]]&\"]\"","v":"Disraeli [Chaudière-Appalaches (12)]"}]
["Dixville","Estrie (05)",{"$f":"Tableau6[[#This Row],[Nom de municipalité]]&\" [\"&Tableau6[[#This Row],[Région administrative]]&\"]\"","v":"Dixville [Estrie (05)]"}]
["Dolbeau-Mistassini","Saguenay--Lac-Saint-Jean (02)",{"$f":"Tableau6[[#This Row],[Nom de municipalité]]&\" [\"&Tableau6[[#This Row],[Région administrative]]&\"]\"","v":"Dolbeau-Mistassini [Saguenay--Lac-Saint-Jean (02)]"}]
["Dollard-Des Ormeaux","Montréal (06)",{"$f":"Tableau6[[#This Row],[Nom de municipalité]]&\" [\"&Tableau6[[#This Row],[Région administrative]]&\"]\"","v":"Dollard-Des Ormeaux [Montréal (06)]"}]
["Donnacona","Capitale-Nationale (03)",{"$f":"Tableau6[[#This Row],[Nom de municipalité]]&\" [\"&Tableau6[[#This Row],[Région administrative]]&\"]\"","v":"Donnacona [Capitale-Nationale (03)]"}]
["Dorval","Montréal (06)",{"$f":"Tableau6[[#This Row],[Nom de municipalité]]&\" [\"&Tableau6[[#This Row],[Région administrative]]&\"]\"","v":"Dorval [Montréal (06)]"}]
["Dosquet","Chaudière-Appalaches (12)",{"$f":"Tableau6[[#This Row],[Nom de municipalité]]&\" [\"&Tableau6[[#This Row],[Région administrative]]&\"]\"","v":"Dosquet [Chaudière-Appalaches (12)]"}]
["Drummondville","Centre-du-Québec (17)",{"$f":"Tableau6[[#This Row],[Nom de municipalité]]&\" [\"&Tableau6[[#This Row],[Région administrative]]&\"]\"","v":"Drummondville [Centre-du-Québec (17)]"}]
["Dudswell","Estrie (05)",{"$f":"Tableau6[[#This Row],[Nom de municipalité]]&\" [\"&Tableau6[[#This Row],[Région administrative]]&\"]\"","v":"Dudswell [Estrie (05)]"}]
["Duhamel","Outaouais (07)",{"$f":"Tableau6[[#This Row],[Nom de municipalité]]&\" [\"&Tableau6[[#This Row],[Région administrative]]&\"]\"","v":"Duhamel [Outaouais (07)]"}]
["Duhamel-Ouest","Abitibi-Témiscamingue (08)",{"$f":"Tableau6[[#This Row],[Nom de municipalité]]&\" [\"&Tableau6[[#This Row],[Région administrative]]&\"]\"","v":"Duhamel-Ouest [Abitibi-Témiscamingue (08)]"}]
["Dundee","Montérégie (16)",{"$f":"Tableau6[[#This Row],[Nom de municipalité]]&\" [\"&Tableau6[[#This Row],[Région administrative]]&\"]\"","v":"Dundee [Montérégie (16)]"}]
["Dunham","Montérégie (16)",{"$f":"Tableau6[[#This Row],[Nom de municipalité]]&\" [\"&Tableau6[[#This Row],[Région administrative]]&\"]\"","v":"Dunham [Montérégie (16)]"}]
["Duparquet","Abitibi-Témiscamingue (08)",{"$f":"Tableau6[[#This Row],[Nom de municipalité]]&\" [\"&Tableau6[[#This Row],[Région administrative]]&\"]\"","v":"Duparquet [Abitibi-Témiscamingue (08)]"}]
["Dupuy","Abitibi-Témiscamingue (08)",{"$f":"Tableau6[[#This Row],[Nom de municipalité]]&\" [\"&Tableau6[[#This Row],[Région administrative]]&\"]\"","v":"Dupuy [Abitibi-Témiscamingue (08)]"}]
["Durham-Sud","Centre-du-Québec (17)",{"$f":"Tableau6[[#This Row],[Nom de municipalité]]&\" [\"&Tableau6[[#This Row],[Région administrative]]&\"]\"","v":"Durham-Sud [Centre-du-Québec (17)]"}]
["East Angus","Estrie (05)",{"$f":"Tableau6[[#This Row],[Nom de municipalité]]&\" [\"&Tableau6[[#This Row],[Région administrative]]&\"]\"","v":"East Angus [Estrie (05)]"}]
["East Broughton","Chaudière-Appalaches (12)",{"$f":"Tableau6[[#This Row],[Nom de municipalité]]&\" [\"&Tableau6[[#This Row],[Région administrative]]&\"]\"","v":"East Broughton [Chaudière-Appalaches (12)]"}]
["East Farnham","Montérégie (16)",{"$f":"Tableau6[[#This Row],[Nom de municipalité]]&\" [\"&Tableau6[[#This Row],[Région administrative]]&\"]\"","v":"East Farnham [Montérégie (16)]"}]
["East Hereford","Estrie (05)",{"$f":"Tableau6[[#This Row],[Nom de municipalité]]&\" [\"&Tableau6[[#This Row],[Région administrative]]&\"]\"","v":"East Hereford [Estrie (05)]"}]
["Eastmain","Nord-du-Québec (10)",{"$f":"Tableau6[[#This Row],[Nom de municipalité]]&\" [\"&Tableau6[[#This Row],[Région administrative]]&\"]\"","v":"Eastmain [Nord-du-Québec (10)]"}]
["Eastman","Estrie (05)",{"$f":"Tableau6[[#This Row],[Nom de municipalité]]&\" [\"&Tableau6[[#This Row],[Région administrative]]&\"]\"","v":"Eastman [Estrie (05)]"}]
["Egan-Sud","Outaouais (07)",{"$f":"Tableau6[[#This Row],[Nom de municipalité]]&\" [\"&Tableau6[[#This Row],[Région administrative]]&\"]\"","v":"Egan-Sud [Outaouais (07)]"}]
["Elgin","Montérégie (16)",{"$f":"Tableau6[[#This Row],[Nom de municipalité]]&\" [\"&Tableau6[[#This Row],[Région administrative]]&\"]\"","v":"Elgin [Montérégie (16)]"}]
["Entrelacs","Lanaudière (14)",{"$f":"Tableau6[[#This Row],[Nom de municipalité]]&\" [\"&Tableau6[[#This Row],[Région administrative]]&\"]\"","v":"Entrelacs [Lanaudière (14)]"}]
["Escuminac","Gaspésie--Îles-de-la-Madeleine (11)",{"$f":"Tableau6[[#This Row],[Nom de municipalité]]&\" [\"&Tableau6[[#This Row],[Région administrative]]&\"]\"","v":"Escuminac [Gaspésie--Îles-de-la-Madeleine (11)]"}]
["Esprit-Saint","Bas-Saint-Laurent (01)",{"$f":"Tableau6[[#This Row],[Nom de municipalité]]&\" [\"&Tableau6[[#This Row],[Région administrative]]&\"]\"","v":"Esprit-Saint [Bas-Saint-Laurent (01)]"}]
["Estérel","Laurentides (15)",{"$f":"Tableau6[[#This Row],[Nom de municipalité]]&\" [\"&Tableau6[[#This Row],[Région administrative]]&\"]\"","v":"Estérel [Laurentides (15)]"}]
["Farnham","Montérégie (16)",{"$f":"Tableau6[[#This Row],[Nom de municipalité]]&\" [\"&Tableau6[[#This Row],[Région administrative]]&\"]\"","v":"Farnham [Montérégie (16)]"}]
["Fassett","Outaouais (07)",{"$f":"Tableau6[[#This Row],[Nom de municipalité]]&\" [\"&Tableau6[[#This Row],[Région administrative]]&\"]\"","v":"Fassett [Outaouais (07)]"}]
["Ferland-et-Boilleau","Saguenay--Lac-Saint-Jean (02)",{"$f":"Tableau6[[#This Row],[Nom de municipalité]]&\" [\"&Tableau6[[#This Row],[Région administrative]]&\"]\"","v":"Ferland-et-Boilleau [Saguenay--Lac-Saint-Jean (02)]"}]
["Ferme-Neuve","Laurentides (15)",{"$f":"Tableau6[[#This Row],[Nom de municipalité]]&\" [\"&Tableau6[[#This Row],[Région administrative]]&\"]\"","v":"Ferme-Neuve [Laurentides (15)]"}]
["Fermont","Côte-Nord (09)",{"$f":"Tableau6[[#This Row],[Nom de municipalité]]&\" [\"&Tableau6[[#This Row],[Région administrative]]&\"]\"","v":"Fermont [Côte-Nord (09)]"}]
["Forestville","Côte-Nord (09)",{"$f":"Tableau6[[#This Row],[Nom de municipalité]]&\" [\"&Tableau6[[#This Row],[Région administrative]]&\"]\"","v":"Forestville [Côte-Nord (09)]"}]
["Fort-Coulonge","Outaouais (07)",{"$f":"Tableau6[[#This Row],[Nom de municipalité]]&\" [\"&Tableau6[[#This Row],[Région administrative]]&\"]\"","v":"Fort-Coulonge [Outaouais (07)]"}]
["Fortierville","Centre-du-Québec (17)",{"$f":"Tableau6[[#This Row],[Nom de municipalité]]&\" [\"&Tableau6[[#This Row],[Région administrative]]&\"]\"","v":"Fortierville [Centre-du-Québec (17)]"}]
["Fossambault-sur-le-Lac","Capitale-Nationale (03)",{"$f":"Tableau6[[#This Row],[Nom de municipalité]]&\" [\"&Tableau6[[#This Row],[Région administrative]]&\"]\"","v":"Fossambault-sur-le-Lac [Capitale-Nationale (03)]"}]
["Frampton","Chaudière-Appalaches (12)",{"$f":"Tableau6[[#This Row],[Nom de municipalité]]&\" [\"&Tableau6[[#This Row],[Région administrative]]&\"]\"","v":"Frampton [Chaudière-Appalaches (12)]"}]
["Franklin","Montérégie (16)",{"$f":"Tableau6[[#This Row],[Nom de municipalité]]&\" [\"&Tableau6[[#This Row],[Région administrative]]&\"]\"","v":"Franklin [Montérégie (16)]"}]
["Franquelin","Côte-Nord (09)",{"$f":"Tableau6[[#This Row],[Nom de municipalité]]&\" [\"&Tableau6[[#This Row],[Région administrative]]&\"]\"","v":"Franquelin [Côte-Nord (09)]"}]
["Frelighsburg","Montérégie (16)",{"$f":"Tableau6[[#This Row],[Nom de municipalité]]&\" [\"&Tableau6[[#This Row],[Région administrative]]&\"]\"","v":"Frelighsburg [Montérégie (16)]"}]
["Frontenac","Estrie (05)",{"$f":"Tableau6[[#This Row],[Nom de municipalité]]&\" [\"&Tableau6[[#This Row],[Région administrative]]&\"]\"","v":"Frontenac [Estrie (05)]"}]
["Fugèreville","Abitibi-Témiscamingue (08)",{"$f":"Tableau6[[#This Row],[Nom de municipalité]]&\" [\"&Tableau6[[#This Row],[Région administrative]]&\"]\"","v":"Fugèreville [Abitibi-Témiscamingue (08)]"}]
["Gallichan","Abitibi-Témiscamingue (08)",{"$f":"Tableau6[[#This Row],[Nom de municipalité]]&\" [\"&Tableau6[[#This Row],[Région administrative]]&\"]\"","v":"Gallichan [Abitibi-Témiscamingue (08)]"}]
["Gaspé","Gaspésie--Îles-de-la-Madeleine (11)",{"$f":"Tableau6[[#This Row],[Nom de municipalité]]&\" [\"&Tableau6[[#This Row],[Région administrative]]&\"]\"","v":"Gaspé [Gaspésie--Îles-de-la-Madeleine (11)]"}]
["Gatineau","Outaouais (07)",{"$f":"Tableau6[[#This Row],[Nom de municipalité]]&\" [\"&Tableau6[[#This Row],[Région administrative]]&\"]\"","v":"Gatineau [Outaouais (07)]"}]
["Girardville","Saguenay--Lac-Saint-Jean (02)",{"$f":"Tableau6[[#This Row],[Nom de municipalité]]&\" [\"&Tableau6[[#This Row],[Région administrative]]&\"]\"","v":"Girardville [Saguenay--Lac-Saint-Jean (02)]"}]
["Godbout","Côte-Nord (09)",{"$f":"Tableau6[[#This Row],[Nom de municipalité]]&\" [\"&Tableau6[[#This Row],[Région administrative]]&\"]\"","v":"Godbout [Côte-Nord (09)]"}]
["Godmanchester","Montérégie (16)",{"$f":"Tableau6[[#This Row],[Nom de municipalité]]&\" [\"&Tableau6[[#This Row],[Région administrative]]&\"]\"","v":"Godmanchester [Montérégie (16)]"}]
["Gore","Laurentides (15)",{"$f":"Tableau6[[#This Row],[Nom de municipalité]]&\" [\"&Tableau6[[#This Row],[Région administrative]]&\"]\"","v":"Gore [Laurentides (15)]"}]
["G.R. d'Eeyou Istchee Baie-James","Nord-du-Québec (10)",{"$f":"Tableau6[[#This Row],[Nom de municipalité]]&\" [\"&Tableau6[[#This Row],[Région administrative]]&\"]\"","v":"G.R. d'Eeyou Istchee Baie-James [Nord-du-Québec (10)]"}]
["Gracefield","Outaouais (07)",{"$f":"Tableau6[[#This Row],[Nom de municipalité]]&\" [\"&Tableau6[[#This Row],[Région administrative]]&\"]\"","v":"Gracefield [Outaouais (07)]"}]
["Granby","Montérégie (16)",{"$f":"Tableau6[[#This Row],[Nom de municipalité]]&\" [\"&Tableau6[[#This Row],[Région administrative]]&\"]\"","v":"Granby [Montérégie (16)]"}]
["Grande-Rivière","Gaspésie--Îles-de-la-Madeleine (11)",{"$f":"Tableau6[[#This Row],[Nom de municipalité]]&\" [\"&Tableau6[[#This Row],[Région administrative]]&\"]\"","v":"Grande-Rivière [Gaspésie--Îles-de-la-Madeleine (11)]"}]
["Grandes-Piles","Mauricie (04)",{"$f":"Tableau6[[#This Row],[Nom de municipalité]]&\" [\"&Tableau6[[#This Row],[Région administrative]]&\"]\"","v":"Grandes-Piles [Mauricie (04)]"}]
["Grande-Vallée","Gaspésie--Îles-de-la-Madeleine (11)",{"$f":"Tableau6[[#This Row],[Nom de municipalité]]&\" [\"&Tableau6[[#This Row],[Région administrative]]&\"]\"","v":"Grande-Vallée [Gaspésie--Îles-de-la-Madeleine (11)]"}]
["Grand-Métis","Bas-Saint-Laurent (01)",{"$f":"Tableau6[[#This Row],[Nom de municipalité]]&\" [\"&Tableau6[[#This Row],[Région administrative]]&\"]\"","v":"Grand-Métis [Bas-Saint-Laurent (01)]"}]
["Grand-Remous","Outaouais (07)",{"$f":"Tableau6[[#This Row],[Nom de municipalité]]&\" [\"&Tableau6[[#This Row],[Région administrative]]&\"]\"","v":"Grand-Remous [Outaouais (07)]"}]
["Grand-Saint-Esprit","Centre-du-Québec (17)",{"$f":"Tableau6[[#This Row],[Nom de municipalité]]&\" [\"&Tableau6[[#This Row],[Région administrative]]&\"]\"","v":"Grand-Saint-Esprit [Centre-du-Québec (17)]"}]
["Grenville","Laurentides (15)",{"$f":"Tableau6[[#This Row],[Nom de municipalité]]&\" [\"&Tableau6[[#This Row],[Région administrative]]&\"]\"","v":"Grenville [Laurentides (15)]"}]
["Grenville-sur-la-Rouge","Laurentides (15)",{"$f":"Tableau6[[#This Row],[Nom de municipalité]]&\" [\"&Tableau6[[#This Row],[Région administrative]]&\"]\"","v":"Grenville-sur-la-Rouge [Laurentides (15)]"}]
["Gros-Mécatina","Côte-Nord (09)",{"$f":"Tableau6[[#This Row],[Nom de municipalité]]&\" [\"&Tableau6[[#This Row],[Région administrative]]&\"]\"","v":"Gros-Mécatina [Côte-Nord (09)]"}]
["Grosse-Île","Gaspésie--Îles-de-la-Madeleine (11)",{"$f":"Tableau6[[#This Row],[Nom de municipalité]]&\" [\"&Tableau6[[#This Row],[Région administrative]]&\"]\"","v":"Grosse-Île [Gaspésie--Îles-de-la-Madeleine (11)]"}]
["Grosses-Roches","Bas-Saint-Laurent (01)",{"$f":"Tableau6[[#This Row],[Nom de municipalité]]&\" [\"&Tableau6[[#This Row],[Région administrative]]&\"]\"","v":"Grosses-Roches [Bas-Saint-Laurent (01)]"}]
["Guérin","Abitibi-Témiscamingue (08)",{"$f":"Tableau6[[#This Row],[Nom de municipalité]]&\" [\"&Tableau6[[#This Row],[Région administrative]]&\"]\"","v":"Guérin [Abitibi-Témiscamingue (08)]"}]
["Ham-Nord","Centre-du-Québec (17)",{"$f":"Tableau6[[#This Row],[Nom de municipalité]]&\" [\"&Tableau6[[#This Row],[Région administrative]]&\"]\"","v":"Ham-Nord [Centre-du-Québec (17)]"}]
["Hampden","Estrie (05)",{"$f":"Tableau6[[#This Row],[Nom de municipalité]]&\" [\"&Tableau6[[#This Row],[Région administrative]]&\"]\"","v":"Hampden [Estrie (05)]"}]
["Hampstead","Montréal (06)",{"$f":"Tableau6[[#This Row],[Nom de municipalité]]&\" [\"&Tableau6[[#This Row],[Région administrative]]&\"]\"","v":"Hampstead [Montréal (06)]"}]
["Ham-Sud","Estrie (05)",{"$f":"Tableau6[[#This Row],[Nom de municipalité]]&\" [\"&Tableau6[[#This Row],[Région administrative]]&\"]\"","v":"Ham-Sud [Estrie (05)]"}]
["Harrington","Laurentides (15)",{"$f":"Tableau6[[#This Row],[Nom de municipalité]]&\" [\"&Tableau6[[#This Row],[Région administrative]]&\"]\"","v":"Harrington [Laurentides (15)]"}]
["Hatley","Estrie (05)",{"$f":"Tableau6[[#This Row],[Nom de municipalité]]&\" [\"&Tableau6[[#This Row],[Région administrative]]&\"]\"","v":"Hatley [Estrie (05)]"}]
["Hatley","Estrie (05)",{"$f":"Tableau6[[#This Row],[Nom de municipalité]]&\" [\"&Tableau6[[#This Row],[Région administrative]]&\"]\"","v":"Hatley [Estrie (05)]"}]
["Havelock","Montérégie (16)",{"$f":"Tableau6[[#This Row],[Nom de municipalité]]&\" [\"&Tableau6[[#This Row],[Région administrative]]&\"]\"","v":"Havelock [Montérégie (16)]"}]
["Havre-Saint-Pierre","Côte-Nord (09)",{"$f":"Tableau6[[#This Row],[Nom de municipalité]]&\" [\"&Tableau6[[#This Row],[Région administrative]]&\"]\"","v":"Havre-Saint-Pierre [Côte-Nord (09)]"}]
["Hébertville","Saguenay--Lac-Saint-Jean (02)",{"$f":"Tableau6[[#This Row],[Nom de municipalité]]&\" [\"&Tableau6[[#This Row],[Région administrative]]&\"]\"","v":"Hébertville [Saguenay--Lac-Saint-Jean (02)]"}]
["Hébertville-Station","Saguenay--Lac-Saint-Jean (02)",{"$f":"Tableau6[[#This Row],[Nom de municipalité]]&\" [\"&Tableau6[[#This Row],[Région administrative]]&\"]\"","v":"Hébertville-Station [Saguenay--Lac-Saint-Jean (02)]"}]
["Hemmingford","Montérégie (16)",{"$f":"Tableau6[[#This Row],[Nom de municipalité]]&\" [\"&Tableau6[[#This Row],[Région administrative]]&\"]\"","v":"Hemmingford [Montérégie (16)]"}]
["Hemmingford","Montérégie (16)",{"$f":"Tableau6[[#This Row],[Nom de municipalité]]&\" [\"&Tableau6[[#This Row],[Région administrative]]&\"]\"","v":"Hemmingford [Montérégie (16)]"}]
["Henryville","Montérégie (16)",{"$f":"Tableau6[[#This Row],[Nom de municipalité]]&\" [\"&Tableau6[[#This Row],[Région administrative]]&\"]\"","v":"Henryville [Montérégie (16)]"}]
["Hérouxville","Mauricie (04)",{"$f":"Tableau6[[#This Row],[Nom de municipalité]]&\" [\"&Tableau6[[#This Row],[Région administrative]]&\"]\"","v":"Hérouxville [Mauricie (04)]"}]
["Hinchinbrooke","Montérégie (16)",{"$f":"Tableau6[[#This Row],[Nom de municipalité]]&\" [\"&Tableau6[[#This Row],[Région administrative]]&\"]\"","v":"Hinchinbrooke [Montérégie (16)]"}]
["Honfleur","Chaudière-Appalaches (12)",{"$f":"Tableau6[[#This Row],[Nom de municipalité]]&\" [\"&Tableau6[[#This Row],[Région administrative]]&\"]\"","v":"Honfleur [Chaudière-Appalaches (12)]"}]
["Hope","Gaspésie--Îles-de-la-Madeleine (11)",{"$f":"Tableau6[[#This Row],[Nom de municipalité]]&\" [\"&Tableau6[[#This Row],[Région administrative]]&\"]\"","v":"Hope [Gaspésie--Îles-de-la-Madeleine (11)]"}]
["Hope Town","Gaspésie--Îles-de-la-Madeleine (11)",{"$f":"Tableau6[[#This Row],[Nom de municipalité]]&\" [\"&Tableau6[[#This Row],[Région administrative]]&\"]\"","v":"Hope Town [Gaspésie--Îles-de-la-Madeleine (11)]"}]
["Howick","Montérégie (16)",{"$f":"Tableau6[[#This Row],[Nom de municipalité]]&\" [\"&Tableau6[[#This Row],[Région administrative]]&\"]\"","v":"Howick [Montérégie (16)]"}]
["Huberdeau","Laurentides (15)",{"$f":"Tableau6[[#This Row],[Nom de municipalité]]&\" [\"&Tableau6[[#This Row],[Région administrative]]&\"]\"","v":"Huberdeau [Laurentides (15)]"}]
["Hudson","Montérégie (16)",{"$f":"Tableau6[[#This Row],[Nom de municipalité]]&\" [\"&Tableau6[[#This Row],[Région administrative]]&\"]\"","v":"Hudson [Montérégie (16)]"}]
["Huntingdon","Montérégie (16)",{"$f":"Tableau6[[#This Row],[Nom de municipalité]]&\" [\"&Tableau6[[#This Row],[Région administrative]]&\"]\"","v":"Huntingdon [Montérégie (16)]"}]
["Inukjuak","Nord-du-Québec (10)",{"$f":"Tableau6[[#This Row],[Nom de municipalité]]&\" [\"&Tableau6[[#This Row],[Région administrative]]&\"]\"","v":"Inukjuak [Nord-du-Québec (10)]"}]
["Inverness","Centre-du-Québec (17)",{"$f":"Tableau6[[#This Row],[Nom de municipalité]]&\" [\"&Tableau6[[#This Row],[Région administrative]]&\"]\"","v":"Inverness [Centre-du-Québec (17)]"}]
["Irlande","Chaudière-Appalaches (12)",{"$f":"Tableau6[[#This Row],[Nom de municipalité]]&\" [\"&Tableau6[[#This Row],[Région administrative]]&\"]\"","v":"Irlande [Chaudière-Appalaches (12)]"}]
["Ivry-sur-le-Lac","Laurentides (15)",{"$f":"Tableau6[[#This Row],[Nom de municipalité]]&\" [\"&Tableau6[[#This Row],[Région administrative]]&\"]\"","v":"Ivry-sur-le-Lac [Laurentides (15)]"}]
["Ivujivik","Nord-du-Québec (10)",{"$f":"Tableau6[[#This Row],[Nom de municipalité]]&\" [\"&Tableau6[[#This Row],[Région administrative]]&\"]\"","v":"Ivujivik [Nord-du-Québec (10)]"}]
["Joliette","Lanaudière (14)",{"$f":"Tableau6[[#This Row],[Nom de municipalité]]&\" [\"&Tableau6[[#This Row],[Région administrative]]&\"]\"","v":"Joliette [Lanaudière (14)]"}]
["Kamouraska","Bas-Saint-Laurent (01)",{"$f":"Tableau6[[#This Row],[Nom de municipalité]]&\" [\"&Tableau6[[#This Row],[Région administrative]]&\"]\"","v":"Kamouraska [Bas-Saint-Laurent (01)]"}]
["Kangiqsualujjuaq","Nord-du-Québec (10)",{"$f":"Tableau6[[#This Row],[Nom de municipalité]]&\" [\"&Tableau6[[#This Row],[Région administrative]]&\"]\"","v":"Kangiqsualujjuaq [Nord-du-Québec (10)]"}]
["Kangiqsujuaq","Nord-du-Québec (10)",{"$f":"Tableau6[[#This Row],[Nom de municipalité]]&\" [\"&Tableau6[[#This Row],[Région administrative]]&\"]\"","v":"Kangiqsujuaq [Nord-du-Québec (10)]"}]
["Kangirsuk","Nord-du-Québec (10)",{"$f":"Tableau6[[#This Row],[Nom de municipalité]]&\" [\"&Tableau6[[#This Row],[Région administrative]]&\"]\"","v":"Kangirsuk [Nord-du-Québec (10)]"}]
["Kawawachikamach","Côte-Nord (09)",{"$f":"Tableau6[[#This Row],[Nom de municipalité]]&\" [\"&Tableau6[[#This Row],[Région administrative]]&\"]\"","v":"Kawawachikamach [Côte-Nord (09)]"}]
["Kazabazua","Outaouais (07)",{"$f":"Tableau6[[#This Row],[Nom de municipalité]]&\" [\"&Tableau6[[#This Row],[Région administrative]]&\"]\"","v":"Kazabazua [Outaouais (07)]"}]
["Kiamika","Laurentides (15)",{"$f":"Tableau6[[#This Row],[Nom de municipalité]]&\" [\"&Tableau6[[#This Row],[Région administrative]]&\"]\"","v":"Kiamika [Laurentides (15)]"}]
["Kingsbury","Estrie (05)",{"$f":"Tableau6[[#This Row],[Nom de municipalité]]&\" [\"&Tableau6[[#This Row],[Région administrative]]&\"]\"","v":"Kingsbury [Estrie (05)]"}]
["Kingsey Falls","Centre-du-Québec (17)",{"$f":"Tableau6[[#This Row],[Nom de municipalité]]&\" [\"&Tableau6[[#This Row],[Région administrative]]&\"]\"","v":"Kingsey Falls [Centre-du-Québec (17)]"}]
["Kinnear's Mills","Chaudière-Appalaches (12)",{"$f":"Tableau6[[#This Row],[Nom de municipalité]]&\" [\"&Tableau6[[#This Row],[Région administrative]]&\"]\"","v":"Kinnear's Mills [Chaudière-Appalaches (12)]"}]
["Kipawa","Abitibi-Témiscamingue (08)",{"$f":"Tableau6[[#This Row],[Nom de municipalité]]&\" [\"&Tableau6[[#This Row],[Région administrative]]&\"]\"","v":"Kipawa [Abitibi-Témiscamingue (08)]"}]
["Kirkland","Montréal (06)",{"$f":"Tableau6[[#This Row],[Nom de municipalité]]&\" [\"&Tableau6[[#This Row],[Région administrative]]&\"]\"","v":"Kirkland [Montréal (06)]"}]
["Kuujjuaq","Nord-du-Québec (10)",{"$f":"Tableau6[[#This Row],[Nom de municipalité]]&\" [\"&Tableau6[[#This Row],[Région administrative]]&\"]\"","v":"Kuujjuaq [Nord-du-Québec (10)]"}]
["Kuujjuarapik","Nord-du-Québec (10)",{"$f":"Tableau6[[#This Row],[Nom de municipalité]]&\" [\"&Tableau6[[#This Row],[Région administrative]]&\"]\"","v":"Kuujjuarapik [Nord-du-Québec (10)]"}]
["La Bostonnais","Mauricie (04)",{"$f":"Tableau6[[#This Row],[Nom de municipalité]]&\" [\"&Tableau6[[#This Row],[Région administrative]]&\"]\"","v":"La Bostonnais [Mauricie (04)]"}]
["La Conception","Laurentides (15)",{"$f":"Tableau6[[#This Row],[Nom de municipalité]]&\" [\"&Tableau6[[#This Row],[Région administrative]]&\"]\"","v":"La Conception [Laurentides (15)]"}]
["La Corne","Abitibi-Témiscamingue (08)",{"$f":"Tableau6[[#This Row],[Nom de municipalité]]&\" [\"&Tableau6[[#This Row],[Région administrative]]&\"]\"","v":"La Corne [Abitibi-Témiscamingue (08)]"}]
["La Doré","Saguenay--Lac-Saint-Jean (02)",{"$f":"Tableau6[[#This Row],[Nom de municipalité]]&\" [\"&Tableau6[[#This Row],[Région administrative]]&\"]\"","v":"La Doré [Saguenay--Lac-Saint-Jean (02)]"}]
["La Durantaye","Chaudière-Appalaches (12)",{"$f":"Tableau6[[#This Row],[Nom de municipalité]]&\" [\"&Tableau6[[#This Row],[Région administrative]]&\"]\"","v":"La Durantaye [Chaudière-Appalaches (12)]"}]
["La Guadeloupe","Chaudière-Appalaches (12)",{"$f":"Tableau6[[#This Row],[Nom de municipalité]]&\" [\"&Tableau6[[#This Row],[Région administrative]]&\"]\"","v":"La Guadeloupe [Chaudière-Appalaches (12)]"}]
["La Macaza","Laurentides (15)",{"$f":"Tableau6[[#This Row],[Nom de municipalité]]&\" [\"&Tableau6[[#This Row],[Région administrative]]&\"]\"","v":"La Macaza [Laurentides (15)]"}]
["La Malbaie","Capitale-Nationale (03)",{"$f":"Tableau6[[#This Row],[Nom de municipalité]]&\" [\"&Tableau6[[#This Row],[Région administrative]]&\"]\"","v":"La Malbaie [Capitale-Nationale (03)]"}]
["La Martre","Gaspésie--Îles-de-la-Madeleine (11)",{"$f":"Tableau6[[#This Row],[Nom de municipalité]]&\" [\"&Tableau6[[#This Row],[Région administrative]]&\"]\"","v":"La Martre [Gaspésie--Îles-de-la-Madeleine (11)]"}]
["La Minerve","Laurentides (15)",{"$f":"Tableau6[[#This Row],[Nom de municipalité]]&\" [\"&Tableau6[[#This Row],[Région administrative]]&\"]\"","v":"La Minerve [Laurentides (15)]"}]
["La Morandière","Abitibi-Témiscamingue (08)",{"$f":"Tableau6[[#This Row],[Nom de municipalité]]&\" [\"&Tableau6[[#This Row],[Région administrative]]&\"]\"","v":"La Morandière [Abitibi-Témiscamingue (08)]"}]
["La Motte","Abitibi-Témiscamingue (08)",{"$f":"Tableau6[[#This Row],[Nom de municipalité]]&\" [\"&Tableau6[[#This Row],[Région administrative]]&\"]\"","v":"La Motte [Abitibi-Témiscamingue (08)]"}]
["La Patrie","Estrie (05)",{"$f":"Tableau6[[#This Row],[Nom de municipalité]]&\" [\"&Tableau6[[#This Row],[Région administrative]]&\"]\"","v":"La Patrie [Estrie (05)]"}]
["La Pêche","Outaouais (07)",{"$f":"Tableau6[[#This Row],[Nom de municipalité]]&\" [\"&Tableau6[[#This Row],[Région administrative]]&\"]\"","v":"La Pêche [Outaouais (07)]"}]
["La Pocatière","Bas-Saint-Laurent (01)",{"$f":"Tableau6[[#This Row],[Nom de municipalité]]&\" [\"&Tableau6[[#This Row],[Région administrative]]&\"]\"","v":"La Pocatière [Bas-Saint-Laurent (01)]"}]
["La Prairie","Montérégie (16)",{"$f":"Tableau6[[#This Row],[Nom de municipalité]]&\" [\"&Tableau6[[#This Row],[Région administrative]]&\"]\"","v":"La Prairie [Montérégie (16)]"}]
["La Présentation","Montérégie (16)",{"$f":"Tableau6[[#This Row],[Nom de municipalité]]&\" [\"&Tableau6[[#This Row],[Région administrative]]&\"]\"","v":"La Présentation [Montérégie (16)]"}]
["La Rédemption","Bas-Saint-Laurent (01)",{"$f":"Tableau6[[#This Row],[Nom de municipalité]]&\" [\"&Tableau6[[#This Row],[Région administrative]]&\"]\"","v":"La Rédemption [Bas-Saint-Laurent (01)]"}]
["La Reine","Abitibi-Témiscamingue (08)",{"$f":"Tableau6[[#This Row],[Nom de municipalité]]&\" [\"&Tableau6[[#This Row],[Région administrative]]&\"]\"","v":"La Reine [Abitibi-Témiscamingue (08)]"}]
["La Sarre","Abitibi-Témiscamingue (08)",{"$f":"Tableau6[[#This Row],[Nom de municipalité]]&\" [\"&Tableau6[[#This Row],[Région administrative]]&\"]\"","v":"La Sarre [Abitibi-Témiscamingue (08)]"}]
["La Trinité-des-Monts","Bas-Saint-Laurent (01)",{"$f":"Tableau6[[#This Row],[Nom de municipalité]]&\" [\"&Tableau6[[#This Row],[Région administrative]]&\"]\"","v":"La Trinité-des-Monts [Bas-Saint-Laurent (01)]"}]
["La Tuque","Mauricie (04)",{"$f":"Tableau6[[#This Row],[Nom de municipalité]]&\" [\"&Tableau6[[#This Row],[Région administrative]]&\"]\"","v":"La Tuque [Mauricie (04)]"}]
["La Visitation-de-l'Île-Dupas","Lanaudière (14)",{"$f":"Tableau6[[#This Row],[Nom de municipalité]]&\" [\"&Tableau6[[#This Row],[Région administrative]]&\"]\"","v":"La Visitation-de-l'Île-Dupas [Lanaudière (14)]"}]
["La Visitation-de-Yamaska","Centre-du-Québec (17)",{"$f":"Tableau6[[#This Row],[Nom de municipalité]]&\" [\"&Tableau6[[#This Row],[Région administrative]]&\"]\"","v":"La Visitation-de-Yamaska [Centre-du-Québec (17)]"}]
["Labelle","Laurentides (15)",{"$f":"Tableau6[[#This Row],[Nom de municipalité]]&\" [\"&Tableau6[[#This Row],[Région administrative]]&\"]\"","v":"Labelle [Laurentides (15)]"}]
["Labrecque","Saguenay--Lac-Saint-Jean (02)",{"$f":"Tableau6[[#This Row],[Nom de municipalité]]&\" [\"&Tableau6[[#This Row],[Région administrative]]&\"]\"","v":"Labrecque [Saguenay--Lac-Saint-Jean (02)]"}]
["Lac-au-Saumon","Bas-Saint-Laurent (01)",{"$f":"Tableau6[[#This Row],[Nom de municipalité]]&\" [\"&Tableau6[[#This Row],[Région administrative]]&\"]\"","v":"Lac-au-Saumon [Bas-Saint-Laurent (01)]"}]
["Lac-aux-Sables","Mauricie (04)",{"$f":"Tableau6[[#This Row],[Nom de municipalité]]&\" [\"&Tableau6[[#This Row],[Région administrative]]&\"]\"","v":"Lac-aux-Sables [Mauricie (04)]"}]
["Lac-Beauport","Capitale-Nationale (03)",{"$f":"Tableau6[[#This Row],[Nom de municipalité]]&\" [\"&Tableau6[[#This Row],[Région administrative]]&\"]\"","v":"Lac-Beauport [Capitale-Nationale (03)]"}]
["Lac-Bouchette","Saguenay--Lac-Saint-Jean (02)",{"$f":"Tableau6[[#This Row],[Nom de municipalité]]&\" [\"&Tableau6[[#This Row],[Région administrative]]&\"]\"","v":"Lac-Bouchette [Saguenay--Lac-Saint-Jean (02)]"}]
["Lac-Brome","Montérégie (16)",{"$f":"Tableau6[[#This Row],[Nom de municipalité]]&\" [\"&Tableau6[[#This Row],[Région administrative]]&\"]\"","v":"Lac-Brome [Montérégie (16)]"}]
["Lac-Delage","Capitale-Nationale (03)",{"$f":"Tableau6[[#This Row],[Nom de municipalité]]&\" [\"&Tableau6[[#This Row],[Région administrative]]&\"]\"","v":"Lac-Delage [Capitale-Nationale (03)]"}]
["Lac-des-Aigles","Bas-Saint-Laurent (01)",{"$f":"Tableau6[[#This Row],[Nom de municipalité]]&\" [\"&Tableau6[[#This Row],[Région administrative]]&\"]\"","v":"Lac-des-Aigles [Bas-Saint-Laurent (01)]"}]
["Lac-des-Écorces","Laurentides (15)",{"$f":"Tableau6[[#This Row],[Nom de municipalité]]&\" [\"&Tableau6[[#This Row],[Région administrative]]&\"]\"","v":"Lac-des-Écorces [Laurentides (15)]"}]
["Lac-des-Plages","Outaouais (07)",{"$f":"Tableau6[[#This Row],[Nom de municipalité]]&\" [\"&Tableau6[[#This Row],[Région administrative]]&\"]\"","v":"Lac-des-Plages [Outaouais (07)]"}]
["Lac-des-Seize-Îles","Laurentides (15)",{"$f":"Tableau6[[#This Row],[Nom de municipalité]]&\" [\"&Tableau6[[#This Row],[Région administrative]]&\"]\"","v":"Lac-des-Seize-Îles [Laurentides (15)]"}]
["Lac-Drolet","Estrie (05)",{"$f":"Tableau6[[#This Row],[Nom de municipalité]]&\" [\"&Tableau6[[#This Row],[Région administrative]]&\"]\"","v":"Lac-Drolet [Estrie (05)]"}]
["Lac-du-Cerf","Laurentides (15)",{"$f":"Tableau6[[#This Row],[Nom de municipalité]]&\" [\"&Tableau6[[#This Row],[Région administrative]]&\"]\"","v":"Lac-du-Cerf [Laurentides (15)]"}]
["Lac-Édouard","Mauricie (04)",{"$f":"Tableau6[[#This Row],[Nom de municipalité]]&\" [\"&Tableau6[[#This Row],[Région administrative]]&\"]\"","v":"Lac-Édouard [Mauricie (04)]"}]
["Lac-Etchemin","Chaudière-Appalaches (12)",{"$f":"Tableau6[[#This Row],[Nom de municipalité]]&\" [\"&Tableau6[[#This Row],[Région administrative]]&\"]\"","v":"Lac-Etchemin [Chaudière-Appalaches (12)]"}]
["Lac-Frontière","Chaudière-Appalaches (12)",{"$f":"Tableau6[[#This Row],[Nom de municipalité]]&\" [\"&Tableau6[[#This Row],[Région administrative]]&\"]\"","v":"Lac-Frontière [Chaudière-Appalaches (12)]"}]
["Lachute","Laurentides (15)",{"$f":"Tableau6[[#This Row],[Nom de municipalité]]&\" [\"&Tableau6[[#This Row],[Région administrative]]&\"]\"","v":"Lachute [Laurentides (15)]"}]
["Lac-Mégantic","Estrie (05)",{"$f":"Tableau6[[#This Row],[Nom de municipalité]]&\" [\"&Tableau6[[#This Row],[Région administrative]]&\"]\"","v":"Lac-Mégantic [Estrie (05)]"}]
["Lacolle","Montérégie (16)",{"$f":"Tableau6[[#This Row],[Nom de municipalité]]&\" [\"&Tableau6[[#This Row],[Région administrative]]&\"]\"","v":"Lacolle [Montérégie (16)]"}]
["Lac-Poulin","Chaudière-Appalaches (12)",{"$f":"Tableau6[[#This Row],[Nom de municipalité]]&\" [\"&Tableau6[[#This Row],[Région administrative]]&\"]\"","v":"Lac-Poulin [Chaudière-Appalaches (12)]"}]
["Lac-Saguay","Laurentides (15)",{"$f":"Tableau6[[#This Row],[Nom de municipalité]]&\" [\"&Tableau6[[#This Row],[Région administrative]]&\"]\"","v":"Lac-Saguay [Laurentides (15)]"}]
["Lac-Sainte-Marie","Outaouais (07)",{"$f":"Tableau6[[#This Row],[Nom de municipalité]]&\" [\"&Tableau6[[#This Row],[Région administrative]]&\"]\"","v":"Lac-Sainte-Marie [Outaouais (07)]"}]
["Lac-Saint-Joseph","Capitale-Nationale (03)",{"$f":"Tableau6[[#This Row],[Nom de municipalité]]&\" [\"&Tableau6[[#This Row],[Région administrative]]&\"]\"","v":"Lac-Saint-Joseph [Capitale-Nationale (03)]"}]
["Lac-Saint-Paul","Laurentides (15)",{"$f":"Tableau6[[#This Row],[Nom de municipalité]]&\" [\"&Tableau6[[#This Row],[Région administrative]]&\"]\"","v":"Lac-Saint-Paul [Laurentides (15)]"}]
["Lac-Sergent","Capitale-Nationale (03)",{"$f":"Tableau6[[#This Row],[Nom de municipalité]]&\" [\"&Tableau6[[#This Row],[Région administrative]]&\"]\"","v":"Lac-Sergent [Capitale-Nationale (03)]"}]
["Lac-Simon","Outaouais (07)",{"$f":"Tableau6[[#This Row],[Nom de municipalité]]&\" [\"&Tableau6[[#This Row],[Région administrative]]&\"]\"","v":"Lac-Simon [Outaouais (07)]"}]
["Lac-Supérieur","Laurentides (15)",{"$f":"Tableau6[[#This Row],[Nom de municipalité]]&\" [\"&Tableau6[[#This Row],[Région administrative]]&\"]\"","v":"Lac-Supérieur [Laurentides (15)]"}]
["Lac-Tremblant-Nord","Laurentides (15)",{"$f":"Tableau6[[#This Row],[Nom de municipalité]]&\" [\"&Tableau6[[#This Row],[Région administrative]]&\"]\"","v":"Lac-Tremblant-Nord [Laurentides (15)]"}]
["Laforce","Abitibi-Témiscamingue (08)",{"$f":"Tableau6[[#This Row],[Nom de municipalité]]&\" [\"&Tableau6[[#This Row],[Région administrative]]&\"]\"","v":"Laforce [Abitibi-Témiscamingue (08)]"}]
["Lamarche","Saguenay--Lac-Saint-Jean (02)",{"$f":"Tableau6[[#This Row],[Nom de municipalité]]&\" [\"&Tableau6[[#This Row],[Région administrative]]&\"]\"","v":"Lamarche [Saguenay--Lac-Saint-Jean (02)]"}]
["Lambton","Estrie (05)",{"$f":"Tableau6[[#This Row],[Nom de municipalité]]&\" [\"&Tableau6[[#This Row],[Région administrative]]&\"]\"","v":"Lambton [Estrie (05)]"}]
["L'Ancienne-Lorette","Capitale-Nationale (03)",{"$f":"Tableau6[[#This Row],[Nom de municipalité]]&\" [\"&Tableau6[[#This Row],[Région administrative]]&\"]\"","v":"L'Ancienne-Lorette [Capitale-Nationale (03)]"}]
["Landrienne","Abitibi-Témiscamingue (08)",{"$f":"Tableau6[[#This Row],[Nom de municipalité]]&\" [\"&Tableau6[[#This Row],[Région administrative]]&\"]\"","v":"Landrienne [Abitibi-Témiscamingue (08)]"}]
["L'Ange-Gardien","Capitale-Nationale (03)",{"$f":"Tableau6[[#This Row],[Nom de municipalité]]&\" [\"&Tableau6[[#This Row],[Région administrative]]&\"]\"","v":"L'Ange-Gardien [Capitale-Nationale (03)]"}]
["L'Ange-Gardien","Outaouais (07)",{"$f":"Tableau6[[#This Row],[Nom de municipalité]]&\" [\"&Tableau6[[#This Row],[Région administrative]]&\"]\"","v":"L'Ange-Gardien [Outaouais (07)]"}]
["Lanoraie","Lanaudière (14)",{"$f":"Tableau6[[#This Row],[Nom de municipalité]]&\" [\"&Tableau6[[#This Row],[Région administrative]]&\"]\"","v":"Lanoraie [Lanaudière (14)]"}]
["L'Anse-Saint-Jean","Saguenay--Lac-Saint-Jean (02)",{"$f":"Tableau6[[#This Row],[Nom de municipalité]]&\" [\"&Tableau6[[#This Row],[Région administrative]]&\"]\"","v":"L'Anse-Saint-Jean [Saguenay--Lac-Saint-Jean (02)]"}]
["Lantier","Laurentides (15)",{"$f":"Tableau6[[#This Row],[Nom de municipalité]]&\" [\"&Tableau6[[#This Row],[Région administrative]]&\"]\"","v":"Lantier [Laurentides (15)]"}]
["Larouche","Saguenay--Lac-Saint-Jean (02)",{"$f":"Tableau6[[#This Row],[Nom de municipalité]]&\" [\"&Tableau6[[#This Row],[Région administrative]]&\"]\"","v":"Larouche [Saguenay--Lac-Saint-Jean (02)]"}]
["L'Ascension","Laurentides (15)",{"$f":"Tableau6[[#This Row],[Nom de municipalité]]&\" [\"&Tableau6[[#This Row],[Région administrative]]&\"]\"","v":"L'Ascension [Laurentides (15)]"}]
["L'Ascension-de-Notre-Seigneur","Saguenay--Lac-Saint-Jean (02)",{"$f":"Tableau6[[#This Row],[Nom de municipalité]]&\" [\"&Tableau6[[#This Row],[Région administrative]]&\"]\"","v":"L'Ascension-de-Notre-Seigneur [Saguenay--Lac-Saint-Jean (02)]"}]
["L'Ascension-de-Patapédia","Gaspésie--Îles-de-la-Madeleine (11)",{"$f":"Tableau6[[#This Row],[Nom de municipalité]]&\" [\"&Tableau6[[#This Row],[Région administrative]]&\"]\"","v":"L'Ascension-de-Patapédia [Gaspésie--Îles-de-la-Madeleine (11)]"}]
["L'Assomption","Lanaudière (14)",{"$f":"Tableau6[[#This Row],[Nom de municipalité]]&\" [\"&Tableau6[[#This Row],[Région administrative]]&\"]\"","v":"L'Assomption [Lanaudière (14)]"}]
["Latulipe-et-Gaboury","Abitibi-Témiscamingue (08)",{"$f":"Tableau6[[#This Row],[Nom de municipalité]]&\" [\"&Tableau6[[#This Row],[Région administrative]]&\"]\"","v":"Latulipe-et-Gaboury [Abitibi-Témiscamingue (08)]"}]
["Launay","Abitibi-Témiscamingue (08)",{"$f":"Tableau6[[#This Row],[Nom de municipalité]]&\" [\"&Tableau6[[#This Row],[Région administrative]]&\"]\"","v":"Launay [Abitibi-Témiscamingue (08)]"}]
["Laurier-Station","Chaudière-Appalaches (12)",{"$f":"Tableau6[[#This Row],[Nom de municipalité]]&\" [\"&Tableau6[[#This Row],[Région administrative]]&\"]\"","v":"Laurier-Station [Chaudière-Appalaches (12)]"}]
["Laurierville","Centre-du-Québec (17)",{"$f":"Tableau6[[#This Row],[Nom de municipalité]]&\" [\"&Tableau6[[#This Row],[Région administrative]]&\"]\"","v":"Laurierville [Centre-du-Québec (17)]"}]
["Laval","Laval (13)",{"$f":"Tableau6[[#This Row],[Nom de municipalité]]&\" [\"&Tableau6[[#This Row],[Région administrative]]&\"]\"","v":"Laval [Laval (13)]"}]
["Lavaltrie","Lanaudière (14)",{"$f":"Tableau6[[#This Row],[Nom de municipalité]]&\" [\"&Tableau6[[#This Row],[Région administrative]]&\"]\"","v":"Lavaltrie [Lanaudière (14)]"}]
["L'Avenir","Centre-du-Québec (17)",{"$f":"Tableau6[[#This Row],[Nom de municipalité]]&\" [\"&Tableau6[[#This Row],[Région administrative]]&\"]\"","v":"L'Avenir [Centre-du-Québec (17)]"}]
["Laverlochère","Abitibi-Témiscamingue (08)",{"$f":"Tableau6[[#This Row],[Nom de municipalité]]&\" [\"&Tableau6[[#This Row],[Région administrative]]&\"]\"","v":"Laverlochère [Abitibi-Témiscamingue (08)]"}]
["Lawrenceville","Estrie (05)",{"$f":"Tableau6[[#This Row],[Nom de municipalité]]&\" [\"&Tableau6[[#This Row],[Région administrative]]&\"]\"","v":"Lawrenceville [Estrie (05)]"}]
["Lebel-sur-Quévillon","Nord-du-Québec (10)",{"$f":"Tableau6[[#This Row],[Nom de municipalité]]&\" [\"&Tableau6[[#This Row],[Région administrative]]&\"]\"","v":"Lebel-sur-Quévillon [Nord-du-Québec (10)]"}]
["Leclercville","Chaudière-Appalaches (12)",{"$f":"Tableau6[[#This Row],[Nom de municipalité]]&\" [\"&Tableau6[[#This Row],[Région administrative]]&\"]\"","v":"Leclercville [Chaudière-Appalaches (12)]"}]
["Lefebvre","Centre-du-Québec (17)",{"$f":"Tableau6[[#This Row],[Nom de municipalité]]&\" [\"&Tableau6[[#This Row],[Région administrative]]&\"]\"","v":"Lefebvre [Centre-du-Québec (17)]"}]
["Lejeune","Bas-Saint-Laurent (01)",{"$f":"Tableau6[[#This Row],[Nom de municipalité]]&\" [\"&Tableau6[[#This Row],[Région administrative]]&\"]\"","v":"Lejeune [Bas-Saint-Laurent (01)]"}]
["Lemieux","Centre-du-Québec (17)",{"$f":"Tableau6[[#This Row],[Nom de municipalité]]&\" [\"&Tableau6[[#This Row],[Région administrative]]&\"]\"","v":"Lemieux [Centre-du-Québec (17)]"}]
["L'Épiphanie","Lanaudière (14)",{"$f":"Tableau6[[#This Row],[Nom de municipalité]]&\" [\"&Tableau6[[#This Row],[Région administrative]]&\"]\"","v":"L'Épiphanie [Lanaudière (14)]"}]
["L'Épiphanie","Lanaudière (14)",{"$f":"Tableau6[[#This Row],[Nom de municipalité]]&\" [\"&Tableau6[[#This Row],[Région administrative]]&\"]\"","v":"L'Épiphanie [Lanaudière (14)]"}]
["Léry","Montérégie (16)",{"$f":"Tableau6[[#This Row],[Nom de municipalité]]&\" [\"&Tableau6[[#This Row],[Région administrative]]&\"]\"","v":"Léry [Montérégie (16)]"}]
["Les Bergeronnes","Côte-Nord (09)",{"$f":"Tableau6[[#This Row],[Nom de municipalité]]&\" [\"&Tableau6[[#This Row],[Région administrative]]&\"]\"","v":"Les Bergeronnes [Côte-Nord (09)]"}]
["Les Cèdres","Montérégie (16)",{"$f":"Tableau6[[#This Row],[Nom de municipalité]]&\" [\"&Tableau6[[#This Row],[Région administrative]]&\"]\"","v":"Les Cèdres [Montérégie (16)]"}]
["Les Coteaux","Montérégie (16)",{"$f":"Tableau6[[#This Row],[Nom de municipalité]]&\" [\"&Tableau6[[#This Row],[Région administrative]]&\"]\"","v":"Les Coteaux [Montérégie (16)]"}]
["Les Éboulements","Capitale-Nationale (03)",{"$f":"Tableau6[[#This Row],[Nom de municipalité]]&\" [\"&Tableau6[[#This Row],[Région administrative]]&\"]\"","v":"Les Éboulements [Capitale-Nationale (03)]"}]
["Les Escoumins","Côte-Nord (09)",{"$f":"Tableau6[[#This Row],[Nom de municipalité]]&\" [\"&Tableau6[[#This Row],[Région administrative]]&\"]\"","v":"Les Escoumins [Côte-Nord (09)]"}]
["Les Hauteurs","Bas-Saint-Laurent (01)",{"$f":"Tableau6[[#This Row],[Nom de municipalité]]&\" [\"&Tableau6[[#This Row],[Région administrative]]&\"]\"","v":"Les Hauteurs [Bas-Saint-Laurent (01)]"}]
["Les Îles-de-la-Madeleine","Gaspésie--Îles-de-la-Madeleine (11)",{"$f":"Tableau6[[#This Row],[Nom de municipalité]]&\" [\"&Tableau6[[#This Row],[Région administrative]]&\"]\"","v":"Les Îles-de-la-Madeleine [Gaspésie--Îles-de-la-Madeleine (11)]"}]
["Les Méchins","Bas-Saint-Laurent (01)",{"$f":"Tableau6[[#This Row],[Nom de municipalité]]&\" [\"&Tableau6[[#This Row],[Région administrative]]&\"]\"","v":"Les Méchins [Bas-Saint-Laurent (01)]"}]
["Lévis","Chaudière-Appalaches (12)",{"$f":"Tableau6[[#This Row],[Nom de municipalité]]&\" [\"&Tableau6[[#This Row],[Région administrative]]&\"]\"","v":"Lévis [Chaudière-Appalaches (12)]"}]
["L'Île-Cadieux","Montérégie (16)",{"$f":"Tableau6[[#This Row],[Nom de municipalité]]&\" [\"&Tableau6[[#This Row],[Région administrative]]&\"]\"","v":"L'Île-Cadieux [Montérégie (16)]"}]
["L'Île-d'Anticosti","Côte-Nord (09)",{"$f":"Tableau6[[#This Row],[Nom de municipalité]]&\" [\"&Tableau6[[#This Row],[Région administrative]]&\"]\"","v":"L'Île-d'Anticosti [Côte-Nord (09)]"}]
["L'Île-Dorval","Montréal (06)",{"$f":"Tableau6[[#This Row],[Nom de municipalité]]&\" [\"&Tableau6[[#This Row],[Région administrative]]&\"]\"","v":"L'Île-Dorval [Montréal (06)]"}]
["L'Île-du-Grand-Calumet","Outaouais (07)",{"$f":"Tableau6[[#This Row],[Nom de municipalité]]&\" [\"&Tableau6[[#This Row],[Région administrative]]&\"]\"","v":"L'Île-du-Grand-Calumet [Outaouais (07)]"}]
["L'Île-Perrot","Montérégie (16)",{"$f":"Tableau6[[#This Row],[Nom de municipalité]]&\" [\"&Tableau6[[#This Row],[Région administrative]]&\"]\"","v":"L'Île-Perrot [Montérégie (16)]"}]
["Lingwick","Estrie (05)",{"$f":"Tableau6[[#This Row],[Nom de municipalité]]&\" [\"&Tableau6[[#This Row],[Région administrative]]&\"]\"","v":"Lingwick [Estrie (05)]"}]
["L'Isle-aux-Allumettes","Outaouais (07)",{"$f":"Tableau6[[#This Row],[Nom de municipalité]]&\" [\"&Tableau6[[#This Row],[Région administrative]]&\"]\"","v":"L'Isle-aux-Allumettes [Outaouais (07)]"}]
["L'Isle-aux-Coudres","Capitale-Nationale (03)",{"$f":"Tableau6[[#This Row],[Nom de municipalité]]&\" [\"&Tableau6[[#This Row],[Région administrative]]&\"]\"","v":"L'Isle-aux-Coudres [Capitale-Nationale (03)]"}]
["L'Islet","Chaudière-Appalaches (12)",{"$f":"Tableau6[[#This Row],[Nom de municipalité]]&\" [\"&Tableau6[[#This Row],[Région administrative]]&\"]\"","v":"L'Islet [Chaudière-Appalaches (12)]"}]
["L'Isle-Verte","Bas-Saint-Laurent (01)",{"$f":"Tableau6[[#This Row],[Nom de municipalité]]&\" [\"&Tableau6[[#This Row],[Région administrative]]&\"]\"","v":"L'Isle-Verte [Bas-Saint-Laurent (01)]"}]
["Litchfield","Outaouais (07)",{"$f":"Tableau6[[#This Row],[Nom de municipalité]]&\" [\"&Tableau6[[#This Row],[Région administrative]]&\"]\"","v":"Litchfield [Outaouais (07)]"}]
["Lochaber","Outaouais (07)",{"$f":"Tableau6[[#This Row],[Nom de municipalité]]&\" [\"&Tableau6[[#This Row],[Région administrative]]&\"]\"","v":"Lochaber [Outaouais (07)]"}]
["Lochaber-Partie-Ouest","Outaouais (07)",{"$f":"Tableau6[[#This Row],[Nom de municipalité]]&\" [\"&Tableau6[[#This Row],[Région administrative]]&\"]\"","v":"Lochaber-Partie-Ouest [Outaouais (07)]"}]
["Longue-Pointe-de-Mingan","Côte-Nord (09)",{"$f":"Tableau6[[#This Row],[Nom de municipalité]]&\" [\"&Tableau6[[#This Row],[Région administrative]]&\"]\"","v":"Longue-Pointe-de-Mingan [Côte-Nord (09)]"}]
["Longue-Rive","Côte-Nord (09)",{"$f":"Tableau6[[#This Row],[Nom de municipalité]]&\" [\"&Tableau6[[#This Row],[Région administrative]]&\"]\"","v":"Longue-Rive [Côte-Nord (09)]"}]
["Longueuil","Montérégie (16)",{"$f":"Tableau6[[#This Row],[Nom de municipalité]]&\" [\"&Tableau6[[#This Row],[Région administrative]]&\"]\"","v":"Longueuil [Montérégie (16)]"}]
["Lorraine","Laurentides (15)",{"$f":"Tableau6[[#This Row],[Nom de municipalité]]&\" [\"&Tableau6[[#This Row],[Région administrative]]&\"]\"","v":"Lorraine [Laurentides (15)]"}]
["Lorrainville","Abitibi-Témiscamingue (08)",{"$f":"Tableau6[[#This Row],[Nom de municipalité]]&\" [\"&Tableau6[[#This Row],[Région administrative]]&\"]\"","v":"Lorrainville [Abitibi-Témiscamingue (08)]"}]
["Lotbinière","Chaudière-Appalaches (12)",{"$f":"Tableau6[[#This Row],[Nom de municipalité]]&\" [\"&Tableau6[[#This Row],[Région administrative]]&\"]\"","v":"Lotbinière [Chaudière-Appalaches (12)]"}]
["Louiseville","Mauricie (04)",{"$f":"Tableau6[[#This Row],[Nom de municipalité]]&\" [\"&Tableau6[[#This Row],[Région administrative]]&\"]\"","v":"Louiseville [Mauricie (04)]"}]
["Low","Outaouais (07)",{"$f":"Tableau6[[#This Row],[Nom de municipalité]]&\" [\"&Tableau6[[#This Row],[Région administrative]]&\"]\"","v":"Low [Outaouais (07)]"}]
["Lyster","Centre-du-Québec (17)",{"$f":"Tableau6[[#This Row],[Nom de municipalité]]&\" [\"&Tableau6[[#This Row],[Région administrative]]&\"]\"","v":"Lyster [Centre-du-Québec (17)]"}]
["Macamic","Abitibi-Témiscamingue (08)",{"$f":"Tableau6[[#This Row],[Nom de municipalité]]&\" [\"&Tableau6[[#This Row],[Région administrative]]&\"]\"","v":"Macamic [Abitibi-Témiscamingue (08)]"}]
["Maddington Falls","Centre-du-Québec (17)",{"$f":"Tableau6[[#This Row],[Nom de municipalité]]&\" [\"&Tableau6[[#This Row],[Région administrative]]&\"]\"","v":"Maddington Falls [Centre-du-Québec (17)]"}]
["Magog","Estrie (05)",{"$f":"Tableau6[[#This Row],[Nom de municipalité]]&\" [\"&Tableau6[[#This Row],[Région administrative]]&\"]\"","v":"Magog [Estrie (05)]"}]
["Malartic","Abitibi-Témiscamingue (08)",{"$f":"Tableau6[[#This Row],[Nom de municipalité]]&\" [\"&Tableau6[[#This Row],[Région administrative]]&\"]\"","v":"Malartic [Abitibi-Témiscamingue (08)]"}]
["Mandeville","Lanaudière (14)",{"$f":"Tableau6[[#This Row],[Nom de municipalité]]&\" [\"&Tableau6[[#This Row],[Région administrative]]&\"]\"","v":"Mandeville [Lanaudière (14)]"}]
["Maniwaki","Outaouais (07)",{"$f":"Tableau6[[#This Row],[Nom de municipalité]]&\" [\"&Tableau6[[#This Row],[Région administrative]]&\"]\"","v":"Maniwaki [Outaouais (07)]"}]
["Manseau","Centre-du-Québec (17)",{"$f":"Tableau6[[#This Row],[Nom de municipalité]]&\" [\"&Tableau6[[#This Row],[Région administrative]]&\"]\"","v":"Manseau [Centre-du-Québec (17)]"}]
["Mansfield-et-Pontefract","Outaouais (07)",{"$f":"Tableau6[[#This Row],[Nom de municipalité]]&\" [\"&Tableau6[[#This Row],[Région administrative]]&\"]\"","v":"Mansfield-et-Pontefract [Outaouais (07)]"}]
["Maria","Gaspésie--Îles-de-la-Madeleine (11)",{"$f":"Tableau6[[#This Row],[Nom de municipalité]]&\" [\"&Tableau6[[#This Row],[Région administrative]]&\"]\"","v":"Maria [Gaspésie--Îles-de-la-Madeleine (11)]"}]
["Maricourt","Estrie (05)",{"$f":"Tableau6[[#This Row],[Nom de municipalité]]&\" [\"&Tableau6[[#This Row],[Région administrative]]&\"]\"","v":"Maricourt [Estrie (05)]"}]
["Marieville","Montérégie (16)",{"$f":"Tableau6[[#This Row],[Nom de municipalité]]&\" [\"&Tableau6[[#This Row],[Région administrative]]&\"]\"","v":"Marieville [Montérégie (16)]"}]
["Marsoui","Gaspésie--Îles-de-la-Madeleine (11)",{"$f":"Tableau6[[#This Row],[Nom de municipalité]]&\" [\"&Tableau6[[#This Row],[Région administrative]]&\"]\"","v":"Marsoui [Gaspésie--Îles-de-la-Madeleine (11)]"}]
["Marston","Estrie (05)",{"$f":"Tableau6[[#This Row],[Nom de municipalité]]&\" [\"&Tableau6[[#This Row],[Région administrative]]&\"]\"","v":"Marston [Estrie (05)]"}]
["Martinville","Estrie (05)",{"$f":"Tableau6[[#This Row],[Nom de municipalité]]&\" [\"&Tableau6[[#This Row],[Région administrative]]&\"]\"","v":"Martinville [Estrie (05)]"}]
["Mascouche","Lanaudière (14)",{"$f":"Tableau6[[#This Row],[Nom de municipalité]]&\" [\"&Tableau6[[#This Row],[Région administrative]]&\"]\"","v":"Mascouche [Lanaudière (14)]"}]
["Maskinongé","Mauricie (04)",{"$f":"Tableau6[[#This Row],[Nom de municipalité]]&\" [\"&Tableau6[[#This Row],[Région administrative]]&\"]\"","v":"Maskinongé [Mauricie (04)]"}]
["Massueville","Montérégie (16)",{"$f":"Tableau6[[#This Row],[Nom de municipalité]]&\" [\"&Tableau6[[#This Row],[Région administrative]]&\"]\"","v":"Massueville [Montérégie (16)]"}]
["Matagami","Nord-du-Québec (10)",{"$f":"Tableau6[[#This Row],[Nom de municipalité]]&\" [\"&Tableau6[[#This Row],[Région administrative]]&\"]\"","v":"Matagami [Nord-du-Québec (10)]"}]
["Matane","Bas-Saint-Laurent (01)",{"$f":"Tableau6[[#This Row],[Nom de municipalité]]&\" [\"&Tableau6[[#This Row],[Région administrative]]&\"]\"","v":"Matane [Bas-Saint-Laurent (01)]"}]
["Matapédia","Gaspésie--Îles-de-la-Madeleine (11)",{"$f":"Tableau6[[#This Row],[Nom de municipalité]]&\" [\"&Tableau6[[#This Row],[Région administrative]]&\"]\"","v":"Matapédia [Gaspésie--Îles-de-la-Madeleine (11)]"}]
["Mayo","Outaouais (07)",{"$f":"Tableau6[[#This Row],[Nom de municipalité]]&\" [\"&Tableau6[[#This Row],[Région administrative]]&\"]\"","v":"Mayo [Outaouais (07)]"}]
["McMasterville","Montérégie (16)",{"$f":"Tableau6[[#This Row],[Nom de municipalité]]&\" [\"&Tableau6[[#This Row],[Région administrative]]&\"]\"","v":"McMasterville [Montérégie (16)]"}]
["Melbourne","Estrie (05)",{"$f":"Tableau6[[#This Row],[Nom de municipalité]]&\" [\"&Tableau6[[#This Row],[Région administrative]]&\"]\"","v":"Melbourne [Estrie (05)]"}]
["Mercier","Montérégie (16)",{"$f":"Tableau6[[#This Row],[Nom de municipalité]]&\" [\"&Tableau6[[#This Row],[Région administrative]]&\"]\"","v":"Mercier [Montérégie (16)]"}]
["Messines","Outaouais (07)",{"$f":"Tableau6[[#This Row],[Nom de municipalité]]&\" [\"&Tableau6[[#This Row],[Région administrative]]&\"]\"","v":"Messines [Outaouais (07)]"}]
["Métabetchouan--Lac-à-la-Croix","Saguenay--Lac-Saint-Jean (02)",{"$f":"Tableau6[[#This Row],[Nom de municipalité]]&\" [\"&Tableau6[[#This Row],[Région administrative]]&\"]\"","v":"Métabetchouan--Lac-à-la-Croix [Saguenay--Lac-Saint-Jean (02)]"}]
["Métis-sur-Mer","Bas-Saint-Laurent (01)",{"$f":"Tableau6[[#This Row],[Nom de municipalité]]&\" [\"&Tableau6[[#This Row],[Région administrative]]&\"]\"","v":"Métis-sur-Mer [Bas-Saint-Laurent (01)]"}]
["Milan","Estrie (05)",{"$f":"Tableau6[[#This Row],[Nom de municipalité]]&\" [\"&Tableau6[[#This Row],[Région administrative]]&\"]\"","v":"Milan [Estrie (05)]"}]
["Mille-Isles","Laurentides (15)",{"$f":"Tableau6[[#This Row],[Nom de municipalité]]&\" [\"&Tableau6[[#This Row],[Région administrative]]&\"]\"","v":"Mille-Isles [Laurentides (15)]"}]
["Mirabel","Laurentides (15)",{"$f":"Tableau6[[#This Row],[Nom de municipalité]]&\" [\"&Tableau6[[#This Row],[Région administrative]]&\"]\"","v":"Mirabel [Laurentides (15)]"}]
["Mistissini","Nord-du-Québec (10)",{"$f":"Tableau6[[#This Row],[Nom de municipalité]]&\" [\"&Tableau6[[#This Row],[Région administrative]]&\"]\"","v":"Mistissini [Nord-du-Québec (10)]"}]
["Moffet","Abitibi-Témiscamingue (08)",{"$f":"Tableau6[[#This Row],[Nom de municipalité]]&\" [\"&Tableau6[[#This Row],[Région administrative]]&\"]\"","v":"Moffet [Abitibi-Témiscamingue (08)]"}]
["Montcalm","Laurentides (15)",{"$f":"Tableau6[[#This Row],[Nom de municipalité]]&\" [\"&Tableau6[[#This Row],[Région administrative]]&\"]\"","v":"Montcalm [Laurentides (15)]"}]
["Mont-Carmel","Bas-Saint-Laurent (01)",{"$f":"Tableau6[[#This Row],[Nom de municipalité]]&\" [\"&Tableau6[[#This Row],[Région administrative]]&\"]\"","v":"Mont-Carmel [Bas-Saint-Laurent (01)]"}]
["Montcerf-Lytton","Outaouais (07)",{"$f":"Tableau6[[#This Row],[Nom de municipalité]]&\" [\"&Tableau6[[#This Row],[Région administrative]]&\"]\"","v":"Montcerf-Lytton [Outaouais (07)]"}]
["Montebello","Outaouais (07)",{"$f":"Tableau6[[#This Row],[Nom de municipalité]]&\" [\"&Tableau6[[#This Row],[Région administrative]]&\"]\"","v":"Montebello [Outaouais (07)]"}]
["Mont-Joli","Bas-Saint-Laurent (01)",{"$f":"Tableau6[[#This Row],[Nom de municipalité]]&\" [\"&Tableau6[[#This Row],[Région administrative]]&\"]\"","v":"Mont-Joli [Bas-Saint-Laurent (01)]"}]
["Mont-Laurier","Laurentides (15)",{"$f":"Tableau6[[#This Row],[Nom de municipalité]]&\" [\"&Tableau6[[#This Row],[Région administrative]]&\"]\"","v":"Mont-Laurier [Laurentides (15)]"}]
["Montmagny","Chaudière-Appalaches (12)",{"$f":"Tableau6[[#This Row],[Nom de municipalité]]&\" [\"&Tableau6[[#This Row],[Région administrative]]&\"]\"","v":"Montmagny [Chaudière-Appalaches (12)]"}]
["Montpellier","Outaouais (07)",{"$f":"Tableau6[[#This Row],[Nom de municipalité]]&\" [\"&Tableau6[[#This Row],[Région administrative]]&\"]\"","v":"Montpellier [Outaouais (07)]"}]
["Montréal","Montréal (06)",{"$f":"Tableau6[[#This Row],[Nom de municipalité]]&\" [\"&Tableau6[[#This Row],[Région administrative]]&\"]\"","v":"Montréal [Montréal (06)]"}]
["Montréal-Est","Montréal (06)",{"$f":"Tableau6[[#This Row],[Nom de municipalité]]&\" [\"&Tableau6[[#This Row],[Région administrative]]&\"]\"","v":"Montréal-Est [Montréal (06)]"}]
["Montréal-Ouest","Montréal (06)",{"$f":"Tableau6[[#This Row],[Nom de municipalité]]&\" [\"&Tableau6[[#This Row],[Région administrative]]&\"]\"","v":"Montréal-Ouest [Montréal (06)]"}]
["Mont-Royal","Montréal (06)",{"$f":"Tableau6[[#This Row],[Nom de municipalité]]&\" [\"&Tableau6[[#This Row],[Région administrative]]&\"]\"","v":"Mont-Royal [Montréal (06)]"}]
["Mont-Saint-Grégoire","Montérégie (16)",{"$f":"Tableau6[[#This Row],[Nom de municipalité]]&\" [\"&Tableau6[[#This Row],[Région administrative]]&\"]\"","v":"Mont-Saint-Grégoire [Montérégie (16)]"}]
["Mont-Saint-Hilaire","Montérégie (16)",{"$f":"Tableau6[[#This Row],[Nom de municipalité]]&\" [\"&Tableau6[[#This Row],[Région administrative]]&\"]\"","v":"Mont-Saint-Hilaire [Montérégie (16)]"}]
["Mont-Saint-Michel","Laurentides (15)",{"$f":"Tableau6[[#This Row],[Nom de municipalité]]&\" [\"&Tableau6[[#This Row],[Région administrative]]&\"]\"","v":"Mont-Saint-Michel [Laurentides (15)]"}]
["Mont-Saint-Pierre","Gaspésie--Îles-de-la-Madeleine (11)",{"$f":"Tableau6[[#This Row],[Nom de municipalité]]&\" [\"&Tableau6[[#This Row],[Région administrative]]&\"]\"","v":"Mont-Saint-Pierre [Gaspésie--Îles-de-la-Madeleine (11)]"}]
["Mont-Tremblant","Laurentides (15)",{"$f":"Tableau6[[#This Row],[Nom de municipalité]]&\" [\"&Tableau6[[#This Row],[Région administrative]]&\"]\"","v":"Mont-Tremblant [Laurentides (15)]"}]
["Morin-Heights","Laurentides (15)",{"$f":"Tableau6[[#This Row],[Nom de municipalité]]&\" [\"&Tableau6[[#This Row],[Région administrative]]&\"]\"","v":"Morin-Heights [Laurentides (15)]"}]
["Mulgrave-et-Derry","Outaouais (07)",{"$f":"Tableau6[[#This Row],[Nom de municipalité]]&\" [\"&Tableau6[[#This Row],[Région administrative]]&\"]\"","v":"Mulgrave-et-Derry [Outaouais (07)]"}]
["Murdochville","Gaspésie--Îles-de-la-Madeleine (11)",{"$f":"Tableau6[[#This Row],[Nom de municipalité]]&\" [\"&Tableau6[[#This Row],[Région administrative]]&\"]\"","v":"Murdochville [Gaspésie--Îles-de-la-Madeleine (11)]"}]
["Namur","Outaouais (07)",{"$f":"Tableau6[[#This Row],[Nom de municipalité]]&\" [\"&Tableau6[[#This Row],[Région administrative]]&\"]\"","v":"Namur [Outaouais (07)]"}]
["Nantes","Estrie (05)",{"$f":"Tableau6[[#This Row],[Nom de municipalité]]&\" [\"&Tableau6[[#This Row],[Région administrative]]&\"]\"","v":"Nantes [Estrie (05)]"}]
["Napierville","Montérégie (16)",{"$f":"Tableau6[[#This Row],[Nom de municipalité]]&\" [\"&Tableau6[[#This Row],[Région administrative]]&\"]\"","v":"Napierville [Montérégie (16)]"}]
["Natashquan","Côte-Nord (09)",{"$f":"Tableau6[[#This Row],[Nom de municipalité]]&\" [\"&Tableau6[[#This Row],[Région administrative]]&\"]\"","v":"Natashquan [Côte-Nord (09)]"}]
["N-Dame-Auxiliatrice-Buckland","Chaudière-Appalaches (12)",{"$f":"Tableau6[[#This Row],[Nom de municipalité]]&\" [\"&Tableau6[[#This Row],[Région administrative]]&\"]\"","v":"N-Dame-Auxiliatrice-Buckland [Chaudière-Appalaches (12)]"}]
["N.-D.-de-Bonsecours","Outaouais (07)",{"$f":"Tableau6[[#This Row],[Nom de municipalité]]&\" [\"&Tableau6[[#This Row],[Région administrative]]&\"]\"","v":"N.-D.-de-Bonsecours [Outaouais (07)]"}]
["N.-D.-Sacré-Coeur-Issoudun","Chaudière-Appalaches (12)",{"$f":"Tableau6[[#This Row],[Nom de municipalité]]&\" [\"&Tableau6[[#This Row],[Région administrative]]&\"]\"","v":"N.-D.-Sacré-Coeur-Issoudun [Chaudière-Appalaches (12)]"}]
["Nédélec","Abitibi-Témiscamingue (08)",{"$f":"Tableau6[[#This Row],[Nom de municipalité]]&\" [\"&Tableau6[[#This Row],[Région administrative]]&\"]\"","v":"Nédélec [Abitibi-Témiscamingue (08)]"}]
["Nemaska","Nord-du-Québec (10)",{"$f":"Tableau6[[#This Row],[Nom de municipalité]]&\" [\"&Tableau6[[#This Row],[Région administrative]]&\"]\"","v":"Nemaska [Nord-du-Québec (10)]"}]
["Neuville","Capitale-Nationale (03)",{"$f":"Tableau6[[#This Row],[Nom de municipalité]]&\" [\"&Tableau6[[#This Row],[Région administrative]]&\"]\"","v":"Neuville [Capitale-Nationale (03)]"}]
["New Carlisle","Gaspésie--Îles-de-la-Madeleine (11)",{"$f":"Tableau6[[#This Row],[Nom de municipalité]]&\" [\"&Tableau6[[#This Row],[Région administrative]]&\"]\"","v":"New Carlisle [Gaspésie--Îles-de-la-Madeleine (11)]"}]
["New Richmond","Gaspésie--Îles-de-la-Madeleine (11)",{"$f":"Tableau6[[#This Row],[Nom de municipalité]]&\" [\"&Tableau6[[#This Row],[Région administrative]]&\"]\"","v":"New Richmond [Gaspésie--Îles-de-la-Madeleine (11)]"}]
["Newport","Estrie (05)",{"$f":"Tableau6[[#This Row],[Nom de municipalité]]&\" [\"&Tableau6[[#This Row],[Région administrative]]&\"]\"","v":"Newport [Estrie (05)]"}]
["Nicolet","Centre-du-Québec (17)",{"$f":"Tableau6[[#This Row],[Nom de municipalité]]&\" [\"&Tableau6[[#This Row],[Région administrative]]&\"]\"","v":"Nicolet [Centre-du-Québec (17)]"}]
["Nominingue","Laurentides (15)",{"$f":"Tableau6[[#This Row],[Nom de municipalité]]&\" [\"&Tableau6[[#This Row],[Région administrative]]&\"]\"","v":"Nominingue [Laurentides (15)]"}]
["Normandin","Saguenay--Lac-Saint-Jean (02)",{"$f":"Tableau6[[#This Row],[Nom de municipalité]]&\" [\"&Tableau6[[#This Row],[Région administrative]]&\"]\"","v":"Normandin [Saguenay--Lac-Saint-Jean (02)]"}]
["Normétal","Abitibi-Témiscamingue (08)",{"$f":"Tableau6[[#This Row],[Nom de municipalité]]&\" [\"&Tableau6[[#This Row],[Région administrative]]&\"]\"","v":"Normétal [Abitibi-Témiscamingue (08)]"}]
["North Hatley","Estrie (05)",{"$f":"Tableau6[[#This Row],[Nom de municipalité]]&\" [\"&Tableau6[[#This Row],[Région administrative]]&\"]\"","v":"North Hatley [Estrie (05)]"}]
["Notre-Dame-de-Ham","Centre-du-Québec (17)",{"$f":"Tableau6[[#This Row],[Nom de municipalité]]&\" [\"&Tableau6[[#This Row],[Région administrative]]&\"]\"","v":"Notre-Dame-de-Ham [Centre-du-Québec (17)]"}]
["Notre-Dame-de-la-Merci","Lanaudière (14)",{"$f":"Tableau6[[#This Row],[Nom de municipalité]]&\" [\"&Tableau6[[#This Row],[Région administrative]]&\"]\"","v":"Notre-Dame-de-la-Merci [Lanaudière (14)]"}]
["Notre-Dame-de-la-Paix","Outaouais (07)",{"$f":"Tableau6[[#This Row],[Nom de municipalité]]&\" [\"&Tableau6[[#This Row],[Région administrative]]&\"]\"","v":"Notre-Dame-de-la-Paix [Outaouais (07)]"}]
["Notre-Dame-de-la-Salette","Outaouais (07)",{"$f":"Tableau6[[#This Row],[Nom de municipalité]]&\" [\"&Tableau6[[#This Row],[Région administrative]]&\"]\"","v":"Notre-Dame-de-la-Salette [Outaouais (07)]"}]
["Notre-Dame-de-l'Île-Perrot","Montérégie (16)",{"$f":"Tableau6[[#This Row],[Nom de municipalité]]&\" [\"&Tableau6[[#This Row],[Région administrative]]&\"]\"","v":"Notre-Dame-de-l'Île-Perrot [Montérégie (16)]"}]
["Notre-Dame-de-Lorette","Saguenay--Lac-Saint-Jean (02)",{"$f":"Tableau6[[#This Row],[Nom de municipalité]]&\" [\"&Tableau6[[#This Row],[Région administrative]]&\"]\"","v":"Notre-Dame-de-Lorette [Saguenay--Lac-Saint-Jean (02)]"}]
["Notre-Dame-de-Lourdes","Lanaudière (14)",{"$f":"Tableau6[[#This Row],[Nom de municipalité]]&\" [\"&Tableau6[[#This Row],[Région administrative]]&\"]\"","v":"Notre-Dame-de-Lourdes [Lanaudière (14)]"}]
["Notre-Dame-de-Lourdes","Centre-du-Québec (17)",{"$f":"Tableau6[[#This Row],[Nom de municipalité]]&\" [\"&Tableau6[[#This Row],[Région administrative]]&\"]\"","v":"Notre-Dame-de-Lourdes [Centre-du-Québec (17)]"}]
["Notre-Dame-de-Montauban","Mauricie (04)",{"$f":"Tableau6[[#This Row],[Nom de municipalité]]&\" [\"&Tableau6[[#This Row],[Région administrative]]&\"]\"","v":"Notre-Dame-de-Montauban [Mauricie (04)]"}]
["Notre-Dame-de-Pontmain","Laurentides (15)",{"$f":"Tableau6[[#This Row],[Nom de municipalité]]&\" [\"&Tableau6[[#This Row],[Région administrative]]&\"]\"","v":"Notre-Dame-de-Pontmain [Laurentides (15)]"}]
["Notre-Dame-des-Anges","Capitale-Nationale (03)",{"$f":"Tableau6[[#This Row],[Nom de municipalité]]&\" [\"&Tableau6[[#This Row],[Région administrative]]&\"]\"","v":"Notre-Dame-des-Anges [Capitale-Nationale (03)]"}]
["Notre-Dame-des-Bois","Estrie (05)",{"$f":"Tableau6[[#This Row],[Nom de municipalité]]&\" [\"&Tableau6[[#This Row],[Région administrative]]&\"]\"","v":"Notre-Dame-des-Bois [Estrie (05)]"}]
["Notre-Dame-des-Monts","Capitale-Nationale (03)",{"$f":"Tableau6[[#This Row],[Nom de municipalité]]&\" [\"&Tableau6[[#This Row],[Région administrative]]&\"]\"","v":"Notre-Dame-des-Monts [Capitale-Nationale (03)]"}]
["Notre-Dame-des-Neiges","Bas-Saint-Laurent (01)",{"$f":"Tableau6[[#This Row],[Nom de municipalité]]&\" [\"&Tableau6[[#This Row],[Région administrative]]&\"]\"","v":"Notre-Dame-des-Neiges [Bas-Saint-Laurent (01)]"}]
["Notre-Dame-des-Pins","Chaudière-Appalaches (12)",{"$f":"Tableau6[[#This Row],[Nom de municipalité]]&\" [\"&Tableau6[[#This Row],[Région administrative]]&\"]\"","v":"Notre-Dame-des-Pins [Chaudière-Appalaches (12)]"}]
["Notre-Dame-des-Prairies","Lanaudière (14)",{"$f":"Tableau6[[#This Row],[Nom de municipalité]]&\" [\"&Tableau6[[#This Row],[Région administrative]]&\"]\"","v":"Notre-Dame-des-Prairies [Lanaudière (14)]"}]
["Notre-Dame-des-Sept-Douleurs","Bas-Saint-Laurent (01)",{"$f":"Tableau6[[#This Row],[Nom de municipalité]]&\" [\"&Tableau6[[#This Row],[Région administrative]]&\"]\"","v":"Notre-Dame-des-Sept-Douleurs [Bas-Saint-Laurent (01)]"}]
["Notre-Dame-de-Stanbridge","Montérégie (16)",{"$f":"Tableau6[[#This Row],[Nom de municipalité]]&\" [\"&Tableau6[[#This Row],[Région administrative]]&\"]\"","v":"Notre-Dame-de-Stanbridge [Montérégie (16)]"}]
["Notre-Dame-du-Bon-Conseil","Centre-du-Québec (17)",{"$f":"Tableau6[[#This Row],[Nom de municipalité]]&\" [\"&Tableau6[[#This Row],[Région administrative]]&\"]\"","v":"Notre-Dame-du-Bon-Conseil [Centre-du-Québec (17)]"}]
["Notre-Dame-du-Bon-Conseil","Centre-du-Québec (17)",{"$f":"Tableau6[[#This Row],[Nom de municipalité]]&\" [\"&Tableau6[[#This Row],[Région administrative]]&\"]\"","v":"Notre-Dame-du-Bon-Conseil [Centre-du-Québec (17)]"}]
["Notre-Dame-du-Laus","Laurentides (15)",{"$f":"Tableau6[[#This Row],[Nom de municipalité]]&\" [\"&Tableau6[[#This Row],[Région administrative]]&\"]\"","v":"Notre-Dame-du-Laus [Laurentides (15)]"}]
["Notre-Dame-du-Mont-Carmel","Mauricie (04)",{"$f":"Tableau6[[#This Row],[Nom de municipalité]]&\" [\"&Tableau6[[#This Row],[Région administrative]]&\"]\"","v":"Notre-Dame-du-Mont-Carmel [Mauricie (04)]"}]
["Notre-Dame-du-Nord","Abitibi-Témiscamingue (08)",{"$f":"Tableau6[[#This Row],[Nom de municipalité]]&\" [\"&Tableau6[[#This Row],[Région administrative]]&\"]\"","v":"Notre-Dame-du-Nord [Abitibi-Témiscamingue (08)]"}]
["Notre-Dame-du-Portage","Bas-Saint-Laurent (01)",{"$f":"Tableau6[[#This Row],[Nom de municipalité]]&\" [\"&Tableau6[[#This Row],[Région administrative]]&\"]\"","v":"Notre-Dame-du-Portage [Bas-Saint-Laurent (01)]"}]
["Notre-Dame-du-Rosaire","Chaudière-Appalaches (12)",{"$f":"Tableau6[[#This Row],[Nom de municipalité]]&\" [\"&Tableau6[[#This Row],[Région administrative]]&\"]\"","v":"Notre-Dame-du-Rosaire [Chaudière-Appalaches (12)]"}]
["Nouvelle","Gaspésie--Îles-de-la-Madeleine (11)",{"$f":"Tableau6[[#This Row],[Nom de municipalité]]&\" [\"&Tableau6[[#This Row],[Région administrative]]&\"]\"","v":"Nouvelle [Gaspésie--Îles-de-la-Madeleine (11)]"}]
["Noyan","Montérégie (16)",{"$f":"Tableau6[[#This Row],[Nom de municipalité]]&\" [\"&Tableau6[[#This Row],[Région administrative]]&\"]\"","v":"Noyan [Montérégie (16)]"}]
["Ogden","Estrie (05)",{"$f":"Tableau6[[#This Row],[Nom de municipalité]]&\" [\"&Tableau6[[#This Row],[Région administrative]]&\"]\"","v":"Ogden [Estrie (05)]"}]
["Oka","Laurentides (15)",{"$f":"Tableau6[[#This Row],[Nom de municipalité]]&\" [\"&Tableau6[[#This Row],[Région administrative]]&\"]\"","v":"Oka [Laurentides (15)]"}]
["Orford","Estrie (05)",{"$f":"Tableau6[[#This Row],[Nom de municipalité]]&\" [\"&Tableau6[[#This Row],[Région administrative]]&\"]\"","v":"Orford [Estrie (05)]"}]
["Ormstown","Montérégie (16)",{"$f":"Tableau6[[#This Row],[Nom de municipalité]]&\" [\"&Tableau6[[#This Row],[Région administrative]]&\"]\"","v":"Ormstown [Montérégie (16)]"}]
["Otter Lake","Outaouais (07)",{"$f":"Tableau6[[#This Row],[Nom de municipalité]]&\" [\"&Tableau6[[#This Row],[Région administrative]]&\"]\"","v":"Otter Lake [Outaouais (07)]"}]
["Otterburn Park","Montérégie (16)",{"$f":"Tableau6[[#This Row],[Nom de municipalité]]&\" [\"&Tableau6[[#This Row],[Région administrative]]&\"]\"","v":"Otterburn Park [Montérégie (16)]"}]
["Packington","Bas-Saint-Laurent (01)",{"$f":"Tableau6[[#This Row],[Nom de municipalité]]&\" [\"&Tableau6[[#This Row],[Région administrative]]&\"]\"","v":"Packington [Bas-Saint-Laurent (01)]"}]
["Padoue","Bas-Saint-Laurent (01)",{"$f":"Tableau6[[#This Row],[Nom de municipalité]]&\" [\"&Tableau6[[#This Row],[Région administrative]]&\"]\"","v":"Padoue [Bas-Saint-Laurent (01)]"}]
["Palmarolle","Abitibi-Témiscamingue (08)",{"$f":"Tableau6[[#This Row],[Nom de municipalité]]&\" [\"&Tableau6[[#This Row],[Région administrative]]&\"]\"","v":"Palmarolle [Abitibi-Témiscamingue (08)]"}]
["Papineauville","Outaouais (07)",{"$f":"Tableau6[[#This Row],[Nom de municipalité]]&\" [\"&Tableau6[[#This Row],[Région administrative]]&\"]\"","v":"Papineauville [Outaouais (07)]"}]
["Parisville","Centre-du-Québec (17)",{"$f":"Tableau6[[#This Row],[Nom de municipalité]]&\" [\"&Tableau6[[#This Row],[Région administrative]]&\"]\"","v":"Parisville [Centre-du-Québec (17)]"}]
["Paspébiac","Gaspésie--Îles-de-la-Madeleine (11)",{"$f":"Tableau6[[#This Row],[Nom de municipalité]]&\" [\"&Tableau6[[#This Row],[Région administrative]]&\"]\"","v":"Paspébiac [Gaspésie--Îles-de-la-Madeleine (11)]"}]
["Percé","Gaspésie--Îles-de-la-Madeleine (11)",{"$f":"Tableau6[[#This Row],[Nom de municipalité]]&\" [\"&Tableau6[[#This Row],[Région administrative]]&\"]\"","v":"Percé [Gaspésie--Îles-de-la-Madeleine (11)]"}]
["Péribonka","Saguenay--Lac-Saint-Jean (02)",{"$f":"Tableau6[[#This Row],[Nom de municipalité]]&\" [\"&Tableau6[[#This Row],[Région administrative]]&\"]\"","v":"Péribonka [Saguenay--Lac-Saint-Jean (02)]"}]
["Petite-Rivière-Saint-François","Capitale-Nationale (03)",{"$f":"Tableau6[[#This Row],[Nom de municipalité]]&\" [\"&Tableau6[[#This Row],[Région administrative]]&\"]\"","v":"Petite-Rivière-Saint-François [Capitale-Nationale (03)]"}]
["Petite-Vallée","Gaspésie--Îles-de-la-Madeleine (11)",{"$f":"Tableau6[[#This Row],[Nom de municipalité]]&\" [\"&Tableau6[[#This Row],[Région administrative]]&\"]\"","v":"Petite-Vallée [Gaspésie--Îles-de-la-Madeleine (11)]"}]
["Petit-Saguenay","Saguenay--Lac-Saint-Jean (02)",{"$f":"Tableau6[[#This Row],[Nom de municipalité]]&\" [\"&Tableau6[[#This Row],[Région administrative]]&\"]\"","v":"Petit-Saguenay [Saguenay--Lac-Saint-Jean (02)]"}]
["Piedmont","Laurentides (15)",{"$f":"Tableau6[[#This Row],[Nom de municipalité]]&\" [\"&Tableau6[[#This Row],[Région administrative]]&\"]\"","v":"Piedmont [Laurentides (15)]"}]
["Pierreville","Centre-du-Québec (17)",{"$f":"Tableau6[[#This Row],[Nom de municipalité]]&\" [\"&Tableau6[[#This Row],[Région administrative]]&\"]\"","v":"Pierreville [Centre-du-Québec (17)]"}]
["Pike River","Montérégie (16)",{"$f":"Tableau6[[#This Row],[Nom de municipalité]]&\" [\"&Tableau6[[#This Row],[Région administrative]]&\"]\"","v":"Pike River [Montérégie (16)]"}]
["Pincourt","Montérégie (16)",{"$f":"Tableau6[[#This Row],[Nom de municipalité]]&\" [\"&Tableau6[[#This Row],[Région administrative]]&\"]\"","v":"Pincourt [Montérégie (16)]"}]
["Piopolis","Estrie (05)",{"$f":"Tableau6[[#This Row],[Nom de municipalité]]&\" [\"&Tableau6[[#This Row],[Région administrative]]&\"]\"","v":"Piopolis [Estrie (05)]"}]
["Plaisance","Outaouais (07)",{"$f":"Tableau6[[#This Row],[Nom de municipalité]]&\" [\"&Tableau6[[#This Row],[Région administrative]]&\"]\"","v":"Plaisance [Outaouais (07)]"}]
["Plessisville","Centre-du-Québec (17)",{"$f":"Tableau6[[#This Row],[Nom de municipalité]]&\" [\"&Tableau6[[#This Row],[Région administrative]]&\"]\"","v":"Plessisville [Centre-du-Québec (17)]"}]
["Plessisville","Centre-du-Québec (17)",{"$f":"Tableau6[[#This Row],[Nom de municipalité]]&\" [\"&Tableau6[[#This Row],[Région administrative]]&\"]\"","v":"Plessisville [Centre-du-Québec (17)]"}]
["Pohénégamook","Bas-Saint-Laurent (01)",{"$f":"Tableau6[[#This Row],[Nom de municipalité]]&\" [\"&Tableau6[[#This Row],[Région administrative]]&\"]\"","v":"Pohénégamook [Bas-Saint-Laurent (01)]"}]
["Pointe-à-la-Croix","Gaspésie--Îles-de-la-Madeleine (11)",{"$f":"Tableau6[[#This Row],[Nom de municipalité]]&\" [\"&Tableau6[[#This Row],[Région administrative]]&\"]\"","v":"Pointe-à-la-Croix [Gaspésie--Îles-de-la-Madeleine (11)]"}]
["Pointe-aux-Outardes","Côte-Nord (09)",{"$f":"Tableau6[[#This Row],[Nom de municipalité]]&\" [\"&Tableau6[[#This Row],[Région administrative]]&\"]\"","v":"Pointe-aux-Outardes [Côte-Nord (09)]"}]
["Pointe-Calumet","Laurentides (15)",{"$f":"Tableau6[[#This Row],[Nom de municipalité]]&\" [\"&Tableau6[[#This Row],[Région administrative]]&\"]\"","v":"Pointe-Calumet [Laurentides (15)]"}]
["Pointe-Claire","Montréal (06)",{"$f":"Tableau6[[#This Row],[Nom de municipalité]]&\" [\"&Tableau6[[#This Row],[Région administrative]]&\"]\"","v":"Pointe-Claire [Montréal (06)]"}]
["Pointe-des-Cascades","Montérégie (16)",{"$f":"Tableau6[[#This Row],[Nom de municipalité]]&\" [\"&Tableau6[[#This Row],[Région administrative]]&\"]\"","v":"Pointe-des-Cascades [Montérégie (16)]"}]
["Pointe-Fortune","Montérégie (16)",{"$f":"Tableau6[[#This Row],[Nom de municipalité]]&\" [\"&Tableau6[[#This Row],[Région administrative]]&\"]\"","v":"Pointe-Fortune [Montérégie (16)]"}]
["Pointe-Lebel","Côte-Nord (09)",{"$f":"Tableau6[[#This Row],[Nom de municipalité]]&\" [\"&Tableau6[[#This Row],[Région administrative]]&\"]\"","v":"Pointe-Lebel [Côte-Nord (09)]"}]
["Pontiac","Outaouais (07)",{"$f":"Tableau6[[#This Row],[Nom de municipalité]]&\" [\"&Tableau6[[#This Row],[Région administrative]]&\"]\"","v":"Pontiac [Outaouais (07)]"}]
["Pont-Rouge","Capitale-Nationale (03)",{"$f":"Tableau6[[#This Row],[Nom de municipalité]]&\" [\"&Tableau6[[#This Row],[Région administrative]]&\"]\"","v":"Pont-Rouge [Capitale-Nationale (03)]"}]
["Portage-du-Fort","Outaouais (07)",{"$f":"Tableau6[[#This Row],[Nom de municipalité]]&\" [\"&Tableau6[[#This Row],[Région administrative]]&\"]\"","v":"Portage-du-Fort [Outaouais (07)]"}]
["Port-Cartier","Côte-Nord (09)",{"$f":"Tableau6[[#This Row],[Nom de municipalité]]&\" [\"&Tableau6[[#This Row],[Région administrative]]&\"]\"","v":"Port-Cartier [Côte-Nord (09)]"}]
["Port-Daniel--Gascons","Gaspésie--Îles-de-la-Madeleine (11)",{"$f":"Tableau6[[#This Row],[Nom de municipalité]]&\" [\"&Tableau6[[#This Row],[Région administrative]]&\"]\"","v":"Port-Daniel--Gascons [Gaspésie--Îles-de-la-Madeleine (11)]"}]
["Portneuf","Capitale-Nationale (03)",{"$f":"Tableau6[[#This Row],[Nom de municipalité]]&\" [\"&Tableau6[[#This Row],[Région administrative]]&\"]\"","v":"Portneuf [Capitale-Nationale (03)]"}]
["Portneuf-sur-Mer","Côte-Nord (09)",{"$f":"Tableau6[[#This Row],[Nom de municipalité]]&\" [\"&Tableau6[[#This Row],[Région administrative]]&\"]\"","v":"Portneuf-sur-Mer [Côte-Nord (09)]"}]
["Potton","Estrie (05)",{"$f":"Tableau6[[#This Row],[Nom de municipalité]]&\" [\"&Tableau6[[#This Row],[Région administrative]]&\"]\"","v":"Potton [Estrie (05)]"}]
["Poularies","Abitibi-Témiscamingue (08)",{"$f":"Tableau6[[#This Row],[Nom de municipalité]]&\" [\"&Tableau6[[#This Row],[Région administrative]]&\"]\"","v":"Poularies [Abitibi-Témiscamingue (08)]"}]
["Preissac","Abitibi-Témiscamingue (08)",{"$f":"Tableau6[[#This Row],[Nom de municipalité]]&\" [\"&Tableau6[[#This Row],[Région administrative]]&\"]\"","v":"Preissac [Abitibi-Témiscamingue (08)]"}]
["Prévost","Laurentides (15)",{"$f":"Tableau6[[#This Row],[Nom de municipalité]]&\" [\"&Tableau6[[#This Row],[Région administrative]]&\"]\"","v":"Prévost [Laurentides (15)]"}]
["Price","Bas-Saint-Laurent (01)",{"$f":"Tableau6[[#This Row],[Nom de municipalité]]&\" [\"&Tableau6[[#This Row],[Région administrative]]&\"]\"","v":"Price [Bas-Saint-Laurent (01)]"}]
["Princeville","Centre-du-Québec (17)",{"$f":"Tableau6[[#This Row],[Nom de municipalité]]&\" [\"&Tableau6[[#This Row],[Région administrative]]&\"]\"","v":"Princeville [Centre-du-Québec (17)]"}]
["Puvirnituq","Nord-du-Québec (10)",{"$f":"Tableau6[[#This Row],[Nom de municipalité]]&\" [\"&Tableau6[[#This Row],[Région administrative]]&\"]\"","v":"Puvirnituq [Nord-du-Québec (10)]"}]
["Quaqtaq","Nord-du-Québec (10)",{"$f":"Tableau6[[#This Row],[Nom de municipalité]]&\" [\"&Tableau6[[#This Row],[Région administrative]]&\"]\"","v":"Quaqtaq [Nord-du-Québec (10)]"}]
["Québec","Capitale-Nationale (03)",{"$f":"Tableau6[[#This Row],[Nom de municipalité]]&\" [\"&Tableau6[[#This Row],[Région administrative]]&\"]\"","v":"Québec [Capitale-Nationale (03)]"}]
["Racine","Estrie (05)",{"$f":"Tableau6[[#This Row],[Nom de municipalité]]&\" [\"&Tableau6[[#This Row],[Région administrative]]&\"]\"","v":"Racine [Estrie (05)]"}]
["Ragueneau","Côte-Nord (09)",{"$f":"Tableau6[[#This Row],[Nom de municipalité]]&\" [\"&Tableau6[[#This Row],[Région administrative]]&\"]\"","v":"Ragueneau [Côte-Nord (09)]"}]
["Rapide-Danseur","Abitibi-Témiscamingue (08)",{"$f":"Tableau6[[#This Row],[Nom de municipalité]]&\" [\"&Tableau6[[#This Row],[Région administrative]]&\"]\"","v":"Rapide-Danseur [Abitibi-Témiscamingue (08)]"}]
["Rapides-des-Joachims","Outaouais (07)",{"$f":"Tableau6[[#This Row],[Nom de municipalité]]&\" [\"&Tableau6[[#This Row],[Région administrative]]&\"]\"","v":"Rapides-des-Joachims [Outaouais (07)]"}]
["Rawdon","Lanaudière (14)",{"$f":"Tableau6[[#This Row],[Nom de municipalité]]&\" [\"&Tableau6[[#This Row],[Région administrative]]&\"]\"","v":"Rawdon [Lanaudière (14)]"}]
["Rémigny","Abitibi-Témiscamingue (08)",{"$f":"Tableau6[[#This Row],[Nom de municipalité]]&\" [\"&Tableau6[[#This Row],[Région administrative]]&\"]\"","v":"Rémigny [Abitibi-Témiscamingue (08)]"}]
["Repentigny","Lanaudière (14)",{"$f":"Tableau6[[#This Row],[Nom de municipalité]]&\" [\"&Tableau6[[#This Row],[Région administrative]]&\"]\"","v":"Repentigny [Lanaudière (14)]"}]
["Richelieu","Montérégie (16)",{"$f":"Tableau6[[#This Row],[Nom de municipalité]]&\" [\"&Tableau6[[#This Row],[Région administrative]]&\"]\"","v":"Richelieu [Montérégie (16)]"}]
["Richmond","Estrie (05)",{"$f":"Tableau6[[#This Row],[Nom de municipalité]]&\" [\"&Tableau6[[#This Row],[Région administrative]]&\"]\"","v":"Richmond [Estrie (05)]"}]
["Rigaud","Montérégie (16)",{"$f":"Tableau6[[#This Row],[Nom de municipalité]]&\" [\"&Tableau6[[#This Row],[Région administrative]]&\"]\"","v":"Rigaud [Montérégie (16)]"}]
["Rimouski","Bas-Saint-Laurent (01)",{"$f":"Tableau6[[#This Row],[Nom de municipalité]]&\" [\"&Tableau6[[#This Row],[Région administrative]]&\"]\"","v":"Rimouski [Bas-Saint-Laurent (01)]"}]
["Ripon","Outaouais (07)",{"$f":"Tableau6[[#This Row],[Nom de municipalité]]&\" [\"&Tableau6[[#This Row],[Région administrative]]&\"]\"","v":"Ripon [Outaouais (07)]"}]
["Ristigouche-Partie-Sud-Est","Gaspésie--Îles-de-la-Madeleine (11)",{"$f":"Tableau6[[#This Row],[Nom de municipalité]]&\" [\"&Tableau6[[#This Row],[Région administrative]]&\"]\"","v":"Ristigouche-Partie-Sud-Est [Gaspésie--Îles-de-la-Madeleine (11)]"}]
["Rivière-à-Claude","Gaspésie--Îles-de-la-Madeleine (11)",{"$f":"Tableau6[[#This Row],[Nom de municipalité]]&\" [\"&Tableau6[[#This Row],[Région administrative]]&\"]\"","v":"Rivière-à-Claude [Gaspésie--Îles-de-la-Madeleine (11)]"}]
["Rivière-à-Pierre","Capitale-Nationale (03)",{"$f":"Tableau6[[#This Row],[Nom de municipalité]]&\" [\"&Tableau6[[#This Row],[Région administrative]]&\"]\"","v":"Rivière-à-Pierre [Capitale-Nationale (03)]"}]
["Rivière-au-Tonnerre","Côte-Nord (09)",{"$f":"Tableau6[[#This Row],[Nom de municipalité]]&\" [\"&Tableau6[[#This Row],[Région administrative]]&\"]\"","v":"Rivière-au-Tonnerre [Côte-Nord (09)]"}]
["Rivière-Beaudette","Montérégie (16)",{"$f":"Tableau6[[#This Row],[Nom de municipalité]]&\" [\"&Tableau6[[#This Row],[Région administrative]]&\"]\"","v":"Rivière-Beaudette [Montérégie (16)]"}]
["Rivière-Bleue","Bas-Saint-Laurent (01)",{"$f":"Tableau6[[#This Row],[Nom de municipalité]]&\" [\"&Tableau6[[#This Row],[Région administrative]]&\"]\"","v":"Rivière-Bleue [Bas-Saint-Laurent (01)]"}]
["Rivière-du-Loup","Bas-Saint-Laurent (01)",{"$f":"Tableau6[[#This Row],[Nom de municipalité]]&\" [\"&Tableau6[[#This Row],[Région administrative]]&\"]\"","v":"Rivière-du-Loup [Bas-Saint-Laurent (01)]"}]
["Rivière-Éternité","Saguenay--Lac-Saint-Jean (02)",{"$f":"Tableau6[[#This Row],[Nom de municipalité]]&\" [\"&Tableau6[[#This Row],[Région administrative]]&\"]\"","v":"Rivière-Éternité [Saguenay--Lac-Saint-Jean (02)]"}]
["Rivière-Héva","Abitibi-Témiscamingue (08)",{"$f":"Tableau6[[#This Row],[Nom de municipalité]]&\" [\"&Tableau6[[#This Row],[Région administrative]]&\"]\"","v":"Rivière-Héva [Abitibi-Témiscamingue (08)]"}]
["Rivière-Ouelle","Bas-Saint-Laurent (01)",{"$f":"Tableau6[[#This Row],[Nom de municipalité]]&\" [\"&Tableau6[[#This Row],[Région administrative]]&\"]\"","v":"Rivière-Ouelle [Bas-Saint-Laurent (01)]"}]
["Rivière-Rouge","Laurentides (15)",{"$f":"Tableau6[[#This Row],[Nom de municipalité]]&\" [\"&Tableau6[[#This Row],[Région administrative]]&\"]\"","v":"Rivière-Rouge [Laurentides (15)]"}]
["Rivière-Saint-Jean","Côte-Nord (09)",{"$f":"Tableau6[[#This Row],[Nom de municipalité]]&\" [\"&Tableau6[[#This Row],[Région administrative]]&\"]\"","v":"Rivière-Saint-Jean [Côte-Nord (09)]"}]
["Roberval","Saguenay--Lac-Saint-Jean (02)",{"$f":"Tableau6[[#This Row],[Nom de municipalité]]&\" [\"&Tableau6[[#This Row],[Région administrative]]&\"]\"","v":"Roberval [Saguenay--Lac-Saint-Jean (02)]"}]
["Rochebaucourt","Abitibi-Témiscamingue (08)",{"$f":"Tableau6[[#This Row],[Nom de municipalité]]&\" [\"&Tableau6[[#This Row],[Région administrative]]&\"]\"","v":"Rochebaucourt [Abitibi-Témiscamingue (08)]"}]
["Roquemaure","Abitibi-Témiscamingue (08)",{"$f":"Tableau6[[#This Row],[Nom de municipalité]]&\" [\"&Tableau6[[#This Row],[Région administrative]]&\"]\"","v":"Roquemaure [Abitibi-Témiscamingue (08)]"}]
["Rosemère","Laurentides (15)",{"$f":"Tableau6[[#This Row],[Nom de municipalité]]&\" [\"&Tableau6[[#This Row],[Région administrative]]&\"]\"","v":"Rosemère [Laurentides (15)]"}]
["Rougemont","Montérégie (16)",{"$f":"Tableau6[[#This Row],[Nom de municipalité]]&\" [\"&Tableau6[[#This Row],[Région administrative]]&\"]\"","v":"Rougemont [Montérégie (16)]"}]
["Rouyn-Noranda","Abitibi-Témiscamingue (08)",{"$f":"Tableau6[[#This Row],[Nom de municipalité]]&\" [\"&Tableau6[[#This Row],[Région administrative]]&\"]\"","v":"Rouyn-Noranda [Abitibi-Témiscamingue (08)]"}]
["Roxton","Montérégie (16)",{"$f":"Tableau6[[#This Row],[Nom de municipalité]]&\" [\"&Tableau6[[#This Row],[Région administrative]]&\"]\"","v":"Roxton [Montérégie (16)]"}]
["Roxton Falls","Montérégie (16)",{"$f":"Tableau6[[#This Row],[Nom de municipalité]]&\" [\"&Tableau6[[#This Row],[Région administrative]]&\"]\"","v":"Roxton Falls [Montérégie (16)]"}]
["Roxton Pond","Montérégie (16)",{"$f":"Tableau6[[#This Row],[Nom de municipalité]]&\" [\"&Tableau6[[#This Row],[Région administrative]]&\"]\"","v":"Roxton Pond [Montérégie (16)]"}]
["Sacré-Coeur","Côte-Nord (09)",{"$f":"Tableau6[[#This Row],[Nom de municipalité]]&\" [\"&Tableau6[[#This Row],[Région administrative]]&\"]\"","v":"Sacré-Coeur [Côte-Nord (09)]"}]
["Sacré-Coeur-de-Jésus","Chaudière-Appalaches (12)",{"$f":"Tableau6[[#This Row],[Nom de municipalité]]&\" [\"&Tableau6[[#This Row],[Région administrative]]&\"]\"","v":"Sacré-Coeur-de-Jésus [Chaudière-Appalaches (12)]"}]
["Saguenay","Saguenay--Lac-Saint-Jean (02)",{"$f":"Tableau6[[#This Row],[Nom de municipalité]]&\" [\"&Tableau6[[#This Row],[Région administrative]]&\"]\"","v":"Saguenay [Saguenay--Lac-Saint-Jean (02)]"}]
["Saint-Adalbert","Chaudière-Appalaches (12)",{"$f":"Tableau6[[#This Row],[Nom de municipalité]]&\" [\"&Tableau6[[#This Row],[Région administrative]]&\"]\"","v":"Saint-Adalbert [Chaudière-Appalaches (12)]"}]
["Saint-Adelme","Bas-Saint-Laurent (01)",{"$f":"Tableau6[[#This Row],[Nom de municipalité]]&\" [\"&Tableau6[[#This Row],[Région administrative]]&\"]\"","v":"Saint-Adelme [Bas-Saint-Laurent (01)]"}]
["Saint-Adelphe","Mauricie (04)",{"$f":"Tableau6[[#This Row],[Nom de municipalité]]&\" [\"&Tableau6[[#This Row],[Région administrative]]&\"]\"","v":"Saint-Adelphe [Mauricie (04)]"}]
["Saint-Adolphe-d'Howard","Laurentides (15)",{"$f":"Tableau6[[#This Row],[Nom de municipalité]]&\" [\"&Tableau6[[#This Row],[Région administrative]]&\"]\"","v":"Saint-Adolphe-d'Howard [Laurentides (15)]"}]
["Saint-Adrien","Estrie (05)",{"$f":"Tableau6[[#This Row],[Nom de municipalité]]&\" [\"&Tableau6[[#This Row],[Région administrative]]&\"]\"","v":"Saint-Adrien [Estrie (05)]"}]
["Saint-Adrien-d'Irlande","Chaudière-Appalaches (12)",{"$f":"Tableau6[[#This Row],[Nom de municipalité]]&\" [\"&Tableau6[[#This Row],[Région administrative]]&\"]\"","v":"Saint-Adrien-d'Irlande [Chaudière-Appalaches (12)]"}]
["Saint-Agapit","Chaudière-Appalaches (12)",{"$f":"Tableau6[[#This Row],[Nom de municipalité]]&\" [\"&Tableau6[[#This Row],[Région administrative]]&\"]\"","v":"Saint-Agapit [Chaudière-Appalaches (12)]"}]
["Saint-Aimé","Montérégie (16)",{"$f":"Tableau6[[#This Row],[Nom de municipalité]]&\" [\"&Tableau6[[#This Row],[Région administrative]]&\"]\"","v":"Saint-Aimé [Montérégie (16)]"}]
["Saint-Aimé-des-Lacs","Capitale-Nationale (03)",{"$f":"Tableau6[[#This Row],[Nom de municipalité]]&\" [\"&Tableau6[[#This Row],[Région administrative]]&\"]\"","v":"Saint-Aimé-des-Lacs [Capitale-Nationale (03)]"}]
["Saint-Aimé-du-Lac-des-Îles","Laurentides (15)",{"$f":"Tableau6[[#This Row],[Nom de municipalité]]&\" [\"&Tableau6[[#This Row],[Région administrative]]&\"]\"","v":"Saint-Aimé-du-Lac-des-Îles [Laurentides (15)]"}]
["Saint-Alban","Capitale-Nationale (03)",{"$f":"Tableau6[[#This Row],[Nom de municipalité]]&\" [\"&Tableau6[[#This Row],[Région administrative]]&\"]\"","v":"Saint-Alban [Capitale-Nationale (03)]"}]
["Saint-Albert","Centre-du-Québec (17)",{"$f":"Tableau6[[#This Row],[Nom de municipalité]]&\" [\"&Tableau6[[#This Row],[Région administrative]]&\"]\"","v":"Saint-Albert [Centre-du-Québec (17)]"}]
["Saint-Alexandre","Montérégie (16)",{"$f":"Tableau6[[#This Row],[Nom de municipalité]]&\" [\"&Tableau6[[#This Row],[Région administrative]]&\"]\"","v":"Saint-Alexandre [Montérégie (16)]"}]
["Saint-Alexandre-de-Kamouraska","Bas-Saint-Laurent (01)",{"$f":"Tableau6[[#This Row],[Nom de municipalité]]&\" [\"&Tableau6[[#This Row],[Région administrative]]&\"]\"","v":"Saint-Alexandre-de-Kamouraska [Bas-Saint-Laurent (01)]"}]
["Saint-Alexandre-des-Lacs","Bas-Saint-Laurent (01)",{"$f":"Tableau6[[#This Row],[Nom de municipalité]]&\" [\"&Tableau6[[#This Row],[Région administrative]]&\"]\"","v":"Saint-Alexandre-des-Lacs [Bas-Saint-Laurent (01)]"}]
["Saint-Alexis","Lanaudière (14)",{"$f":"Tableau6[[#This Row],[Nom de municipalité]]&\" [\"&Tableau6[[#This Row],[Région administrative]]&\"]\"","v":"Saint-Alexis [Lanaudière (14)]"}]
["Saint-Alexis-de-Matapédia","Gaspésie--Îles-de-la-Madeleine (11)",{"$f":"Tableau6[[#This Row],[Nom de municipalité]]&\" [\"&Tableau6[[#This Row],[Région administrative]]&\"]\"","v":"Saint-Alexis-de-Matapédia [Gaspésie--Îles-de-la-Madeleine (11)]"}]
["Saint-Alexis-des-Monts","Mauricie (04)",{"$f":"Tableau6[[#This Row],[Nom de municipalité]]&\" [\"&Tableau6[[#This Row],[Région administrative]]&\"]\"","v":"Saint-Alexis-des-Monts [Mauricie (04)]"}]
["Saint-Alfred","Chaudière-Appalaches (12)",{"$f":"Tableau6[[#This Row],[Nom de municipalité]]&\" [\"&Tableau6[[#This Row],[Région administrative]]&\"]\"","v":"Saint-Alfred [Chaudière-Appalaches (12)]"}]
["Saint-Alphonse","Gaspésie--Îles-de-la-Madeleine (11)",{"$f":"Tableau6[[#This Row],[Nom de municipalité]]&\" [\"&Tableau6[[#This Row],[Région administrative]]&\"]\"","v":"Saint-Alphonse [Gaspésie--Îles-de-la-Madeleine (11)]"}]
["Saint-Alphonse-de-Granby","Montérégie (16)",{"$f":"Tableau6[[#This Row],[Nom de municipalité]]&\" [\"&Tableau6[[#This Row],[Région administrative]]&\"]\"","v":"Saint-Alphonse-de-Granby [Montérégie (16)]"}]
["Saint-Alphonse-Rodriguez","Lanaudière (14)",{"$f":"Tableau6[[#This Row],[Nom de municipalité]]&\" [\"&Tableau6[[#This Row],[Région administrative]]&\"]\"","v":"Saint-Alphonse-Rodriguez [Lanaudière (14)]"}]
["Saint-Amable","Montérégie (16)",{"$f":"Tableau6[[#This Row],[Nom de municipalité]]&\" [\"&Tableau6[[#This Row],[Région administrative]]&\"]\"","v":"Saint-Amable [Montérégie (16)]"}]
["Saint-Ambroise","Saguenay--Lac-Saint-Jean (02)",{"$f":"Tableau6[[#This Row],[Nom de municipalité]]&\" [\"&Tableau6[[#This Row],[Région administrative]]&\"]\"","v":"Saint-Ambroise [Saguenay--Lac-Saint-Jean (02)]"}]
["Saint-Ambroise-de-Kildare","Lanaudière (14)",{"$f":"Tableau6[[#This Row],[Nom de municipalité]]&\" [\"&Tableau6[[#This Row],[Région administrative]]&\"]\"","v":"Saint-Ambroise-de-Kildare [Lanaudière (14)]"}]
["Saint-Anaclet-de-Lessard","Bas-Saint-Laurent (01)",{"$f":"Tableau6[[#This Row],[Nom de municipalité]]&\" [\"&Tableau6[[#This Row],[Région administrative]]&\"]\"","v":"Saint-Anaclet-de-Lessard [Bas-Saint-Laurent (01)]"}]
["Saint-André","Bas-Saint-Laurent (01)",{"$f":"Tableau6[[#This Row],[Nom de municipalité]]&\" [\"&Tableau6[[#This Row],[Région administrative]]&\"]\"","v":"Saint-André [Bas-Saint-Laurent (01)]"}]
["Saint-André-Avellin","Outaouais (07)",{"$f":"Tableau6[[#This Row],[Nom de municipalité]]&\" [\"&Tableau6[[#This Row],[Région administrative]]&\"]\"","v":"Saint-André-Avellin [Outaouais (07)]"}]
["Saint-André-d'Argenteuil","Laurentides (15)",{"$f":"Tableau6[[#This Row],[Nom de municipalité]]&\" [\"&Tableau6[[#This Row],[Région administrative]]&\"]\"","v":"Saint-André-d'Argenteuil [Laurentides (15)]"}]
["Saint-André-de-Restigouche","Gaspésie--Îles-de-la-Madeleine (11)",{"$f":"Tableau6[[#This Row],[Nom de municipalité]]&\" [\"&Tableau6[[#This Row],[Région administrative]]&\"]\"","v":"Saint-André-de-Restigouche [Gaspésie--Îles-de-la-Madeleine (11)]"}]
["Saint-André-du-Lac-Saint-Jean","Saguenay--Lac-Saint-Jean (02)",{"$f":"Tableau6[[#This Row],[Nom de municipalité]]&\" [\"&Tableau6[[#This Row],[Région administrative]]&\"]\"","v":"Saint-André-du-Lac-Saint-Jean [Saguenay--Lac-Saint-Jean (02)]"}]
["Saint-Anicet","Montérégie (16)",{"$f":"Tableau6[[#This Row],[Nom de municipalité]]&\" [\"&Tableau6[[#This Row],[Région administrative]]&\"]\"","v":"Saint-Anicet [Montérégie (16)]"}]
["Saint-Anselme","Chaudière-Appalaches (12)",{"$f":"Tableau6[[#This Row],[Nom de municipalité]]&\" [\"&Tableau6[[#This Row],[Région administrative]]&\"]\"","v":"Saint-Anselme [Chaudière-Appalaches (12)]"}]
["Saint-Antoine-de-Tilly","Chaudière-Appalaches (12)",{"$f":"Tableau6[[#This Row],[Nom de municipalité]]&\" [\"&Tableau6[[#This Row],[Région administrative]]&\"]\"","v":"Saint-Antoine-de-Tilly [Chaudière-Appalaches (12)]"}]
["Saint-Antoine/l'Isle-aux-Grues","Chaudière-Appalaches (12)",{"$f":"Tableau6[[#This Row],[Nom de municipalité]]&\" [\"&Tableau6[[#This Row],[Région administrative]]&\"]\"","v":"Saint-Antoine/l'Isle-aux-Grues [Chaudière-Appalaches (12)]"}]
["Saint-Antoine-sur-Richelieu","Montérégie (16)",{"$f":"Tableau6[[#This Row],[Nom de municipalité]]&\" [\"&Tableau6[[#This Row],[Région administrative]]&\"]\"","v":"Saint-Antoine-sur-Richelieu [Montérégie (16)]"}]
["Saint-Antonin","Bas-Saint-Laurent (01)",{"$f":"Tableau6[[#This Row],[Nom de municipalité]]&\" [\"&Tableau6[[#This Row],[Région administrative]]&\"]\"","v":"Saint-Antonin [Bas-Saint-Laurent (01)]"}]
["Saint-Apollinaire","Chaudière-Appalaches (12)",{"$f":"Tableau6[[#This Row],[Nom de municipalité]]&\" [\"&Tableau6[[#This Row],[Région administrative]]&\"]\"","v":"Saint-Apollinaire [Chaudière-Appalaches (12)]"}]
["Saint-Armand","Montérégie (16)",{"$f":"Tableau6[[#This Row],[Nom de municipalité]]&\" [\"&Tableau6[[#This Row],[Région administrative]]&\"]\"","v":"Saint-Armand [Montérégie (16)]"}]
["Saint-Arsène","Bas-Saint-Laurent (01)",{"$f":"Tableau6[[#This Row],[Nom de municipalité]]&\" [\"&Tableau6[[#This Row],[Région administrative]]&\"]\"","v":"Saint-Arsène [Bas-Saint-Laurent (01)]"}]
["Saint-Athanase","Bas-Saint-Laurent (01)",{"$f":"Tableau6[[#This Row],[Nom de municipalité]]&\" [\"&Tableau6[[#This Row],[Région administrative]]&\"]\"","v":"Saint-Athanase [Bas-Saint-Laurent (01)]"}]
["Saint-Aubert","Chaudière-Appalaches (12)",{"$f":"Tableau6[[#This Row],[Nom de municipalité]]&\" [\"&Tableau6[[#This Row],[Région administrative]]&\"]\"","v":"Saint-Aubert [Chaudière-Appalaches (12)]"}]
["Saint-Augustin","Côte-Nord (09)",{"$f":"Tableau6[[#This Row],[Nom de municipalité]]&\" [\"&Tableau6[[#This Row],[Région administrative]]&\"]\"","v":"Saint-Augustin [Côte-Nord (09)]"}]
["Saint-Augustin","Saguenay--Lac-Saint-Jean (02)",{"$f":"Tableau6[[#This Row],[Nom de municipalité]]&\" [\"&Tableau6[[#This Row],[Région administrative]]&\"]\"","v":"Saint-Augustin [Saguenay--Lac-Saint-Jean (02)]"}]
["Saint-Augustin-de-Desmaures","Capitale-Nationale (03)",{"$f":"Tableau6[[#This Row],[Nom de municipalité]]&\" [\"&Tableau6[[#This Row],[Région administrative]]&\"]\"","v":"Saint-Augustin-de-Desmaures [Capitale-Nationale (03)]"}]
["Saint-Augustin-de-Woburn","Estrie (05)",{"$f":"Tableau6[[#This Row],[Nom de municipalité]]&\" [\"&Tableau6[[#This Row],[Région administrative]]&\"]\"","v":"Saint-Augustin-de-Woburn [Estrie (05)]"}]
["Saint-Barnabé","Mauricie (04)",{"$f":"Tableau6[[#This Row],[Nom de municipalité]]&\" [\"&Tableau6[[#This Row],[Région administrative]]&\"]\"","v":"Saint-Barnabé [Mauricie (04)]"}]
["Saint-Barnabé-Sud","Montérégie (16)",{"$f":"Tableau6[[#This Row],[Nom de municipalité]]&\" [\"&Tableau6[[#This Row],[Région administrative]]&\"]\"","v":"Saint-Barnabé-Sud [Montérégie (16)]"}]
["Saint-Barthélemy","Lanaudière (14)",{"$f":"Tableau6[[#This Row],[Nom de municipalité]]&\" [\"&Tableau6[[#This Row],[Région administrative]]&\"]\"","v":"Saint-Barthélemy [Lanaudière (14)]"}]
["Saint-Basile","Capitale-Nationale (03)",{"$f":"Tableau6[[#This Row],[Nom de municipalité]]&\" [\"&Tableau6[[#This Row],[Région administrative]]&\"]\"","v":"Saint-Basile [Capitale-Nationale (03)]"}]
["Saint-Basile-le-Grand","Montérégie (16)",{"$f":"Tableau6[[#This Row],[Nom de municipalité]]&\" [\"&Tableau6[[#This Row],[Région administrative]]&\"]\"","v":"Saint-Basile-le-Grand [Montérégie (16)]"}]
["Saint-Benjamin","Chaudière-Appalaches (12)",{"$f":"Tableau6[[#This Row],[Nom de municipalité]]&\" [\"&Tableau6[[#This Row],[Région administrative]]&\"]\"","v":"Saint-Benjamin [Chaudière-Appalaches (12)]"}]
["Saint-Benoît-du-Lac","Estrie (05)",{"$f":"Tableau6[[#This Row],[Nom de municipalité]]&\" [\"&Tableau6[[#This Row],[Région administrative]]&\"]\"","v":"Saint-Benoît-du-Lac [Estrie (05)]"}]
["Saint-Benoît-Labre","Chaudière-Appalaches (12)",{"$f":"Tableau6[[#This Row],[Nom de municipalité]]&\" [\"&Tableau6[[#This Row],[Région administrative]]&\"]\"","v":"Saint-Benoît-Labre [Chaudière-Appalaches (12)]"}]
["Saint-Bernard","Chaudière-Appalaches (12)",{"$f":"Tableau6[[#This Row],[Nom de municipalité]]&\" [\"&Tableau6[[#This Row],[Région administrative]]&\"]\"","v":"Saint-Bernard [Chaudière-Appalaches (12)]"}]
["Saint-Bernard-de-Lacolle","Montérégie (16)",{"$f":"Tableau6[[#This Row],[Nom de municipalité]]&\" [\"&Tableau6[[#This Row],[Région administrative]]&\"]\"","v":"Saint-Bernard-de-Lacolle [Montérégie (16)]"}]
["Saint-Bernard-de-Michaudville","Montérégie (16)",{"$f":"Tableau6[[#This Row],[Nom de municipalité]]&\" [\"&Tableau6[[#This Row],[Région administrative]]&\"]\"","v":"Saint-Bernard-de-Michaudville [Montérégie (16)]"}]
["Saint-Blaise-sur-Richelieu","Montérégie (16)",{"$f":"Tableau6[[#This Row],[Nom de municipalité]]&\" [\"&Tableau6[[#This Row],[Région administrative]]&\"]\"","v":"Saint-Blaise-sur-Richelieu [Montérégie (16)]"}]
["Saint-Bonaventure","Centre-du-Québec (17)",{"$f":"Tableau6[[#This Row],[Nom de municipalité]]&\" [\"&Tableau6[[#This Row],[Région administrative]]&\"]\"","v":"Saint-Bonaventure [Centre-du-Québec (17)]"}]
["Saint-Boniface","Mauricie (04)",{"$f":"Tableau6[[#This Row],[Nom de municipalité]]&\" [\"&Tableau6[[#This Row],[Région administrative]]&\"]\"","v":"Saint-Boniface [Mauricie (04)]"}]
["Saint-Bruno","Saguenay--Lac-Saint-Jean (02)",{"$f":"Tableau6[[#This Row],[Nom de municipalité]]&\" [\"&Tableau6[[#This Row],[Région administrative]]&\"]\"","v":"Saint-Bruno [Saguenay--Lac-Saint-Jean (02)]"}]
["Saint-Bruno-de-Guigues","Abitibi-Témiscamingue (08)",{"$f":"Tableau6[[#This Row],[Nom de municipalité]]&\" [\"&Tableau6[[#This Row],[Région administrative]]&\"]\"","v":"Saint-Bruno-de-Guigues [Abitibi-Témiscamingue (08)]"}]
["Saint-Bruno-de-Kamouraska","Bas-Saint-Laurent (01)",{"$f":"Tableau6[[#This Row],[Nom de municipalité]]&\" [\"&Tableau6[[#This Row],[Région administrative]]&\"]\"","v":"Saint-Bruno-de-Kamouraska [Bas-Saint-Laurent (01)]"}]
["Saint-Bruno-de-Montarville","Montérégie (16)",{"$f":"Tableau6[[#This Row],[Nom de municipalité]]&\" [\"&Tableau6[[#This Row],[Région administrative]]&\"]\"","v":"Saint-Bruno-de-Montarville [Montérégie (16)]"}]
["Saint-Calixte","Lanaudière (14)",{"$f":"Tableau6[[#This Row],[Nom de municipalité]]&\" [\"&Tableau6[[#This Row],[Région administrative]]&\"]\"","v":"Saint-Calixte [Lanaudière (14)]"}]
["Saint-Camille","Estrie (05)",{"$f":"Tableau6[[#This Row],[Nom de municipalité]]&\" [\"&Tableau6[[#This Row],[Région administrative]]&\"]\"","v":"Saint-Camille [Estrie (05)]"}]
["Saint-Camille-de-Lellis","Chaudière-Appalaches (12)",{"$f":"Tableau6[[#This Row],[Nom de municipalité]]&\" [\"&Tableau6[[#This Row],[Région administrative]]&\"]\"","v":"Saint-Camille-de-Lellis [Chaudière-Appalaches (12)]"}]
["Saint-Casimir","Capitale-Nationale (03)",{"$f":"Tableau6[[#This Row],[Nom de municipalité]]&\" [\"&Tableau6[[#This Row],[Région administrative]]&\"]\"","v":"Saint-Casimir [Capitale-Nationale (03)]"}]
["Saint-Célestin","Centre-du-Québec (17)",{"$f":"Tableau6[[#This Row],[Nom de municipalité]]&\" [\"&Tableau6[[#This Row],[Région administrative]]&\"]\"","v":"Saint-Célestin [Centre-du-Québec (17)]"}]
["Saint-Célestin","Centre-du-Québec (17)",{"$f":"Tableau6[[#This Row],[Nom de municipalité]]&\" [\"&Tableau6[[#This Row],[Région administrative]]&\"]\"","v":"Saint-Célestin [Centre-du-Québec (17)]"}]
["Saint-Césaire","Montérégie (16)",{"$f":"Tableau6[[#This Row],[Nom de municipalité]]&\" [\"&Tableau6[[#This Row],[Région administrative]]&\"]\"","v":"Saint-Césaire [Montérégie (16)]"}]
["Saint-Charles-Borromée","Lanaudière (14)",{"$f":"Tableau6[[#This Row],[Nom de municipalité]]&\" [\"&Tableau6[[#This Row],[Région administrative]]&\"]\"","v":"Saint-Charles-Borromée [Lanaudière (14)]"}]
["Saint-Charles-de-Bellechasse","Chaudière-Appalaches (12)",{"$f":"Tableau6[[#This Row],[Nom de municipalité]]&\" [\"&Tableau6[[#This Row],[Région administrative]]&\"]\"","v":"Saint-Charles-de-Bellechasse [Chaudière-Appalaches (12)]"}]
["Saint-Charles-de-Bourget","Saguenay--Lac-Saint-Jean (02)",{"$f":"Tableau6[[#This Row],[Nom de municipalité]]&\" [\"&Tableau6[[#This Row],[Région administrative]]&\"]\"","v":"Saint-Charles-de-Bourget [Saguenay--Lac-Saint-Jean (02)]"}]
["Saint-Charles-Garnier","Bas-Saint-Laurent (01)",{"$f":"Tableau6[[#This Row],[Nom de municipalité]]&\" [\"&Tableau6[[#This Row],[Région administrative]]&\"]\"","v":"Saint-Charles-Garnier [Bas-Saint-Laurent (01)]"}]
["Saint-Charles-sur-Richelieu","Montérégie (16)",{"$f":"Tableau6[[#This Row],[Nom de municipalité]]&\" [\"&Tableau6[[#This Row],[Région administrative]]&\"]\"","v":"Saint-Charles-sur-Richelieu [Montérégie (16)]"}]
["Saint-Christophe-d'Arthabaska","Centre-du-Québec (17)",{"$f":"Tableau6[[#This Row],[Nom de municipalité]]&\" [\"&Tableau6[[#This Row],[Région administrative]]&\"]\"","v":"Saint-Christophe-d'Arthabaska [Centre-du-Québec (17)]"}]
["Saint-Chrysostome","Montérégie (16)",{"$f":"Tableau6[[#This Row],[Nom de municipalité]]&\" [\"&Tableau6[[#This Row],[Région administrative]]&\"]\"","v":"Saint-Chrysostome [Montérégie (16)]"}]
["Saint-Claude","Estrie (05)",{"$f":"Tableau6[[#This Row],[Nom de municipalité]]&\" [\"&Tableau6[[#This Row],[Région administrative]]&\"]\"","v":"Saint-Claude [Estrie (05)]"}]
["Saint-Clément","Bas-Saint-Laurent (01)",{"$f":"Tableau6[[#This Row],[Nom de municipalité]]&\" [\"&Tableau6[[#This Row],[Région administrative]]&\"]\"","v":"Saint-Clément [Bas-Saint-Laurent (01)]"}]
["Saint-Cléophas","Bas-Saint-Laurent (01)",{"$f":"Tableau6[[#This Row],[Nom de municipalité]]&\" [\"&Tableau6[[#This Row],[Région administrative]]&\"]\"","v":"Saint-Cléophas [Bas-Saint-Laurent (01)]"}]
["Saint-Cléophas-de-Brandon","Lanaudière (14)",{"$f":"Tableau6[[#This Row],[Nom de municipalité]]&\" [\"&Tableau6[[#This Row],[Région administrative]]&\"]\"","v":"Saint-Cléophas-de-Brandon [Lanaudière (14)]"}]
["Saint-Clet","Montérégie (16)",{"$f":"Tableau6[[#This Row],[Nom de municipalité]]&\" [\"&Tableau6[[#This Row],[Région administrative]]&\"]\"","v":"Saint-Clet [Montérégie (16)]"}]
["Saint-Colomban","Laurentides (15)",{"$f":"Tableau6[[#This Row],[Nom de municipalité]]&\" [\"&Tableau6[[#This Row],[Région administrative]]&\"]\"","v":"Saint-Colomban [Laurentides (15)]"}]
["Saint-Côme","Lanaudière (14)",{"$f":"Tableau6[[#This Row],[Nom de municipalité]]&\" [\"&Tableau6[[#This Row],[Région administrative]]&\"]\"","v":"Saint-Côme [Lanaudière (14)]"}]
["Saint-Côme--Linière","Chaudière-Appalaches (12)",{"$f":"Tableau6[[#This Row],[Nom de municipalité]]&\" [\"&Tableau6[[#This Row],[Région administrative]]&\"]\"","v":"Saint-Côme--Linière [Chaudière-Appalaches (12)]"}]
["Saint-Constant","Montérégie (16)",{"$f":"Tableau6[[#This Row],[Nom de municipalité]]&\" [\"&Tableau6[[#This Row],[Région administrative]]&\"]\"","v":"Saint-Constant [Montérégie (16)]"}]
["Saint-Cuthbert","Lanaudière (14)",{"$f":"Tableau6[[#This Row],[Nom de municipalité]]&\" [\"&Tableau6[[#This Row],[Région administrative]]&\"]\"","v":"Saint-Cuthbert [Lanaudière (14)]"}]
["Saint-Cyprien","Chaudière-Appalaches (12)",{"$f":"Tableau6[[#This Row],[Nom de municipalité]]&\" [\"&Tableau6[[#This Row],[Région administrative]]&\"]\"","v":"Saint-Cyprien [Chaudière-Appalaches (12)]"}]
["Saint-Cyprien","Bas-Saint-Laurent (01)",{"$f":"Tableau6[[#This Row],[Nom de municipalité]]&\" [\"&Tableau6[[#This Row],[Région administrative]]&\"]\"","v":"Saint-Cyprien [Bas-Saint-Laurent (01)]"}]
["Saint-Cyprien-de-Napierville","Montérégie (16)",{"$f":"Tableau6[[#This Row],[Nom de municipalité]]&\" [\"&Tableau6[[#This Row],[Région administrative]]&\"]\"","v":"Saint-Cyprien-de-Napierville [Montérégie (16)]"}]
["Saint-Cyrille-de-Lessard","Chaudière-Appalaches (12)",{"$f":"Tableau6[[#This Row],[Nom de municipalité]]&\" [\"&Tableau6[[#This Row],[Région administrative]]&\"]\"","v":"Saint-Cyrille-de-Lessard [Chaudière-Appalaches (12)]"}]
["Saint-Cyrille-de-Wendover","Centre-du-Québec (17)",{"$f":"Tableau6[[#This Row],[Nom de municipalité]]&\" [\"&Tableau6[[#This Row],[Région administrative]]&\"]\"","v":"Saint-Cyrille-de-Wendover [Centre-du-Québec (17)]"}]
["Saint-Damase","Montérégie (16)",{"$f":"Tableau6[[#This Row],[Nom de municipalité]]&\" [\"&Tableau6[[#This Row],[Région administrative]]&\"]\"","v":"Saint-Damase [Montérégie (16)]"}]
["Saint-Damase","Bas-Saint-Laurent (01)",{"$f":"Tableau6[[#This Row],[Nom de municipalité]]&\" [\"&Tableau6[[#This Row],[Région administrative]]&\"]\"","v":"Saint-Damase [Bas-Saint-Laurent (01)]"}]
["Saint-Damase-de-L'Islet","Chaudière-Appalaches (12)",{"$f":"Tableau6[[#This Row],[Nom de municipalité]]&\" [\"&Tableau6[[#This Row],[Région administrative]]&\"]\"","v":"Saint-Damase-de-L'Islet [Chaudière-Appalaches (12)]"}]
["Saint-Damien","Lanaudière (14)",{"$f":"Tableau6[[#This Row],[Nom de municipalité]]&\" [\"&Tableau6[[#This Row],[Région administrative]]&\"]\"","v":"Saint-Damien [Lanaudière (14)]"}]
["Saint-Damien-de-Buckland","Chaudière-Appalaches (12)",{"$f":"Tableau6[[#This Row],[Nom de municipalité]]&\" [\"&Tableau6[[#This Row],[Région administrative]]&\"]\"","v":"Saint-Damien-de-Buckland [Chaudière-Appalaches (12)]"}]
["Saint-David","Montérégie (16)",{"$f":"Tableau6[[#This Row],[Nom de municipalité]]&\" [\"&Tableau6[[#This Row],[Région administrative]]&\"]\"","v":"Saint-David [Montérégie (16)]"}]
["Saint-David-de-Falardeau","Saguenay--Lac-Saint-Jean (02)",{"$f":"Tableau6[[#This Row],[Nom de municipalité]]&\" [\"&Tableau6[[#This Row],[Région administrative]]&\"]\"","v":"Saint-David-de-Falardeau [Saguenay--Lac-Saint-Jean (02)]"}]
["Saint-Denis-De La Bouteillerie","Bas-Saint-Laurent (01)",{"$f":"Tableau6[[#This Row],[Nom de municipalité]]&\" [\"&Tableau6[[#This Row],[Région administrative]]&\"]\"","v":"Saint-Denis-De La Bouteillerie [Bas-Saint-Laurent (01)]"}]
["Saint-Denis-de-Brompton","Estrie (05)",{"$f":"Tableau6[[#This Row],[Nom de municipalité]]&\" [\"&Tableau6[[#This Row],[Région administrative]]&\"]\"","v":"Saint-Denis-de-Brompton [Estrie (05)]"}]
["Saint-Denis-sur-Richelieu","Montérégie (16)",{"$f":"Tableau6[[#This Row],[Nom de municipalité]]&\" [\"&Tableau6[[#This Row],[Région administrative]]&\"]\"","v":"Saint-Denis-sur-Richelieu [Montérégie (16)]"}]
["Saint-Didace","Lanaudière (14)",{"$f":"Tableau6[[#This Row],[Nom de municipalité]]&\" [\"&Tableau6[[#This Row],[Région administrative]]&\"]\"","v":"Saint-Didace [Lanaudière (14)]"}]
["Saint-Dominique","Montérégie (16)",{"$f":"Tableau6[[#This Row],[Nom de municipalité]]&\" [\"&Tableau6[[#This Row],[Région administrative]]&\"]\"","v":"Saint-Dominique [Montérégie (16)]"}]
["Saint-Dominique-du-Rosaire","Abitibi-Témiscamingue (08)",{"$f":"Tableau6[[#This Row],[Nom de municipalité]]&\" [\"&Tableau6[[#This Row],[Région administrative]]&\"]\"","v":"Saint-Dominique-du-Rosaire [Abitibi-Témiscamingue (08)]"}]
["Saint-Donat","Bas-Saint-Laurent (01)",{"$f":"Tableau6[[#This Row],[Nom de municipalité]]&\" [\"&Tableau6[[#This Row],[Région administrative]]&\"]\"","v":"Saint-Donat [Bas-Saint-Laurent (01)]"}]
["Saint-Donat","Lanaudière (14)",{"$f":"Tableau6[[#This Row],[Nom de municipalité]]&\" [\"&Tableau6[[#This Row],[Région administrative]]&\"]\"","v":"Saint-Donat [Lanaudière (14)]"}]
["Sainte-Adèle","Laurentides (15)",{"$f":"Tableau6[[#This Row],[Nom de municipalité]]&\" [\"&Tableau6[[#This Row],[Région administrative]]&\"]\"","v":"Sainte-Adèle [Laurentides (15)]"}]
["Sainte-Agathe-de-Lotbinière","Chaudière-Appalaches (12)",{"$f":"Tableau6[[#This Row],[Nom de municipalité]]&\" [\"&Tableau6[[#This Row],[Région administrative]]&\"]\"","v":"Sainte-Agathe-de-Lotbinière [Chaudière-Appalaches (12)]"}]
["Sainte-Agathe-des-Monts","Laurentides (15)",{"$f":"Tableau6[[#This Row],[Nom de municipalité]]&\" [\"&Tableau6[[#This Row],[Région administrative]]&\"]\"","v":"Sainte-Agathe-des-Monts [Laurentides (15)]"}]
["Sainte-Angèle-de-Mérici","Bas-Saint-Laurent (01)",{"$f":"Tableau6[[#This Row],[Nom de municipalité]]&\" [\"&Tableau6[[#This Row],[Région administrative]]&\"]\"","v":"Sainte-Angèle-de-Mérici [Bas-Saint-Laurent (01)]"}]
["Sainte-Angèle-de-Monnoir","Montérégie (16)",{"$f":"Tableau6[[#This Row],[Nom de municipalité]]&\" [\"&Tableau6[[#This Row],[Région administrative]]&\"]\"","v":"Sainte-Angèle-de-Monnoir [Montérégie (16)]"}]
["Sainte-Angèle-de-Prémont","Mauricie (04)",{"$f":"Tableau6[[#This Row],[Nom de municipalité]]&\" [\"&Tableau6[[#This Row],[Région administrative]]&\"]\"","v":"Sainte-Angèle-de-Prémont [Mauricie (04)]"}]
["Sainte-Anne-de-Beaupré","Capitale-Nationale (03)",{"$f":"Tableau6[[#This Row],[Nom de municipalité]]&\" [\"&Tableau6[[#This Row],[Région administrative]]&\"]\"","v":"Sainte-Anne-de-Beaupré [Capitale-Nationale (03)]"}]
["Sainte-Anne-de-Bellevue","Montréal (06)",{"$f":"Tableau6[[#This Row],[Nom de municipalité]]&\" [\"&Tableau6[[#This Row],[Région administrative]]&\"]\"","v":"Sainte-Anne-de-Bellevue [Montréal (06)]"}]
["Sainte-Anne-de-la-Pérade","Mauricie (04)",{"$f":"Tableau6[[#This Row],[Nom de municipalité]]&\" [\"&Tableau6[[#This Row],[Région administrative]]&\"]\"","v":"Sainte-Anne-de-la-Pérade [Mauricie (04)]"}]
["Sainte-Anne-de-la-Pocatière","Bas-Saint-Laurent (01)",{"$f":"Tableau6[[#This Row],[Nom de municipalité]]&\" [\"&Tableau6[[#This Row],[Région administrative]]&\"]\"","v":"Sainte-Anne-de-la-Pocatière [Bas-Saint-Laurent (01)]"}]
["Sainte-Anne-de-la-Rochelle","Estrie (05)",{"$f":"Tableau6[[#This Row],[Nom de municipalité]]&\" [\"&Tableau6[[#This Row],[Région administrative]]&\"]\"","v":"Sainte-Anne-de-la-Rochelle [Estrie (05)]"}]
["Sainte-Anne-de-Sabrevois","Montérégie (16)",{"$f":"Tableau6[[#This Row],[Nom de municipalité]]&\" [\"&Tableau6[[#This Row],[Région administrative]]&\"]\"","v":"Sainte-Anne-de-Sabrevois [Montérégie (16)]"}]
["Sainte-Anne-des-Lacs","Laurentides (15)",{"$f":"Tableau6[[#This Row],[Nom de municipalité]]&\" [\"&Tableau6[[#This Row],[Région administrative]]&\"]\"","v":"Sainte-Anne-des-Lacs [Laurentides (15)]"}]
["Sainte-Anne-des-Monts","Gaspésie--Îles-de-la-Madeleine (11)",{"$f":"Tableau6[[#This Row],[Nom de municipalité]]&\" [\"&Tableau6[[#This Row],[Région administrative]]&\"]\"","v":"Sainte-Anne-des-Monts [Gaspésie--Îles-de-la-Madeleine (11)]"}]
["Sainte-Anne-de-Sorel","Montérégie (16)",{"$f":"Tableau6[[#This Row],[Nom de municipalité]]&\" [\"&Tableau6[[#This Row],[Région administrative]]&\"]\"","v":"Sainte-Anne-de-Sorel [Montérégie (16)]"}]
["Sainte-Anne-des-Plaines","Laurentides (15)",{"$f":"Tableau6[[#This Row],[Nom de municipalité]]&\" [\"&Tableau6[[#This Row],[Région administrative]]&\"]\"","v":"Sainte-Anne-des-Plaines [Laurentides (15)]"}]
["Sainte-Anne-du-Lac","Laurentides (15)",{"$f":"Tableau6[[#This Row],[Nom de municipalité]]&\" [\"&Tableau6[[#This Row],[Région administrative]]&\"]\"","v":"Sainte-Anne-du-Lac [Laurentides (15)]"}]
["Sainte-Apolline-de-Patton","Chaudière-Appalaches (12)",{"$f":"Tableau6[[#This Row],[Nom de municipalité]]&\" [\"&Tableau6[[#This Row],[Région administrative]]&\"]\"","v":"Sainte-Apolline-de-Patton [Chaudière-Appalaches (12)]"}]
["Sainte-Aurélie","Chaudière-Appalaches (12)",{"$f":"Tableau6[[#This Row],[Nom de municipalité]]&\" [\"&Tableau6[[#This Row],[Région administrative]]&\"]\"","v":"Sainte-Aurélie [Chaudière-Appalaches (12)]"}]
["Sainte-Barbe","Montérégie (16)",{"$f":"Tableau6[[#This Row],[Nom de municipalité]]&\" [\"&Tableau6[[#This Row],[Région administrative]]&\"]\"","v":"Sainte-Barbe [Montérégie (16)]"}]
["Sainte-Béatrix","Lanaudière (14)",{"$f":"Tableau6[[#This Row],[Nom de municipalité]]&\" [\"&Tableau6[[#This Row],[Région administrative]]&\"]\"","v":"Sainte-Béatrix [Lanaudière (14)]"}]
["Sainte-Brigide-d'Iberville","Montérégie (16)",{"$f":"Tableau6[[#This Row],[Nom de municipalité]]&\" [\"&Tableau6[[#This Row],[Région administrative]]&\"]\"","v":"Sainte-Brigide-d'Iberville [Montérégie (16)]"}]
["Sainte-Brigitte-de-Laval","Capitale-Nationale (03)",{"$f":"Tableau6[[#This Row],[Nom de municipalité]]&\" [\"&Tableau6[[#This Row],[Région administrative]]&\"]\"","v":"Sainte-Brigitte-de-Laval [Capitale-Nationale (03)]"}]
["Sainte-Brigitte-des-Saults","Centre-du-Québec (17)",{"$f":"Tableau6[[#This Row],[Nom de municipalité]]&\" [\"&Tableau6[[#This Row],[Région administrative]]&\"]\"","v":"Sainte-Brigitte-des-Saults [Centre-du-Québec (17)]"}]
["Sainte-Catherine","Montérégie (16)",{"$f":"Tableau6[[#This Row],[Nom de municipalité]]&\" [\"&Tableau6[[#This Row],[Région administrative]]&\"]\"","v":"Sainte-Catherine [Montérégie (16)]"}]
["Sainte-Catherine-de-Hatley","Estrie (05)",{"$f":"Tableau6[[#This Row],[Nom de municipalité]]&\" [\"&Tableau6[[#This Row],[Région administrative]]&\"]\"","v":"Sainte-Catherine-de-Hatley [Estrie (05)]"}]
["Sainte-Cécile-de-Lévrard","Centre-du-Québec (17)",{"$f":"Tableau6[[#This Row],[Nom de municipalité]]&\" [\"&Tableau6[[#This Row],[Région administrative]]&\"]\"","v":"Sainte-Cécile-de-Lévrard [Centre-du-Québec (17)]"}]
["Sainte-Cécile-de-Milton","Montérégie (16)",{"$f":"Tableau6[[#This Row],[Nom de municipalité]]&\" [\"&Tableau6[[#This Row],[Région administrative]]&\"]\"","v":"Sainte-Cécile-de-Milton [Montérégie (16)]"}]
["Sainte-Cécile-de-Whitton","Estrie (05)",{"$f":"Tableau6[[#This Row],[Nom de municipalité]]&\" [\"&Tableau6[[#This Row],[Région administrative]]&\"]\"","v":"Sainte-Cécile-de-Whitton [Estrie (05)]"}]
["Sainte-Christine","Montérégie (16)",{"$f":"Tableau6[[#This Row],[Nom de municipalité]]&\" [\"&Tableau6[[#This Row],[Région administrative]]&\"]\"","v":"Sainte-Christine [Montérégie (16)]"}]
["Sainte-Christine-d'Auvergne","Capitale-Nationale (03)",{"$f":"Tableau6[[#This Row],[Nom de municipalité]]&\" [\"&Tableau6[[#This Row],[Région administrative]]&\"]\"","v":"Sainte-Christine-d'Auvergne [Capitale-Nationale (03)]"}]
["Sainte-Claire","Chaudière-Appalaches (12)",{"$f":"Tableau6[[#This Row],[Nom de municipalité]]&\" [\"&Tableau6[[#This Row],[Région administrative]]&\"]\"","v":"Sainte-Claire [Chaudière-Appalaches (12)]"}]
["Sainte-Clotilde","Montérégie (16)",{"$f":"Tableau6[[#This Row],[Nom de municipalité]]&\" [\"&Tableau6[[#This Row],[Région administrative]]&\"]\"","v":"Sainte-Clotilde [Montérégie (16)]"}]
["Sainte-Clotilde-de-Beauce","Chaudière-Appalaches (12)",{"$f":"Tableau6[[#This Row],[Nom de municipalité]]&\" [\"&Tableau6[[#This Row],[Région administrative]]&\"]\"","v":"Sainte-Clotilde-de-Beauce [Chaudière-Appalaches (12)]"}]
["Sainte-Clotilde-de-Horton","Centre-du-Québec (17)",{"$f":"Tableau6[[#This Row],[Nom de municipalité]]&\" [\"&Tableau6[[#This Row],[Région administrative]]&\"]\"","v":"Sainte-Clotilde-de-Horton [Centre-du-Québec (17)]"}]
["Sainte-Croix","Chaudière-Appalaches (12)",{"$f":"Tableau6[[#This Row],[Nom de municipalité]]&\" [\"&Tableau6[[#This Row],[Région administrative]]&\"]\"","v":"Sainte-Croix [Chaudière-Appalaches (12)]"}]
["Saint-Edmond-de-Grantham","Centre-du-Québec (17)",{"$f":"Tableau6[[#This Row],[Nom de municipalité]]&\" [\"&Tableau6[[#This Row],[Région administrative]]&\"]\"","v":"Saint-Edmond-de-Grantham [Centre-du-Québec (17)]"}]
["Saint-Edmond-les-Plaines","Saguenay--Lac-Saint-Jean (02)",{"$f":"Tableau6[[#This Row],[Nom de municipalité]]&\" [\"&Tableau6[[#This Row],[Région administrative]]&\"]\"","v":"Saint-Edmond-les-Plaines [Saguenay--Lac-Saint-Jean (02)]"}]
["Saint-Édouard","Montérégie (16)",{"$f":"Tableau6[[#This Row],[Nom de municipalité]]&\" [\"&Tableau6[[#This Row],[Région administrative]]&\"]\"","v":"Saint-Édouard [Montérégie (16)]"}]
["Saint-Édouard-de-Fabre","Abitibi-Témiscamingue (08)",{"$f":"Tableau6[[#This Row],[Nom de municipalité]]&\" [\"&Tableau6[[#This Row],[Région administrative]]&\"]\"","v":"Saint-Édouard-de-Fabre [Abitibi-Témiscamingue (08)]"}]
["Saint-Édouard-de-Lotbinière","Chaudière-Appalaches (12)",{"$f":"Tableau6[[#This Row],[Nom de municipalité]]&\" [\"&Tableau6[[#This Row],[Région administrative]]&\"]\"","v":"Saint-Édouard-de-Lotbinière [Chaudière-Appalaches (12)]"}]
["Saint-Édouard-de-Maskinongé","Mauricie (04)",{"$f":"Tableau6[[#This Row],[Nom de municipalité]]&\" [\"&Tableau6[[#This Row],[Région administrative]]&\"]\"","v":"Saint-Édouard-de-Maskinongé [Mauricie (04)]"}]
["Sainte-Edwidge-de-Clifton","Estrie (05)",{"$f":"Tableau6[[#This Row],[Nom de municipalité]]&\" [\"&Tableau6[[#This Row],[Région administrative]]&\"]\"","v":"Sainte-Edwidge-de-Clifton [Estrie (05)]"}]
["Sainte-Élisabeth","Lanaudière (14)",{"$f":"Tableau6[[#This Row],[Nom de municipalité]]&\" [\"&Tableau6[[#This Row],[Région administrative]]&\"]\"","v":"Sainte-Élisabeth [Lanaudière (14)]"}]
["Sainte-Élizabeth-de-Warwick","Centre-du-Québec (17)",{"$f":"Tableau6[[#This Row],[Nom de municipalité]]&\" [\"&Tableau6[[#This Row],[Région administrative]]&\"]\"","v":"Sainte-Élizabeth-de-Warwick [Centre-du-Québec (17)]"}]
["Sainte-Émélie-de-l'Énergie","Lanaudière (14)",{"$f":"Tableau6[[#This Row],[Nom de municipalité]]&\" [\"&Tableau6[[#This Row],[Région administrative]]&\"]\"","v":"Sainte-Émélie-de-l'Énergie [Lanaudière (14)]"}]
["Sainte-Eulalie","Centre-du-Québec (17)",{"$f":"Tableau6[[#This Row],[Nom de municipalité]]&\" [\"&Tableau6[[#This Row],[Région administrative]]&\"]\"","v":"Sainte-Eulalie [Centre-du-Québec (17)]"}]
["Sainte-Euphémie-sur-Riv-du-Sud","Chaudière-Appalaches (12)",{"$f":"Tableau6[[#This Row],[Nom de municipalité]]&\" [\"&Tableau6[[#This Row],[Région administrative]]&\"]\"","v":"Sainte-Euphémie-sur-Riv-du-Sud [Chaudière-Appalaches (12)]"}]
["Sainte-Famille","Capitale-Nationale (03)",{"$f":"Tableau6[[#This Row],[Nom de municipalité]]&\" [\"&Tableau6[[#This Row],[Région administrative]]&\"]\"","v":"Sainte-Famille [Capitale-Nationale (03)]"}]
["Sainte-Félicité","Bas-Saint-Laurent (01)",{"$f":"Tableau6[[#This Row],[Nom de municipalité]]&\" [\"&Tableau6[[#This Row],[Région administrative]]&\"]\"","v":"Sainte-Félicité [Bas-Saint-Laurent (01)]"}]
["Sainte-Félicité","Chaudière-Appalaches (12)",{"$f":"Tableau6[[#This Row],[Nom de municipalité]]&\" [\"&Tableau6[[#This Row],[Région administrative]]&\"]\"","v":"Sainte-Félicité [Chaudière-Appalaches (12)]"}]
["Sainte-Flavie","Bas-Saint-Laurent (01)",{"$f":"Tableau6[[#This Row],[Nom de municipalité]]&\" [\"&Tableau6[[#This Row],[Région administrative]]&\"]\"","v":"Sainte-Flavie [Bas-Saint-Laurent (01)]"}]
["Sainte-Florence","Bas-Saint-Laurent (01)",{"$f":"Tableau6[[#This Row],[Nom de municipalité]]&\" [\"&Tableau6[[#This Row],[Région administrative]]&\"]\"","v":"Sainte-Florence [Bas-Saint-Laurent (01)]"}]
["Sainte-Françoise","Bas-Saint-Laurent (01)",{"$f":"Tableau6[[#This Row],[Nom de municipalité]]&\" [\"&Tableau6[[#This Row],[Région administrative]]&\"]\"","v":"Sainte-Françoise [Bas-Saint-Laurent (01)]"}]
["Sainte-Françoise","Centre-du-Québec (17)",{"$f":"Tableau6[[#This Row],[Nom de municipalité]]&\" [\"&Tableau6[[#This Row],[Région administrative]]&\"]\"","v":"Sainte-Françoise [Centre-du-Québec (17)]"}]
["Sainte-Geneviève-de-Batiscan","Mauricie (04)",{"$f":"Tableau6[[#This Row],[Nom de municipalité]]&\" [\"&Tableau6[[#This Row],[Région administrative]]&\"]\"","v":"Sainte-Geneviève-de-Batiscan [Mauricie (04)]"}]
["Sainte-Geneviève-de-Berthier","Lanaudière (14)",{"$f":"Tableau6[[#This Row],[Nom de municipalité]]&\" [\"&Tableau6[[#This Row],[Région administrative]]&\"]\"","v":"Sainte-Geneviève-de-Berthier [Lanaudière (14)]"}]
["Sainte-Germaine-Boulé","Abitibi-Témiscamingue (08)",{"$f":"Tableau6[[#This Row],[Nom de municipalité]]&\" [\"&Tableau6[[#This Row],[Région administrative]]&\"]\"","v":"Sainte-Germaine-Boulé [Abitibi-Témiscamingue (08)]"}]
["Sainte-Gertrude-Manneville","Abitibi-Témiscamingue (08)",{"$f":"Tableau6[[#This Row],[Nom de municipalité]]&\" [\"&Tableau6[[#This Row],[Région administrative]]&\"]\"","v":"Sainte-Gertrude-Manneville [Abitibi-Témiscamingue (08)]"}]
["Sainte-Hedwidge","Saguenay--Lac-Saint-Jean (02)",{"$f":"Tableau6[[#This Row],[Nom de municipalité]]&\" [\"&Tableau6[[#This Row],[Région administrative]]&\"]\"","v":"Sainte-Hedwidge [Saguenay--Lac-Saint-Jean (02)]"}]
["Sainte-Hélène-de-Bagot","Montérégie (16)",{"$f":"Tableau6[[#This Row],[Nom de municipalité]]&\" [\"&Tableau6[[#This Row],[Région administrative]]&\"]\"","v":"Sainte-Hélène-de-Bagot [Montérégie (16)]"}]
["Sainte-Hélène-de-Chester","Centre-du-Québec (17)",{"$f":"Tableau6[[#This Row],[Nom de municipalité]]&\" [\"&Tableau6[[#This Row],[Région administrative]]&\"]\"","v":"Sainte-Hélène-de-Chester [Centre-du-Québec (17)]"}]
["Sainte-Hélène-de-Kamouraska","Bas-Saint-Laurent (01)",{"$f":"Tableau6[[#This Row],[Nom de municipalité]]&\" [\"&Tableau6[[#This Row],[Région administrative]]&\"]\"","v":"Sainte-Hélène-de-Kamouraska [Bas-Saint-Laurent (01)]"}]
["Sainte-Hélène-de-Mancebourg","Abitibi-Témiscamingue (08)",{"$f":"Tableau6[[#This Row],[Nom de municipalité]]&\" [\"&Tableau6[[#This Row],[Région administrative]]&\"]\"","v":"Sainte-Hélène-de-Mancebourg [Abitibi-Témiscamingue (08)]"}]
["Sainte-Hénédine","Chaudière-Appalaches (12)",{"$f":"Tableau6[[#This Row],[Nom de municipalité]]&\" [\"&Tableau6[[#This Row],[Région administrative]]&\"]\"","v":"Sainte-Hénédine [Chaudière-Appalaches (12)]"}]
["Sainte-Irène","Bas-Saint-Laurent (01)",{"$f":"Tableau6[[#This Row],[Nom de municipalité]]&\" [\"&Tableau6[[#This Row],[Région administrative]]&\"]\"","v":"Sainte-Irène [Bas-Saint-Laurent (01)]"}]
["Sainte-Jeanne-d'Arc","Saguenay--Lac-Saint-Jean (02)",{"$f":"Tableau6[[#This Row],[Nom de municipalité]]&\" [\"&Tableau6[[#This Row],[Région administrative]]&\"]\"","v":"Sainte-Jeanne-d'Arc [Saguenay--Lac-Saint-Jean (02)]"}]
["Sainte-Jeanne-d'Arc","Bas-Saint-Laurent (01)",{"$f":"Tableau6[[#This Row],[Nom de municipalité]]&\" [\"&Tableau6[[#This Row],[Région administrative]]&\"]\"","v":"Sainte-Jeanne-d'Arc [Bas-Saint-Laurent (01)]"}]
["Sainte-Julie","Montérégie (16)",{"$f":"Tableau6[[#This Row],[Nom de municipalité]]&\" [\"&Tableau6[[#This Row],[Région administrative]]&\"]\"","v":"Sainte-Julie [Montérégie (16)]"}]
["Sainte-Julienne","Lanaudière (14)",{"$f":"Tableau6[[#This Row],[Nom de municipalité]]&\" [\"&Tableau6[[#This Row],[Région administrative]]&\"]\"","v":"Sainte-Julienne [Lanaudière (14)]"}]
["Sainte-Justine","Chaudière-Appalaches (12)",{"$f":"Tableau6[[#This Row],[Nom de municipalité]]&\" [\"&Tableau6[[#This Row],[Région administrative]]&\"]\"","v":"Sainte-Justine [Chaudière-Appalaches (12)]"}]
["Sainte-Justine-de-Newton","Montérégie (16)",{"$f":"Tableau6[[#This Row],[Nom de municipalité]]&\" [\"&Tableau6[[#This Row],[Région administrative]]&\"]\"","v":"Sainte-Justine-de-Newton [Montérégie (16)]"}]
["Saint-Élie-de-Caxton","Mauricie (04)",{"$f":"Tableau6[[#This Row],[Nom de municipalité]]&\" [\"&Tableau6[[#This Row],[Région administrative]]&\"]\"","v":"Saint-Élie-de-Caxton [Mauricie (04)]"}]
["Saint-Éloi","Bas-Saint-Laurent (01)",{"$f":"Tableau6[[#This Row],[Nom de municipalité]]&\" [\"&Tableau6[[#This Row],[Région administrative]]&\"]\"","v":"Saint-Éloi [Bas-Saint-Laurent (01)]"}]
["Sainte-Louise","Chaudière-Appalaches (12)",{"$f":"Tableau6[[#This Row],[Nom de municipalité]]&\" [\"&Tableau6[[#This Row],[Région administrative]]&\"]\"","v":"Sainte-Louise [Chaudière-Appalaches (12)]"}]
["Saint-Elphège","Centre-du-Québec (17)",{"$f":"Tableau6[[#This Row],[Nom de municipalité]]&\" [\"&Tableau6[[#This Row],[Région administrative]]&\"]\"","v":"Saint-Elphège [Centre-du-Québec (17)]"}]
["Sainte-Luce","Bas-Saint-Laurent (01)",{"$f":"Tableau6[[#This Row],[Nom de municipalité]]&\" [\"&Tableau6[[#This Row],[Région administrative]]&\"]\"","v":"Sainte-Luce [Bas-Saint-Laurent (01)]"}]
["Sainte-Lucie-de-Beauregard","Chaudière-Appalaches (12)",{"$f":"Tableau6[[#This Row],[Nom de municipalité]]&\" [\"&Tableau6[[#This Row],[Région administrative]]&\"]\"","v":"Sainte-Lucie-de-Beauregard [Chaudière-Appalaches (12)]"}]
["Sainte-Lucie-des-Laurentides","Laurentides (15)",{"$f":"Tableau6[[#This Row],[Nom de municipalité]]&\" [\"&Tableau6[[#This Row],[Région administrative]]&\"]\"","v":"Sainte-Lucie-des-Laurentides [Laurentides (15)]"}]
["Saint-Elzéar","Chaudière-Appalaches (12)",{"$f":"Tableau6[[#This Row],[Nom de municipalité]]&\" [\"&Tableau6[[#This Row],[Région administrative]]&\"]\"","v":"Saint-Elzéar [Chaudière-Appalaches (12)]"}]
["Saint-Elzéar","Gaspésie--Îles-de-la-Madeleine (11)",{"$f":"Tableau6[[#This Row],[Nom de municipalité]]&\" [\"&Tableau6[[#This Row],[Région administrative]]&\"]\"","v":"Saint-Elzéar [Gaspésie--Îles-de-la-Madeleine (11)]"}]
["Saint-Elzéar-de-Témiscouata","Bas-Saint-Laurent (01)",{"$f":"Tableau6[[#This Row],[Nom de municipalité]]&\" [\"&Tableau6[[#This Row],[Région administrative]]&\"]\"","v":"Saint-Elzéar-de-Témiscouata [Bas-Saint-Laurent (01)]"}]
["Sainte-Madeleine","Montérégie (16)",{"$f":"Tableau6[[#This Row],[Nom de municipalité]]&\" [\"&Tableau6[[#This Row],[Région administrative]]&\"]\"","v":"Sainte-Madeleine [Montérégie (16)]"}]
["Sainte-Madeleine-Riv.-Madeleine","Gaspésie--Îles-de-la-Madeleine (11)",{"$f":"Tableau6[[#This Row],[Nom de municipalité]]&\" [\"&Tableau6[[#This Row],[Région administrative]]&\"]\"","v":"Sainte-Madeleine-Riv.-Madeleine [Gaspésie--Îles-de-la-Madeleine (11)]"}]
["Sainte-Marcelline-de-Kildare","Lanaudière (14)",{"$f":"Tableau6[[#This Row],[Nom de municipalité]]&\" [\"&Tableau6[[#This Row],[Région administrative]]&\"]\"","v":"Sainte-Marcelline-de-Kildare [Lanaudière (14)]"}]
["Sainte-Marguerite","Chaudière-Appalaches (12)",{"$f":"Tableau6[[#This Row],[Nom de municipalité]]&\" [\"&Tableau6[[#This Row],[Région administrative]]&\"]\"","v":"Sainte-Marguerite [Chaudière-Appalaches (12)]"}]
["Sainte-Marguerite-du-Lac-Masson","Laurentides (15)",{"$f":"Tableau6[[#This Row],[Nom de municipalité]]&\" [\"&Tableau6[[#This Row],[Région administrative]]&\"]\"","v":"Sainte-Marguerite-du-Lac-Masson [Laurentides (15)]"}]
["Sainte-Marguerite-Marie","Bas-Saint-Laurent (01)",{"$f":"Tableau6[[#This Row],[Nom de municipalité]]&\" [\"&Tableau6[[#This Row],[Région administrative]]&\"]\"","v":"Sainte-Marguerite-Marie [Bas-Saint-Laurent (01)]"}]
["Sainte-Marie","Chaudière-Appalaches (12)",{"$f":"Tableau6[[#This Row],[Nom de municipalité]]&\" [\"&Tableau6[[#This Row],[Région administrative]]&\"]\"","v":"Sainte-Marie [Chaudière-Appalaches (12)]"}]
["Sainte-Marie-de-Blandford","Centre-du-Québec (17)",{"$f":"Tableau6[[#This Row],[Nom de municipalité]]&\" [\"&Tableau6[[#This Row],[Région administrative]]&\"]\"","v":"Sainte-Marie-de-Blandford [Centre-du-Québec (17)]"}]
["Sainte-Marie-Madeleine","Montérégie (16)",{"$f":"Tableau6[[#This Row],[Nom de municipalité]]&\" [\"&Tableau6[[#This Row],[Région administrative]]&\"]\"","v":"Sainte-Marie-Madeleine [Montérégie (16)]"}]
["Sainte-Marie-Salomé","Lanaudière (14)",{"$f":"Tableau6[[#This Row],[Nom de municipalité]]&\" [\"&Tableau6[[#This Row],[Région administrative]]&\"]\"","v":"Sainte-Marie-Salomé [Lanaudière (14)]"}]
["Sainte-Marthe","Montérégie (16)",{"$f":"Tableau6[[#This Row],[Nom de municipalité]]&\" [\"&Tableau6[[#This Row],[Région administrative]]&\"]\"","v":"Sainte-Marthe [Montérégie (16)]"}]
["Sainte-Marthe-sur-le-Lac","Laurentides (15)",{"$f":"Tableau6[[#This Row],[Nom de municipalité]]&\" [\"&Tableau6[[#This Row],[Région administrative]]&\"]\"","v":"Sainte-Marthe-sur-le-Lac [Laurentides (15)]"}]
["Sainte-Martine","Montérégie (16)",{"$f":"Tableau6[[#This Row],[Nom de municipalité]]&\" [\"&Tableau6[[#This Row],[Région administrative]]&\"]\"","v":"Sainte-Martine [Montérégie (16)]"}]
["Sainte-Mélanie","Lanaudière (14)",{"$f":"Tableau6[[#This Row],[Nom de municipalité]]&\" [\"&Tableau6[[#This Row],[Région administrative]]&\"]\"","v":"Sainte-Mélanie [Lanaudière (14)]"}]
["Saint-Émile-de-Suffolk","Outaouais (07)",{"$f":"Tableau6[[#This Row],[Nom de municipalité]]&\" [\"&Tableau6[[#This Row],[Région administrative]]&\"]\"","v":"Saint-Émile-de-Suffolk [Outaouais (07)]"}]
["Sainte-Monique","Saguenay--Lac-Saint-Jean (02)",{"$f":"Tableau6[[#This Row],[Nom de municipalité]]&\" [\"&Tableau6[[#This Row],[Région administrative]]&\"]\"","v":"Sainte-Monique [Saguenay--Lac-Saint-Jean (02)]"}]
["Sainte-Monique","Centre-du-Québec (17)",{"$f":"Tableau6[[#This Row],[Nom de municipalité]]&\" [\"&Tableau6[[#This Row],[Région administrative]]&\"]\"","v":"Sainte-Monique [Centre-du-Québec (17)]"}]
["Sainte-Paule","Bas-Saint-Laurent (01)",{"$f":"Tableau6[[#This Row],[Nom de municipalité]]&\" [\"&Tableau6[[#This Row],[Région administrative]]&\"]\"","v":"Sainte-Paule [Bas-Saint-Laurent (01)]"}]
["Sainte-Perpétue","Chaudière-Appalaches (12)",{"$f":"Tableau6[[#This Row],[Nom de municipalité]]&\" [\"&Tableau6[[#This Row],[Région administrative]]&\"]\"","v":"Sainte-Perpétue [Chaudière-Appalaches (12)]"}]
["Sainte-Perpétue","Centre-du-Québec (17)",{"$f":"Tableau6[[#This Row],[Nom de municipalité]]&\" [\"&Tableau6[[#This Row],[Région administrative]]&\"]\"","v":"Sainte-Perpétue [Centre-du-Québec (17)]"}]
["Sainte-Pétronille","Capitale-Nationale (03)",{"$f":"Tableau6[[#This Row],[Nom de municipalité]]&\" [\"&Tableau6[[#This Row],[Région administrative]]&\"]\"","v":"Sainte-Pétronille [Capitale-Nationale (03)]"}]
["Saint-Éphrem-de-Beauce","Chaudière-Appalaches (12)",{"$f":"Tableau6[[#This Row],[Nom de municipalité]]&\" [\"&Tableau6[[#This Row],[Région administrative]]&\"]\"","v":"Saint-Éphrem-de-Beauce [Chaudière-Appalaches (12)]"}]
["Saint-Épiphane","Bas-Saint-Laurent (01)",{"$f":"Tableau6[[#This Row],[Nom de municipalité]]&\" [\"&Tableau6[[#This Row],[Région administrative]]&\"]\"","v":"Saint-Épiphane [Bas-Saint-Laurent (01)]"}]
["Sainte-Praxède","Chaudière-Appalaches (12)",{"$f":"Tableau6[[#This Row],[Nom de municipalité]]&\" [\"&Tableau6[[#This Row],[Région administrative]]&\"]\"","v":"Sainte-Praxède [Chaudière-Appalaches (12)]"}]
["Sainte-Rita","Bas-Saint-Laurent (01)",{"$f":"Tableau6[[#This Row],[Nom de municipalité]]&\" [\"&Tableau6[[#This Row],[Région administrative]]&\"]\"","v":"Sainte-Rita [Bas-Saint-Laurent (01)]"}]
["Sainte-Rose-de-Watford","Chaudière-Appalaches (12)",{"$f":"Tableau6[[#This Row],[Nom de municipalité]]&\" [\"&Tableau6[[#This Row],[Région administrative]]&\"]\"","v":"Sainte-Rose-de-Watford [Chaudière-Appalaches (12)]"}]
["Sainte-Rose-du-Nord","Saguenay--Lac-Saint-Jean (02)",{"$f":"Tableau6[[#This Row],[Nom de municipalité]]&\" [\"&Tableau6[[#This Row],[Région administrative]]&\"]\"","v":"Sainte-Rose-du-Nord [Saguenay--Lac-Saint-Jean (02)]"}]
["Sainte-Sabine","Chaudière-Appalaches (12)",{"$f":"Tableau6[[#This Row],[Nom de municipalité]]&\" [\"&Tableau6[[#This Row],[Région administrative]]&\"]\"","v":"Sainte-Sabine [Chaudière-Appalaches (12)]"}]
["Sainte-Sabine","Montérégie (16)",{"$f":"Tableau6[[#This Row],[Nom de municipalité]]&\" [\"&Tableau6[[#This Row],[Région administrative]]&\"]\"","v":"Sainte-Sabine [Montérégie (16)]"}]
["Sainte-Séraphine","Centre-du-Québec (17)",{"$f":"Tableau6[[#This Row],[Nom de municipalité]]&\" [\"&Tableau6[[#This Row],[Région administrative]]&\"]\"","v":"Sainte-Séraphine [Centre-du-Québec (17)]"}]
["Sainte-Sophie","Laurentides (15)",{"$f":"Tableau6[[#This Row],[Nom de municipalité]]&\" [\"&Tableau6[[#This Row],[Région administrative]]&\"]\"","v":"Sainte-Sophie [Laurentides (15)]"}]
["Sainte-Sophie-de-Lévrard","Centre-du-Québec (17)",{"$f":"Tableau6[[#This Row],[Nom de municipalité]]&\" [\"&Tableau6[[#This Row],[Région administrative]]&\"]\"","v":"Sainte-Sophie-de-Lévrard [Centre-du-Québec (17)]"}]
["Sainte-Sophie-d'Halifax","Centre-du-Québec (17)",{"$f":"Tableau6[[#This Row],[Nom de municipalité]]&\" [\"&Tableau6[[#This Row],[Région administrative]]&\"]\"","v":"Sainte-Sophie-d'Halifax [Centre-du-Québec (17)]"}]
["Saint-Esprit","Lanaudière (14)",{"$f":"Tableau6[[#This Row],[Nom de municipalité]]&\" [\"&Tableau6[[#This Row],[Région administrative]]&\"]\"","v":"Saint-Esprit [Lanaudière (14)]"}]
["Sainte-Thècle","Mauricie (04)",{"$f":"Tableau6[[#This Row],[Nom de municipalité]]&\" [\"&Tableau6[[#This Row],[Région administrative]]&\"]\"","v":"Sainte-Thècle [Mauricie (04)]"}]
["Sainte-Thérèse","Laurentides (15)",{"$f":"Tableau6[[#This Row],[Nom de municipalité]]&\" [\"&Tableau6[[#This Row],[Région administrative]]&\"]\"","v":"Sainte-Thérèse [Laurentides (15)]"}]
["Sainte-Thérèse-de-Gaspé","Gaspésie--Îles-de-la-Madeleine (11)",{"$f":"Tableau6[[#This Row],[Nom de municipalité]]&\" [\"&Tableau6[[#This Row],[Région administrative]]&\"]\"","v":"Sainte-Thérèse-de-Gaspé [Gaspésie--Îles-de-la-Madeleine (11)]"}]
["Sainte-Thérèse-de-la-Gatineau","Outaouais (07)",{"$f":"Tableau6[[#This Row],[Nom de municipalité]]&\" [\"&Tableau6[[#This Row],[Région administrative]]&\"]\"","v":"Sainte-Thérèse-de-la-Gatineau [Outaouais (07)]"}]
["Saint-Étienne-de-Beauharnois","Montérégie (16)",{"$f":"Tableau6[[#This Row],[Nom de municipalité]]&\" [\"&Tableau6[[#This Row],[Région administrative]]&\"]\"","v":"Saint-Étienne-de-Beauharnois [Montérégie (16)]"}]
["Saint-Étienne-de-Bolton","Estrie (05)",{"$f":"Tableau6[[#This Row],[Nom de municipalité]]&\" [\"&Tableau6[[#This Row],[Région administrative]]&\"]\"","v":"Saint-Étienne-de-Bolton [Estrie (05)]"}]
["Saint-Étienne-des-Grès","Mauricie (04)",{"$f":"Tableau6[[#This Row],[Nom de municipalité]]&\" [\"&Tableau6[[#This Row],[Région administrative]]&\"]\"","v":"Saint-Étienne-des-Grès [Mauricie (04)]"}]
["Saint-Eugène","Centre-du-Québec (17)",{"$f":"Tableau6[[#This Row],[Nom de municipalité]]&\" [\"&Tableau6[[#This Row],[Région administrative]]&\"]\"","v":"Saint-Eugène [Centre-du-Québec (17)]"}]
["Saint-Eugène-d'Argentenay","Saguenay--Lac-Saint-Jean (02)",{"$f":"Tableau6[[#This Row],[Nom de municipalité]]&\" [\"&Tableau6[[#This Row],[Région administrative]]&\"]\"","v":"Saint-Eugène-d'Argentenay [Saguenay--Lac-Saint-Jean (02)]"}]
["Saint-Eugène-de-Guigues","Abitibi-Témiscamingue (08)",{"$f":"Tableau6[[#This Row],[Nom de municipalité]]&\" [\"&Tableau6[[#This Row],[Région administrative]]&\"]\"","v":"Saint-Eugène-de-Guigues [Abitibi-Témiscamingue (08)]"}]
["Saint-Eugène-de-Ladrière","Bas-Saint-Laurent (01)",{"$f":"Tableau6[[#This Row],[Nom de municipalité]]&\" [\"&Tableau6[[#This Row],[Région administrative]]&\"]\"","v":"Saint-Eugène-de-Ladrière [Bas-Saint-Laurent (01)]"}]
["Sainte-Ursule","Mauricie (04)",{"$f":"Tableau6[[#This Row],[Nom de municipalité]]&\" [\"&Tableau6[[#This Row],[Région administrative]]&\"]\"","v":"Sainte-Ursule [Mauricie (04)]"}]
["Saint-Eusèbe","Bas-Saint-Laurent (01)",{"$f":"Tableau6[[#This Row],[Nom de municipalité]]&\" [\"&Tableau6[[#This Row],[Région administrative]]&\"]\"","v":"Saint-Eusèbe [Bas-Saint-Laurent (01)]"}]
["Saint-Eustache","Laurentides (15)",{"$f":"Tableau6[[#This Row],[Nom de municipalité]]&\" [\"&Tableau6[[#This Row],[Région administrative]]&\"]\"","v":"Saint-Eustache [Laurentides (15)]"}]
["Saint-Évariste-de-Forsyth","Chaudière-Appalaches (12)",{"$f":"Tableau6[[#This Row],[Nom de municipalité]]&\" [\"&Tableau6[[#This Row],[Région administrative]]&\"]\"","v":"Saint-Évariste-de-Forsyth [Chaudière-Appalaches (12)]"}]
["Sainte-Victoire-de-Sorel","Montérégie (16)",{"$f":"Tableau6[[#This Row],[Nom de municipalité]]&\" [\"&Tableau6[[#This Row],[Région administrative]]&\"]\"","v":"Sainte-Victoire-de-Sorel [Montérégie (16)]"}]
["Saint-Fabien","Bas-Saint-Laurent (01)",{"$f":"Tableau6[[#This Row],[Nom de municipalité]]&\" [\"&Tableau6[[#This Row],[Région administrative]]&\"]\"","v":"Saint-Fabien [Bas-Saint-Laurent (01)]"}]
["Saint-Fabien-de-Panet","Chaudière-Appalaches (12)",{"$f":"Tableau6[[#This Row],[Nom de municipalité]]&\" [\"&Tableau6[[#This Row],[Région administrative]]&\"]\"","v":"Saint-Fabien-de-Panet [Chaudière-Appalaches (12)]"}]
["Saint-Faustin--Lac-Carré","Laurentides (15)",{"$f":"Tableau6[[#This Row],[Nom de municipalité]]&\" [\"&Tableau6[[#This Row],[Région administrative]]&\"]\"","v":"Saint-Faustin--Lac-Carré [Laurentides (15)]"}]
["Saint-Félicien","Saguenay--Lac-Saint-Jean (02)",{"$f":"Tableau6[[#This Row],[Nom de municipalité]]&\" [\"&Tableau6[[#This Row],[Région administrative]]&\"]\"","v":"Saint-Félicien [Saguenay--Lac-Saint-Jean (02)]"}]
["Saint-Félix-de-Dalquier","Abitibi-Témiscamingue (08)",{"$f":"Tableau6[[#This Row],[Nom de municipalité]]&\" [\"&Tableau6[[#This Row],[Région administrative]]&\"]\"","v":"Saint-Félix-de-Dalquier [Abitibi-Témiscamingue (08)]"}]
["Saint-Félix-de-Kingsey","Centre-du-Québec (17)",{"$f":"Tableau6[[#This Row],[Nom de municipalité]]&\" [\"&Tableau6[[#This Row],[Région administrative]]&\"]\"","v":"Saint-Félix-de-Kingsey [Centre-du-Québec (17)]"}]
["Saint-Félix-de-Valois","Lanaudière (14)",{"$f":"Tableau6[[#This Row],[Nom de municipalité]]&\" [\"&Tableau6[[#This Row],[Région administrative]]&\"]\"","v":"Saint-Félix-de-Valois [Lanaudière (14)]"}]
["Saint-Félix-d'Otis","Saguenay--Lac-Saint-Jean (02)",{"$f":"Tableau6[[#This Row],[Nom de municipalité]]&\" [\"&Tableau6[[#This Row],[Région administrative]]&\"]\"","v":"Saint-Félix-d'Otis [Saguenay--Lac-Saint-Jean (02)]"}]
["Saint-Ferdinand","Centre-du-Québec (17)",{"$f":"Tableau6[[#This Row],[Nom de municipalité]]&\" [\"&Tableau6[[#This Row],[Région administrative]]&\"]\"","v":"Saint-Ferdinand [Centre-du-Québec (17)]"}]
["Saint-Ferréol-les-Neiges","Capitale-Nationale (03)",{"$f":"Tableau6[[#This Row],[Nom de municipalité]]&\" [\"&Tableau6[[#This Row],[Région administrative]]&\"]\"","v":"Saint-Ferréol-les-Neiges [Capitale-Nationale (03)]"}]
["Saint-Flavien","Chaudière-Appalaches (12)",{"$f":"Tableau6[[#This Row],[Nom de municipalité]]&\" [\"&Tableau6[[#This Row],[Région administrative]]&\"]\"","v":"Saint-Flavien [Chaudière-Appalaches (12)]"}]
["Saint-Fortunat","Chaudière-Appalaches (12)",{"$f":"Tableau6[[#This Row],[Nom de municipalité]]&\" [\"&Tableau6[[#This Row],[Région administrative]]&\"]\"","v":"Saint-Fortunat [Chaudière-Appalaches (12)]"}]
["Saint-François-d'Assise","Gaspésie--Îles-de-la-Madeleine (11)",{"$f":"Tableau6[[#This Row],[Nom de municipalité]]&\" [\"&Tableau6[[#This Row],[Région administrative]]&\"]\"","v":"Saint-François-d'Assise [Gaspésie--Îles-de-la-Madeleine (11)]"}]
["Saint-François-de-la-Rivière-du-Sud","Chaudière-Appalaches (12)",{"$f":"Tableau6[[#This Row],[Nom de municipalité]]&\" [\"&Tableau6[[#This Row],[Région administrative]]&\"]\"","v":"Saint-François-de-la-Rivière-du-Sud [Chaudière-Appalaches (12)]"}]
["Saint-François-de-l'Île-d'Orléans","Capitale-Nationale (03)",{"$f":"Tableau6[[#This Row],[Nom de municipalité]]&\" [\"&Tableau6[[#This Row],[Région administrative]]&\"]\"","v":"Saint-François-de-l'Île-d'Orléans [Capitale-Nationale (03)]"}]
["Saint-François-de-Sales","Saguenay--Lac-Saint-Jean (02)",{"$f":"Tableau6[[#This Row],[Nom de municipalité]]&\" [\"&Tableau6[[#This Row],[Région administrative]]&\"]\"","v":"Saint-François-de-Sales [Saguenay--Lac-Saint-Jean (02)]"}]
["Saint-François-du-Lac","Centre-du-Québec (17)",{"$f":"Tableau6[[#This Row],[Nom de municipalité]]&\" [\"&Tableau6[[#This Row],[Région administrative]]&\"]\"","v":"Saint-François-du-Lac [Centre-du-Québec (17)]"}]
["Saint-François-Xavier-Brompton","Estrie (05)",{"$f":"Tableau6[[#This Row],[Nom de municipalité]]&\" [\"&Tableau6[[#This Row],[Région administrative]]&\"]\"","v":"Saint-François-Xavier-Brompton [Estrie (05)]"}]
["Saint-François-Xavier-de-Viger","Bas-Saint-Laurent (01)",{"$f":"Tableau6[[#This Row],[Nom de municipalité]]&\" [\"&Tableau6[[#This Row],[Région administrative]]&\"]\"","v":"Saint-François-Xavier-de-Viger [Bas-Saint-Laurent (01)]"}]
["Saint-Frédéric","Chaudière-Appalaches (12)",{"$f":"Tableau6[[#This Row],[Nom de municipalité]]&\" [\"&Tableau6[[#This Row],[Région administrative]]&\"]\"","v":"Saint-Frédéric [Chaudière-Appalaches (12)]"}]
["Saint-Fulgence","Saguenay--Lac-Saint-Jean (02)",{"$f":"Tableau6[[#This Row],[Nom de municipalité]]&\" [\"&Tableau6[[#This Row],[Région administrative]]&\"]\"","v":"Saint-Fulgence [Saguenay--Lac-Saint-Jean (02)]"}]
["Saint-Gabriel","Lanaudière (14)",{"$f":"Tableau6[[#This Row],[Nom de municipalité]]&\" [\"&Tableau6[[#This Row],[Région administrative]]&\"]\"","v":"Saint-Gabriel [Lanaudière (14)]"}]
["Saint-Gabriel-de-Brandon","Lanaudière (14)",{"$f":"Tableau6[[#This Row],[Nom de municipalité]]&\" [\"&Tableau6[[#This Row],[Région administrative]]&\"]\"","v":"Saint-Gabriel-de-Brandon [Lanaudière (14)]"}]
["Saint-Gabriel-de-Rimouski","Bas-Saint-Laurent (01)",{"$f":"Tableau6[[#This Row],[Nom de municipalité]]&\" [\"&Tableau6[[#This Row],[Région administrative]]&\"]\"","v":"Saint-Gabriel-de-Rimouski [Bas-Saint-Laurent (01)]"}]
["Saint-Gabriel-de-Valcartier","Capitale-Nationale (03)",{"$f":"Tableau6[[#This Row],[Nom de municipalité]]&\" [\"&Tableau6[[#This Row],[Région administrative]]&\"]\"","v":"Saint-Gabriel-de-Valcartier [Capitale-Nationale (03)]"}]
["Saint-Gabriel-Lalemant","Bas-Saint-Laurent (01)",{"$f":"Tableau6[[#This Row],[Nom de municipalité]]&\" [\"&Tableau6[[#This Row],[Région administrative]]&\"]\"","v":"Saint-Gabriel-Lalemant [Bas-Saint-Laurent (01)]"}]
["Saint-Gédéon","Saguenay--Lac-Saint-Jean (02)",{"$f":"Tableau6[[#This Row],[Nom de municipalité]]&\" [\"&Tableau6[[#This Row],[Région administrative]]&\"]\"","v":"Saint-Gédéon [Saguenay--Lac-Saint-Jean (02)]"}]
["Saint-Gédéon-de-Beauce","Chaudière-Appalaches (12)",{"$f":"Tableau6[[#This Row],[Nom de municipalité]]&\" [\"&Tableau6[[#This Row],[Région administrative]]&\"]\"","v":"Saint-Gédéon-de-Beauce [Chaudière-Appalaches (12)]"}]
["Saint-Georges","Chaudière-Appalaches (12)",{"$f":"Tableau6[[#This Row],[Nom de municipalité]]&\" [\"&Tableau6[[#This Row],[Région administrative]]&\"]\"","v":"Saint-Georges [Chaudière-Appalaches (12)]"}]
["Saint-Georges-de-Clarenceville","Montérégie (16)",{"$f":"Tableau6[[#This Row],[Nom de municipalité]]&\" [\"&Tableau6[[#This Row],[Région administrative]]&\"]\"","v":"Saint-Georges-de-Clarenceville [Montérégie (16)]"}]
["Saint-Georges-de-Windsor","Estrie (05)",{"$f":"Tableau6[[#This Row],[Nom de municipalité]]&\" [\"&Tableau6[[#This Row],[Région administrative]]&\"]\"","v":"Saint-Georges-de-Windsor [Estrie (05)]"}]
["Saint-Gérard-Majella","Montérégie (16)",{"$f":"Tableau6[[#This Row],[Nom de municipalité]]&\" [\"&Tableau6[[#This Row],[Région administrative]]&\"]\"","v":"Saint-Gérard-Majella [Montérégie (16)]"}]
["Saint-Germain","Bas-Saint-Laurent (01)",{"$f":"Tableau6[[#This Row],[Nom de municipalité]]&\" [\"&Tableau6[[#This Row],[Région administrative]]&\"]\"","v":"Saint-Germain [Bas-Saint-Laurent (01)]"}]
["Saint-Germain-de-Grantham","Centre-du-Québec (17)",{"$f":"Tableau6[[#This Row],[Nom de municipalité]]&\" [\"&Tableau6[[#This Row],[Région administrative]]&\"]\"","v":"Saint-Germain-de-Grantham [Centre-du-Québec (17)]"}]
["Saint-Gervais","Chaudière-Appalaches (12)",{"$f":"Tableau6[[#This Row],[Nom de municipalité]]&\" [\"&Tableau6[[#This Row],[Région administrative]]&\"]\"","v":"Saint-Gervais [Chaudière-Appalaches (12)]"}]
["Saint-Gilbert","Capitale-Nationale (03)",{"$f":"Tableau6[[#This Row],[Nom de municipalité]]&\" [\"&Tableau6[[#This Row],[Région administrative]]&\"]\"","v":"Saint-Gilbert [Capitale-Nationale (03)]"}]
["Saint-Gilles","Chaudière-Appalaches (12)",{"$f":"Tableau6[[#This Row],[Nom de municipalité]]&\" [\"&Tableau6[[#This Row],[Région administrative]]&\"]\"","v":"Saint-Gilles [Chaudière-Appalaches (12)]"}]
["Saint-Godefroi","Gaspésie--Îles-de-la-Madeleine (11)",{"$f":"Tableau6[[#This Row],[Nom de municipalité]]&\" [\"&Tableau6[[#This Row],[Région administrative]]&\"]\"","v":"Saint-Godefroi [Gaspésie--Îles-de-la-Madeleine (11)]"}]
["Saint-Guillaume","Centre-du-Québec (17)",{"$f":"Tableau6[[#This Row],[Nom de municipalité]]&\" [\"&Tableau6[[#This Row],[Région administrative]]&\"]\"","v":"Saint-Guillaume [Centre-du-Québec (17)]"}]
["Saint-Guy","Bas-Saint-Laurent (01)",{"$f":"Tableau6[[#This Row],[Nom de municipalité]]&\" [\"&Tableau6[[#This Row],[Région administrative]]&\"]\"","v":"Saint-Guy [Bas-Saint-Laurent (01)]"}]
["Saint-Henri","Chaudière-Appalaches (12)",{"$f":"Tableau6[[#This Row],[Nom de municipalité]]&\" [\"&Tableau6[[#This Row],[Région administrative]]&\"]\"","v":"Saint-Henri [Chaudière-Appalaches (12)]"}]
["Saint-Henri-de-Taillon","Saguenay--Lac-Saint-Jean (02)",{"$f":"Tableau6[[#This Row],[Nom de municipalité]]&\" [\"&Tableau6[[#This Row],[Région administrative]]&\"]\"","v":"Saint-Henri-de-Taillon [Saguenay--Lac-Saint-Jean (02)]"}]
["Saint-Herménégilde","Estrie (05)",{"$f":"Tableau6[[#This Row],[Nom de municipalité]]&\" [\"&Tableau6[[#This Row],[Région administrative]]&\"]\"","v":"Saint-Herménégilde [Estrie (05)]"}]
["Saint-Hilaire-de-Dorset","Chaudière-Appalaches (12)",{"$f":"Tableau6[[#This Row],[Nom de municipalité]]&\" [\"&Tableau6[[#This Row],[Région administrative]]&\"]\"","v":"Saint-Hilaire-de-Dorset [Chaudière-Appalaches (12)]"}]
["Saint-Hilarion","Capitale-Nationale (03)",{"$f":"Tableau6[[#This Row],[Nom de municipalité]]&\" [\"&Tableau6[[#This Row],[Région administrative]]&\"]\"","v":"Saint-Hilarion [Capitale-Nationale (03)]"}]
["Saint-Hippolyte","Laurentides (15)",{"$f":"Tableau6[[#This Row],[Nom de municipalité]]&\" [\"&Tableau6[[#This Row],[Région administrative]]&\"]\"","v":"Saint-Hippolyte [Laurentides (15)]"}]
["Saint-Honoré","Saguenay--Lac-Saint-Jean (02)",{"$f":"Tableau6[[#This Row],[Nom de municipalité]]&\" [\"&Tableau6[[#This Row],[Région administrative]]&\"]\"","v":"Saint-Honoré [Saguenay--Lac-Saint-Jean (02)]"}]
["Saint-Honoré-de-Shenley","Chaudière-Appalaches (12)",{"$f":"Tableau6[[#This Row],[Nom de municipalité]]&\" [\"&Tableau6[[#This Row],[Région administrative]]&\"]\"","v":"Saint-Honoré-de-Shenley [Chaudière-Appalaches (12)]"}]
["Saint-Honoré-de-Témiscouata","Bas-Saint-Laurent (01)",{"$f":"Tableau6[[#This Row],[Nom de municipalité]]&\" [\"&Tableau6[[#This Row],[Région administrative]]&\"]\"","v":"Saint-Honoré-de-Témiscouata [Bas-Saint-Laurent (01)]"}]
["Saint-Hubert-de-Rivière-du-Loup","Bas-Saint-Laurent (01)",{"$f":"Tableau6[[#This Row],[Nom de municipalité]]&\" [\"&Tableau6[[#This Row],[Région administrative]]&\"]\"","v":"Saint-Hubert-de-Rivière-du-Loup [Bas-Saint-Laurent (01)]"}]
["Saint-Hugues","Montérégie (16)",{"$f":"Tableau6[[#This Row],[Nom de municipalité]]&\" [\"&Tableau6[[#This Row],[Région administrative]]&\"]\"","v":"Saint-Hugues [Montérégie (16)]"}]
["Saint-Hyacinthe","Montérégie (16)",{"$f":"Tableau6[[#This Row],[Nom de municipalité]]&\" [\"&Tableau6[[#This Row],[Région administrative]]&\"]\"","v":"Saint-Hyacinthe [Montérégie (16)]"}]
["Saint-Ignace-de-Loyola","Lanaudière (14)",{"$f":"Tableau6[[#This Row],[Nom de municipalité]]&\" [\"&Tableau6[[#This Row],[Région administrative]]&\"]\"","v":"Saint-Ignace-de-Loyola [Lanaudière (14)]"}]
["Saint-Ignace-de-Stanbridge","Montérégie (16)",{"$f":"Tableau6[[#This Row],[Nom de municipalité]]&\" [\"&Tableau6[[#This Row],[Région administrative]]&\"]\"","v":"Saint-Ignace-de-Stanbridge [Montérégie (16)]"}]
["Saint-Irénée","Capitale-Nationale (03)",{"$f":"Tableau6[[#This Row],[Nom de municipalité]]&\" [\"&Tableau6[[#This Row],[Région administrative]]&\"]\"","v":"Saint-Irénée [Capitale-Nationale (03)]"}]
["Saint-Isidore","Chaudière-Appalaches (12)",{"$f":"Tableau6[[#This Row],[Nom de municipalité]]&\" [\"&Tableau6[[#This Row],[Région administrative]]&\"]\"","v":"Saint-Isidore [Chaudière-Appalaches (12)]"}]
["Saint-Isidore","Montérégie (16)",{"$f":"Tableau6[[#This Row],[Nom de municipalité]]&\" [\"&Tableau6[[#This Row],[Région administrative]]&\"]\"","v":"Saint-Isidore [Montérégie (16)]"}]
["Saint-Isidore-de-Clifton","Estrie (05)",{"$f":"Tableau6[[#This Row],[Nom de municipalité]]&\" [\"&Tableau6[[#This Row],[Région administrative]]&\"]\"","v":"Saint-Isidore-de-Clifton [Estrie (05)]"}]
["Saint-Jacques","Lanaudière (14)",{"$f":"Tableau6[[#This Row],[Nom de municipalité]]&\" [\"&Tableau6[[#This Row],[Région administrative]]&\"]\"","v":"Saint-Jacques [Lanaudière (14)]"}]
["Saint-Jacques-de-Leeds","Chaudière-Appalaches (12)",{"$f":"Tableau6[[#This Row],[Nom de municipalité]]&\" [\"&Tableau6[[#This Row],[Région administrative]]&\"]\"","v":"Saint-Jacques-de-Leeds [Chaudière-Appalaches (12)]"}]
["Saint-Jacques-le-Mineur","Montérégie (16)",{"$f":"Tableau6[[#This Row],[Nom de municipalité]]&\" [\"&Tableau6[[#This Row],[Région administrative]]&\"]\"","v":"Saint-Jacques-le-Mineur [Montérégie (16)]"}]
["Saint-Jacques/Wolfestown","Chaudière-Appalaches (12)",{"$f":"Tableau6[[#This Row],[Nom de municipalité]]&\" [\"&Tableau6[[#This Row],[Région administrative]]&\"]\"","v":"Saint-Jacques/Wolfestown [Chaudière-Appalaches (12)]"}]
["Saint-Janvier-de-Joly","Chaudière-Appalaches (12)",{"$f":"Tableau6[[#This Row],[Nom de municipalité]]&\" [\"&Tableau6[[#This Row],[Région administrative]]&\"]\"","v":"Saint-Janvier-de-Joly [Chaudière-Appalaches (12)]"}]
["Saint-Jean-Baptiste","Montérégie (16)",{"$f":"Tableau6[[#This Row],[Nom de municipalité]]&\" [\"&Tableau6[[#This Row],[Région administrative]]&\"]\"","v":"Saint-Jean-Baptiste [Montérégie (16)]"}]
["Saint-Jean-de-Brébeuf","Chaudière-Appalaches (12)",{"$f":"Tableau6[[#This Row],[Nom de municipalité]]&\" [\"&Tableau6[[#This Row],[Région administrative]]&\"]\"","v":"Saint-Jean-de-Brébeuf [Chaudière-Appalaches (12)]"}]
["Saint-Jean-de-Cherbourg","Bas-Saint-Laurent (01)",{"$f":"Tableau6[[#This Row],[Nom de municipalité]]&\" [\"&Tableau6[[#This Row],[Région administrative]]&\"]\"","v":"Saint-Jean-de-Cherbourg [Bas-Saint-Laurent (01)]"}]
["Saint-Jean-de-Dieu","Bas-Saint-Laurent (01)",{"$f":"Tableau6[[#This Row],[Nom de municipalité]]&\" [\"&Tableau6[[#This Row],[Région administrative]]&\"]\"","v":"Saint-Jean-de-Dieu [Bas-Saint-Laurent (01)]"}]
["Saint-Jean-de-la-Lande","Bas-Saint-Laurent (01)",{"$f":"Tableau6[[#This Row],[Nom de municipalité]]&\" [\"&Tableau6[[#This Row],[Région administrative]]&\"]\"","v":"Saint-Jean-de-la-Lande [Bas-Saint-Laurent (01)]"}]
["Saint-Jean-de-l'Île-d'Orléans","Capitale-Nationale (03)",{"$f":"Tableau6[[#This Row],[Nom de municipalité]]&\" [\"&Tableau6[[#This Row],[Région administrative]]&\"]\"","v":"Saint-Jean-de-l'Île-d'Orléans [Capitale-Nationale (03)]"}]
["Saint-Jean-de-Matha","Lanaudière (14)",{"$f":"Tableau6[[#This Row],[Nom de municipalité]]&\" [\"&Tableau6[[#This Row],[Région administrative]]&\"]\"","v":"Saint-Jean-de-Matha [Lanaudière (14)]"}]
["Saint-Jean-Port-Joli","Chaudière-Appalaches (12)",{"$f":"Tableau6[[#This Row],[Nom de municipalité]]&\" [\"&Tableau6[[#This Row],[Région administrative]]&\"]\"","v":"Saint-Jean-Port-Joli [Chaudière-Appalaches (12)]"}]
["Saint-Jean-sur-Richelieu","Montérégie (16)",{"$f":"Tableau6[[#This Row],[Nom de municipalité]]&\" [\"&Tableau6[[#This Row],[Région administrative]]&\"]\"","v":"Saint-Jean-sur-Richelieu [Montérégie (16)]"}]
["Saint-Jérôme","Laurentides (15)",{"$f":"Tableau6[[#This Row],[Nom de municipalité]]&\" [\"&Tableau6[[#This Row],[Région administrative]]&\"]\"","v":"Saint-Jérôme [Laurentides (15)]"}]
["Saint-Joachim","Capitale-Nationale (03)",{"$f":"Tableau6[[#This Row],[Nom de municipalité]]&\" [\"&Tableau6[[#This Row],[Région administrative]]&\"]\"","v":"Saint-Joachim [Capitale-Nationale (03)]"}]
["Saint-Joachim-de-Shefford","Montérégie (16)",{"$f":"Tableau6[[#This Row],[Nom de municipalité]]&\" [\"&Tableau6[[#This Row],[Région administrative]]&\"]\"","v":"Saint-Joachim-de-Shefford [Montérégie (16)]"}]
["Saint-Joseph-de-Beauce","Chaudière-Appalaches (12)",{"$f":"Tableau6[[#This Row],[Nom de municipalité]]&\" [\"&Tableau6[[#This Row],[Région administrative]]&\"]\"","v":"Saint-Joseph-de-Beauce [Chaudière-Appalaches (12)]"}]
["Saint-Joseph-de-Coleraine","Chaudière-Appalaches (12)",{"$f":"Tableau6[[#This Row],[Nom de municipalité]]&\" [\"&Tableau6[[#This Row],[Région administrative]]&\"]\"","v":"Saint-Joseph-de-Coleraine [Chaudière-Appalaches (12)]"}]
["Saint-Joseph-de-Kamouraska","Bas-Saint-Laurent (01)",{"$f":"Tableau6[[#This Row],[Nom de municipalité]]&\" [\"&Tableau6[[#This Row],[Région administrative]]&\"]\"","v":"Saint-Joseph-de-Kamouraska [Bas-Saint-Laurent (01)]"}]
["Saint-Joseph-de-Lepage","Bas-Saint-Laurent (01)",{"$f":"Tableau6[[#This Row],[Nom de municipalité]]&\" [\"&Tableau6[[#This Row],[Région administrative]]&\"]\"","v":"Saint-Joseph-de-Lepage [Bas-Saint-Laurent (01)]"}]
["Saint-Joseph-des-Érables","Chaudière-Appalaches (12)",{"$f":"Tableau6[[#This Row],[Nom de municipalité]]&\" [\"&Tableau6[[#This Row],[Région administrative]]&\"]\"","v":"Saint-Joseph-des-Érables [Chaudière-Appalaches (12)]"}]
["Saint-Joseph-de-Sorel","Montérégie (16)",{"$f":"Tableau6[[#This Row],[Nom de municipalité]]&\" [\"&Tableau6[[#This Row],[Région administrative]]&\"]\"","v":"Saint-Joseph-de-Sorel [Montérégie (16)]"}]
["Saint-Joseph-du-Lac","Laurentides (15)",{"$f":"Tableau6[[#This Row],[Nom de municipalité]]&\" [\"&Tableau6[[#This Row],[Région administrative]]&\"]\"","v":"Saint-Joseph-du-Lac [Laurentides (15)]"}]
["Saint-Jude","Montérégie (16)",{"$f":"Tableau6[[#This Row],[Nom de municipalité]]&\" [\"&Tableau6[[#This Row],[Région administrative]]&\"]\"","v":"Saint-Jude [Montérégie (16)]"}]
["Saint-Jules","Chaudière-Appalaches (12)",{"$f":"Tableau6[[#This Row],[Nom de municipalité]]&\" [\"&Tableau6[[#This Row],[Région administrative]]&\"]\"","v":"Saint-Jules [Chaudière-Appalaches (12)]"}]
["Saint-Julien","Chaudière-Appalaches (12)",{"$f":"Tableau6[[#This Row],[Nom de municipalité]]&\" [\"&Tableau6[[#This Row],[Région administrative]]&\"]\"","v":"Saint-Julien [Chaudière-Appalaches (12)]"}]
["Saint-Just-de-Bretenières","Chaudière-Appalaches (12)",{"$f":"Tableau6[[#This Row],[Nom de municipalité]]&\" [\"&Tableau6[[#This Row],[Région administrative]]&\"]\"","v":"Saint-Just-de-Bretenières [Chaudière-Appalaches (12)]"}]
["Saint-Juste-du-Lac","Bas-Saint-Laurent (01)",{"$f":"Tableau6[[#This Row],[Nom de municipalité]]&\" [\"&Tableau6[[#This Row],[Région administrative]]&\"]\"","v":"Saint-Juste-du-Lac [Bas-Saint-Laurent (01)]"}]
["Saint-Justin","Mauricie (04)",{"$f":"Tableau6[[#This Row],[Nom de municipalité]]&\" [\"&Tableau6[[#This Row],[Région administrative]]&\"]\"","v":"Saint-Justin [Mauricie (04)]"}]
["Saint-Lambert","Montérégie (16)",{"$f":"Tableau6[[#This Row],[Nom de municipalité]]&\" [\"&Tableau6[[#This Row],[Région administrative]]&\"]\"","v":"Saint-Lambert [Montérégie (16)]"}]
["Saint-Lambert","Abitibi-Témiscamingue (08)",{"$f":"Tableau6[[#This Row],[Nom de municipalité]]&\" [\"&Tableau6[[#This Row],[Région administrative]]&\"]\"","v":"Saint-Lambert [Abitibi-Témiscamingue (08)]"}]
["Saint-Lambert-de-Lauzon","Chaudière-Appalaches (12)",{"$f":"Tableau6[[#This Row],[Nom de municipalité]]&\" [\"&Tableau6[[#This Row],[Région administrative]]&\"]\"","v":"Saint-Lambert-de-Lauzon [Chaudière-Appalaches (12)]"}]
["Saint-Laurent-de-l'Île-d'Orléans","Capitale-Nationale (03)",{"$f":"Tableau6[[#This Row],[Nom de municipalité]]&\" [\"&Tableau6[[#This Row],[Région administrative]]&\"]\"","v":"Saint-Laurent-de-l'Île-d'Orléans [Capitale-Nationale (03)]"}]
["Saint-Lazare","Montérégie (16)",{"$f":"Tableau6[[#This Row],[Nom de municipalité]]&\" [\"&Tableau6[[#This Row],[Région administrative]]&\"]\"","v":"Saint-Lazare [Montérégie (16)]"}]
["Saint-Lazare-de-Bellechasse","Chaudière-Appalaches (12)",{"$f":"Tableau6[[#This Row],[Nom de municipalité]]&\" [\"&Tableau6[[#This Row],[Région administrative]]&\"]\"","v":"Saint-Lazare-de-Bellechasse [Chaudière-Appalaches (12)]"}]
["Saint-Léandre","Bas-Saint-Laurent (01)",{"$f":"Tableau6[[#This Row],[Nom de municipalité]]&\" [\"&Tableau6[[#This Row],[Région administrative]]&\"]\"","v":"Saint-Léandre [Bas-Saint-Laurent (01)]"}]
["Saint-Léonard-d'Aston","Centre-du-Québec (17)",{"$f":"Tableau6[[#This Row],[Nom de municipalité]]&\" [\"&Tableau6[[#This Row],[Région administrative]]&\"]\"","v":"Saint-Léonard-d'Aston [Centre-du-Québec (17)]"}]
["Saint-Léonard-de-Portneuf","Capitale-Nationale (03)",{"$f":"Tableau6[[#This Row],[Nom de municipalité]]&\" [\"&Tableau6[[#This Row],[Région administrative]]&\"]\"","v":"Saint-Léonard-de-Portneuf [Capitale-Nationale (03)]"}]
["Saint-Léon-de-Standon","Chaudière-Appalaches (12)",{"$f":"Tableau6[[#This Row],[Nom de municipalité]]&\" [\"&Tableau6[[#This Row],[Région administrative]]&\"]\"","v":"Saint-Léon-de-Standon [Chaudière-Appalaches (12)]"}]
["Saint-Léon-le-Grand","Mauricie (04)",{"$f":"Tableau6[[#This Row],[Nom de municipalité]]&\" [\"&Tableau6[[#This Row],[Région administrative]]&\"]\"","v":"Saint-Léon-le-Grand [Mauricie (04)]"}]
["Saint-Léon-le-Grand","Bas-Saint-Laurent (01)",{"$f":"Tableau6[[#This Row],[Nom de municipalité]]&\" [\"&Tableau6[[#This Row],[Région administrative]]&\"]\"","v":"Saint-Léon-le-Grand [Bas-Saint-Laurent (01)]"}]
["Saint-Liboire","Montérégie (16)",{"$f":"Tableau6[[#This Row],[Nom de municipalité]]&\" [\"&Tableau6[[#This Row],[Région administrative]]&\"]\"","v":"Saint-Liboire [Montérégie (16)]"}]
["Saint-Liguori","Lanaudière (14)",{"$f":"Tableau6[[#This Row],[Nom de municipalité]]&\" [\"&Tableau6[[#This Row],[Région administrative]]&\"]\"","v":"Saint-Liguori [Lanaudière (14)]"}]
["Saint-Lin--Laurentides","Lanaudière (14)",{"$f":"Tableau6[[#This Row],[Nom de municipalité]]&\" [\"&Tableau6[[#This Row],[Région administrative]]&\"]\"","v":"Saint-Lin--Laurentides [Lanaudière (14)]"}]
["Saint-Louis","Montérégie (16)",{"$f":"Tableau6[[#This Row],[Nom de municipalité]]&\" [\"&Tableau6[[#This Row],[Région administrative]]&\"]\"","v":"Saint-Louis [Montérégie (16)]"}]
["Saint-Louis/Cap-Tourmente","Capitale-Nationale (03)",{"$f":"Tableau6[[#This Row],[Nom de municipalité]]&\" [\"&Tableau6[[#This Row],[Région administrative]]&\"]\"","v":"Saint-Louis/Cap-Tourmente [Capitale-Nationale (03)]"}]
["Saint-Louis-de-Blandford","Centre-du-Québec (17)",{"$f":"Tableau6[[#This Row],[Nom de municipalité]]&\" [\"&Tableau6[[#This Row],[Région administrative]]&\"]\"","v":"Saint-Louis-de-Blandford [Centre-du-Québec (17)]"}]
["Saint-Louis-de-Gonzague","Montérégie (16)",{"$f":"Tableau6[[#This Row],[Nom de municipalité]]&\" [\"&Tableau6[[#This Row],[Région administrative]]&\"]\"","v":"Saint-Louis-de-Gonzague [Montérégie (16)]"}]
["Saint-Louis-de-Gonzague","Chaudière-Appalaches (12)",{"$f":"Tableau6[[#This Row],[Nom de municipalité]]&\" [\"&Tableau6[[#This Row],[Région administrative]]&\"]\"","v":"Saint-Louis-de-Gonzague [Chaudière-Appalaches (12)]"}]
["Saint-Louis-du-Ha! Ha!","Bas-Saint-Laurent (01)",{"$f":"Tableau6[[#This Row],[Nom de municipalité]]&\" [\"&Tableau6[[#This Row],[Région administrative]]&\"]\"","v":"Saint-Louis-du-Ha! Ha! [Bas-Saint-Laurent (01)]"}]
["Saint-Luc-de-Bellechasse","Chaudière-Appalaches (12)",{"$f":"Tableau6[[#This Row],[Nom de municipalité]]&\" [\"&Tableau6[[#This Row],[Région administrative]]&\"]\"","v":"Saint-Luc-de-Bellechasse [Chaudière-Appalaches (12)]"}]
["Saint-Luc-de-Vincennes","Mauricie (04)",{"$f":"Tableau6[[#This Row],[Nom de municipalité]]&\" [\"&Tableau6[[#This Row],[Région administrative]]&\"]\"","v":"Saint-Luc-de-Vincennes [Mauricie (04)]"}]
["Saint-Lucien","Centre-du-Québec (17)",{"$f":"Tableau6[[#This Row],[Nom de municipalité]]&\" [\"&Tableau6[[#This Row],[Région administrative]]&\"]\"","v":"Saint-Lucien [Centre-du-Québec (17)]"}]
["Saint-Ludger","Estrie (05)",{"$f":"Tableau6[[#This Row],[Nom de municipalité]]&\" [\"&Tableau6[[#This Row],[Région administrative]]&\"]\"","v":"Saint-Ludger [Estrie (05)]"}]
["Saint-Ludger-de-Milot","Saguenay--Lac-Saint-Jean (02)",{"$f":"Tableau6[[#This Row],[Nom de municipalité]]&\" [\"&Tableau6[[#This Row],[Région administrative]]&\"]\"","v":"Saint-Ludger-de-Milot [Saguenay--Lac-Saint-Jean (02)]"}]
["Saint-Magloire","Chaudière-Appalaches (12)",{"$f":"Tableau6[[#This Row],[Nom de municipalité]]&\" [\"&Tableau6[[#This Row],[Région administrative]]&\"]\"","v":"Saint-Magloire [Chaudière-Appalaches (12)]"}]
["Saint-Majorique-de-Grantham","Centre-du-Québec (17)",{"$f":"Tableau6[[#This Row],[Nom de municipalité]]&\" [\"&Tableau6[[#This Row],[Région administrative]]&\"]\"","v":"Saint-Majorique-de-Grantham [Centre-du-Québec (17)]"}]
["Saint-Malachie","Chaudière-Appalaches (12)",{"$f":"Tableau6[[#This Row],[Nom de municipalité]]&\" [\"&Tableau6[[#This Row],[Région administrative]]&\"]\"","v":"Saint-Malachie [Chaudière-Appalaches (12)]"}]
["Saint-Malo","Estrie (05)",{"$f":"Tableau6[[#This Row],[Nom de municipalité]]&\" [\"&Tableau6[[#This Row],[Région administrative]]&\"]\"","v":"Saint-Malo [Estrie (05)]"}]
["Saint-Marc-de-Figuery","Abitibi-Témiscamingue (08)",{"$f":"Tableau6[[#This Row],[Nom de municipalité]]&\" [\"&Tableau6[[#This Row],[Région administrative]]&\"]\"","v":"Saint-Marc-de-Figuery [Abitibi-Témiscamingue (08)]"}]
["Saint-Marc-des-Carrières","Capitale-Nationale (03)",{"$f":"Tableau6[[#This Row],[Nom de municipalité]]&\" [\"&Tableau6[[#This Row],[Région administrative]]&\"]\"","v":"Saint-Marc-des-Carrières [Capitale-Nationale (03)]"}]
["Saint-Marc-du-Lac-Long","Bas-Saint-Laurent (01)",{"$f":"Tableau6[[#This Row],[Nom de municipalité]]&\" [\"&Tableau6[[#This Row],[Région administrative]]&\"]\"","v":"Saint-Marc-du-Lac-Long [Bas-Saint-Laurent (01)]"}]
["Saint-Marcel","Chaudière-Appalaches (12)",{"$f":"Tableau6[[#This Row],[Nom de municipalité]]&\" [\"&Tableau6[[#This Row],[Région administrative]]&\"]\"","v":"Saint-Marcel [Chaudière-Appalaches (12)]"}]
["Saint-Marcel-de-Richelieu","Montérégie (16)",{"$f":"Tableau6[[#This Row],[Nom de municipalité]]&\" [\"&Tableau6[[#This Row],[Région administrative]]&\"]\"","v":"Saint-Marcel-de-Richelieu [Montérégie (16)]"}]
["Saint-Marcellin","Bas-Saint-Laurent (01)",{"$f":"Tableau6[[#This Row],[Nom de municipalité]]&\" [\"&Tableau6[[#This Row],[Région administrative]]&\"]\"","v":"Saint-Marcellin [Bas-Saint-Laurent (01)]"}]
["Saint-Marc-sur-Richelieu","Montérégie (16)",{"$f":"Tableau6[[#This Row],[Nom de municipalité]]&\" [\"&Tableau6[[#This Row],[Région administrative]]&\"]\"","v":"Saint-Marc-sur-Richelieu [Montérégie (16)]"}]
["Saint-Martin","Chaudière-Appalaches (12)",{"$f":"Tableau6[[#This Row],[Nom de municipalité]]&\" [\"&Tableau6[[#This Row],[Région administrative]]&\"]\"","v":"Saint-Martin [Chaudière-Appalaches (12)]"}]
["Saint-Mathias-sur-Richelieu","Montérégie (16)",{"$f":"Tableau6[[#This Row],[Nom de municipalité]]&\" [\"&Tableau6[[#This Row],[Région administrative]]&\"]\"","v":"Saint-Mathias-sur-Richelieu [Montérégie (16)]"}]
["Saint-Mathieu","Montérégie (16)",{"$f":"Tableau6[[#This Row],[Nom de municipalité]]&\" [\"&Tableau6[[#This Row],[Région administrative]]&\"]\"","v":"Saint-Mathieu [Montérégie (16)]"}]
["Saint-Mathieu-de-Beloeil","Montérégie (16)",{"$f":"Tableau6[[#This Row],[Nom de municipalité]]&\" [\"&Tableau6[[#This Row],[Région administrative]]&\"]\"","v":"Saint-Mathieu-de-Beloeil [Montérégie (16)]"}]
["Saint-Mathieu-de-Rioux","Bas-Saint-Laurent (01)",{"$f":"Tableau6[[#This Row],[Nom de municipalité]]&\" [\"&Tableau6[[#This Row],[Région administrative]]&\"]\"","v":"Saint-Mathieu-de-Rioux [Bas-Saint-Laurent (01)]"}]
["Saint-Mathieu-d'Harricana","Abitibi-Témiscamingue (08)",{"$f":"Tableau6[[#This Row],[Nom de municipalité]]&\" [\"&Tableau6[[#This Row],[Région administrative]]&\"]\"","v":"Saint-Mathieu-d'Harricana [Abitibi-Témiscamingue (08)]"}]
["Saint-Mathieu-du-Parc","Mauricie (04)",{"$f":"Tableau6[[#This Row],[Nom de municipalité]]&\" [\"&Tableau6[[#This Row],[Région administrative]]&\"]\"","v":"Saint-Mathieu-du-Parc [Mauricie (04)]"}]
["Saint-Maurice","Mauricie (04)",{"$f":"Tableau6[[#This Row],[Nom de municipalité]]&\" [\"&Tableau6[[#This Row],[Région administrative]]&\"]\"","v":"Saint-Maurice [Mauricie (04)]"}]
["Saint-Maxime-du-Mont-Louis","Gaspésie--Îles-de-la-Madeleine (11)",{"$f":"Tableau6[[#This Row],[Nom de municipalité]]&\" [\"&Tableau6[[#This Row],[Région administrative]]&\"]\"","v":"Saint-Maxime-du-Mont-Louis [Gaspésie--Îles-de-la-Madeleine (11)]"}]
["Saint-Médard","Bas-Saint-Laurent (01)",{"$f":"Tableau6[[#This Row],[Nom de municipalité]]&\" [\"&Tableau6[[#This Row],[Région administrative]]&\"]\"","v":"Saint-Médard [Bas-Saint-Laurent (01)]"}]
["Saint-Michel","Montérégie (16)",{"$f":"Tableau6[[#This Row],[Nom de municipalité]]&\" [\"&Tableau6[[#This Row],[Région administrative]]&\"]\"","v":"Saint-Michel [Montérégie (16)]"}]
["Saint-Michel-de-Bellechasse","Chaudière-Appalaches (12)",{"$f":"Tableau6[[#This Row],[Nom de municipalité]]&\" [\"&Tableau6[[#This Row],[Région administrative]]&\"]\"","v":"Saint-Michel-de-Bellechasse [Chaudière-Appalaches (12)]"}]
["Saint-Michel-des-Saints","Lanaudière (14)",{"$f":"Tableau6[[#This Row],[Nom de municipalité]]&\" [\"&Tableau6[[#This Row],[Région administrative]]&\"]\"","v":"Saint-Michel-des-Saints [Lanaudière (14)]"}]
["Saint-Michel-du-Squatec","Bas-Saint-Laurent (01)",{"$f":"Tableau6[[#This Row],[Nom de municipalité]]&\" [\"&Tableau6[[#This Row],[Région administrative]]&\"]\"","v":"Saint-Michel-du-Squatec [Bas-Saint-Laurent (01)]"}]
["Saint-Modeste","Bas-Saint-Laurent (01)",{"$f":"Tableau6[[#This Row],[Nom de municipalité]]&\" [\"&Tableau6[[#This Row],[Région administrative]]&\"]\"","v":"Saint-Modeste [Bas-Saint-Laurent (01)]"}]
["Saint-Moïse","Bas-Saint-Laurent (01)",{"$f":"Tableau6[[#This Row],[Nom de municipalité]]&\" [\"&Tableau6[[#This Row],[Région administrative]]&\"]\"","v":"Saint-Moïse [Bas-Saint-Laurent (01)]"}]
["Saint-Narcisse","Mauricie (04)",{"$f":"Tableau6[[#This Row],[Nom de municipalité]]&\" [\"&Tableau6[[#This Row],[Région administrative]]&\"]\"","v":"Saint-Narcisse [Mauricie (04)]"}]
["Saint-Narcisse-de-Beaurivage","Chaudière-Appalaches (12)",{"$f":"Tableau6[[#This Row],[Nom de municipalité]]&\" [\"&Tableau6[[#This Row],[Région administrative]]&\"]\"","v":"Saint-Narcisse-de-Beaurivage [Chaudière-Appalaches (12)]"}]
["Saint-Narcisse-de-Rimouski","Bas-Saint-Laurent (01)",{"$f":"Tableau6[[#This Row],[Nom de municipalité]]&\" [\"&Tableau6[[#This Row],[Région administrative]]&\"]\"","v":"Saint-Narcisse-de-Rimouski [Bas-Saint-Laurent (01)]"}]
["Saint-Nazaire","Saguenay--Lac-Saint-Jean (02)",{"$f":"Tableau6[[#This Row],[Nom de municipalité]]&\" [\"&Tableau6[[#This Row],[Région administrative]]&\"]\"","v":"Saint-Nazaire [Saguenay--Lac-Saint-Jean (02)]"}]
["Saint-Nazaire-d'Acton","Montérégie (16)",{"$f":"Tableau6[[#This Row],[Nom de municipalité]]&\" [\"&Tableau6[[#This Row],[Région administrative]]&\"]\"","v":"Saint-Nazaire-d'Acton [Montérégie (16)]"}]
["Saint-Nazaire-de-Dorchester","Chaudière-Appalaches (12)",{"$f":"Tableau6[[#This Row],[Nom de municipalité]]&\" [\"&Tableau6[[#This Row],[Région administrative]]&\"]\"","v":"Saint-Nazaire-de-Dorchester [Chaudière-Appalaches (12)]"}]
["Saint-Nérée-de-Bellechasse","Chaudière-Appalaches (12)",{"$f":"Tableau6[[#This Row],[Nom de municipalité]]&\" [\"&Tableau6[[#This Row],[Région administrative]]&\"]\"","v":"Saint-Nérée-de-Bellechasse [Chaudière-Appalaches (12)]"}]
["Saint-Noël","Bas-Saint-Laurent (01)",{"$f":"Tableau6[[#This Row],[Nom de municipalité]]&\" [\"&Tableau6[[#This Row],[Région administrative]]&\"]\"","v":"Saint-Noël [Bas-Saint-Laurent (01)]"}]
["Saint-Norbert","Lanaudière (14)",{"$f":"Tableau6[[#This Row],[Nom de municipalité]]&\" [\"&Tableau6[[#This Row],[Région administrative]]&\"]\"","v":"Saint-Norbert [Lanaudière (14)]"}]
["Saint-Norbert-d'Arthabaska","Centre-du-Québec (17)",{"$f":"Tableau6[[#This Row],[Nom de municipalité]]&\" [\"&Tableau6[[#This Row],[Région administrative]]&\"]\"","v":"Saint-Norbert-d'Arthabaska [Centre-du-Québec (17)]"}]
["Saint-Octave-de-Métis","Bas-Saint-Laurent (01)",{"$f":"Tableau6[[#This Row],[Nom de municipalité]]&\" [\"&Tableau6[[#This Row],[Région administrative]]&\"]\"","v":"Saint-Octave-de-Métis [Bas-Saint-Laurent (01)]"}]
["Saint-Odilon-de-Cranbourne","Chaudière-Appalaches (12)",{"$f":"Tableau6[[#This Row],[Nom de municipalité]]&\" [\"&Tableau6[[#This Row],[Région administrative]]&\"]\"","v":"Saint-Odilon-de-Cranbourne [Chaudière-Appalaches (12)]"}]
["Saint-Omer","Chaudière-Appalaches (12)",{"$f":"Tableau6[[#This Row],[Nom de municipalité]]&\" [\"&Tableau6[[#This Row],[Région administrative]]&\"]\"","v":"Saint-Omer [Chaudière-Appalaches (12)]"}]
["Saint-Onésime-d'Ixworth","Bas-Saint-Laurent (01)",{"$f":"Tableau6[[#This Row],[Nom de municipalité]]&\" [\"&Tableau6[[#This Row],[Région administrative]]&\"]\"","v":"Saint-Onésime-d'Ixworth [Bas-Saint-Laurent (01)]"}]
["Saint-Ours","Montérégie (16)",{"$f":"Tableau6[[#This Row],[Nom de municipalité]]&\" [\"&Tableau6[[#This Row],[Région administrative]]&\"]\"","v":"Saint-Ours [Montérégie (16)]"}]
["Saint-Pacôme","Bas-Saint-Laurent (01)",{"$f":"Tableau6[[#This Row],[Nom de municipalité]]&\" [\"&Tableau6[[#This Row],[Région administrative]]&\"]\"","v":"Saint-Pacôme [Bas-Saint-Laurent (01)]"}]
["Saint-Pamphile","Chaudière-Appalaches (12)",{"$f":"Tableau6[[#This Row],[Nom de municipalité]]&\" [\"&Tableau6[[#This Row],[Région administrative]]&\"]\"","v":"Saint-Pamphile [Chaudière-Appalaches (12)]"}]
["Saint-Pascal","Bas-Saint-Laurent (01)",{"$f":"Tableau6[[#This Row],[Nom de municipalité]]&\" [\"&Tableau6[[#This Row],[Région administrative]]&\"]\"","v":"Saint-Pascal [Bas-Saint-Laurent (01)]"}]
["Saint-Patrice-de-Beaurivage","Chaudière-Appalaches (12)",{"$f":"Tableau6[[#This Row],[Nom de municipalité]]&\" [\"&Tableau6[[#This Row],[Région administrative]]&\"]\"","v":"Saint-Patrice-de-Beaurivage [Chaudière-Appalaches (12)]"}]
["Saint-Patrice-de-Sherrington","Montérégie (16)",{"$f":"Tableau6[[#This Row],[Nom de municipalité]]&\" [\"&Tableau6[[#This Row],[Région administrative]]&\"]\"","v":"Saint-Patrice-de-Sherrington [Montérégie (16)]"}]
["Saint-Paul","Lanaudière (14)",{"$f":"Tableau6[[#This Row],[Nom de municipalité]]&\" [\"&Tableau6[[#This Row],[Région administrative]]&\"]\"","v":"Saint-Paul [Lanaudière (14)]"}]
["Saint-Paul-d'Abbotsford","Montérégie (16)",{"$f":"Tableau6[[#This Row],[Nom de municipalité]]&\" [\"&Tableau6[[#This Row],[Région administrative]]&\"]\"","v":"Saint-Paul-d'Abbotsford [Montérégie (16)]"}]
["Saint-Paul-de-la-Croix","Bas-Saint-Laurent (01)",{"$f":"Tableau6[[#This Row],[Nom de municipalité]]&\" [\"&Tableau6[[#This Row],[Région administrative]]&\"]\"","v":"Saint-Paul-de-la-Croix [Bas-Saint-Laurent (01)]"}]
["Saint-Paul-de-l'Île-aux-Noix","Montérégie (16)",{"$f":"Tableau6[[#This Row],[Nom de municipalité]]&\" [\"&Tableau6[[#This Row],[Région administrative]]&\"]\"","v":"Saint-Paul-de-l'Île-aux-Noix [Montérégie (16)]"}]
["Saint-Paul-de-Montminy","Chaudière-Appalaches (12)",{"$f":"Tableau6[[#This Row],[Nom de municipalité]]&\" [\"&Tableau6[[#This Row],[Région administrative]]&\"]\"","v":"Saint-Paul-de-Montminy [Chaudière-Appalaches (12)]"}]
["Saint-Paulin","Mauricie (04)",{"$f":"Tableau6[[#This Row],[Nom de municipalité]]&\" [\"&Tableau6[[#This Row],[Région administrative]]&\"]\"","v":"Saint-Paulin [Mauricie (04)]"}]
["Saint-Philémon","Chaudière-Appalaches (12)",{"$f":"Tableau6[[#This Row],[Nom de municipalité]]&\" [\"&Tableau6[[#This Row],[Région administrative]]&\"]\"","v":"Saint-Philémon [Chaudière-Appalaches (12)]"}]
["Saint-Philibert","Chaudière-Appalaches (12)",{"$f":"Tableau6[[#This Row],[Nom de municipalité]]&\" [\"&Tableau6[[#This Row],[Région administrative]]&\"]\"","v":"Saint-Philibert [Chaudière-Appalaches (12)]"}]
["Saint-Philippe","Montérégie (16)",{"$f":"Tableau6[[#This Row],[Nom de municipalité]]&\" [\"&Tableau6[[#This Row],[Région administrative]]&\"]\"","v":"Saint-Philippe [Montérégie (16)]"}]
["Saint-Philippe-de-Néri","Bas-Saint-Laurent (01)",{"$f":"Tableau6[[#This Row],[Nom de municipalité]]&\" [\"&Tableau6[[#This Row],[Région administrative]]&\"]\"","v":"Saint-Philippe-de-Néri [Bas-Saint-Laurent (01)]"}]
["Saint-Pie","Montérégie (16)",{"$f":"Tableau6[[#This Row],[Nom de municipalité]]&\" [\"&Tableau6[[#This Row],[Région administrative]]&\"]\"","v":"Saint-Pie [Montérégie (16)]"}]
["Saint-Pie-de-Guire","Centre-du-Québec (17)",{"$f":"Tableau6[[#This Row],[Nom de municipalité]]&\" [\"&Tableau6[[#This Row],[Région administrative]]&\"]\"","v":"Saint-Pie-de-Guire [Centre-du-Québec (17)]"}]
["Saint-Pierre","Lanaudière (14)",{"$f":"Tableau6[[#This Row],[Nom de municipalité]]&\" [\"&Tableau6[[#This Row],[Région administrative]]&\"]\"","v":"Saint-Pierre [Lanaudière (14)]"}]
["Saint-Pierre-Baptiste","Centre-du-Québec (17)",{"$f":"Tableau6[[#This Row],[Nom de municipalité]]&\" [\"&Tableau6[[#This Row],[Région administrative]]&\"]\"","v":"Saint-Pierre-Baptiste [Centre-du-Québec (17)]"}]
["Saint-Pierre-de-Broughton","Chaudière-Appalaches (12)",{"$f":"Tableau6[[#This Row],[Nom de municipalité]]&\" [\"&Tableau6[[#This Row],[Région administrative]]&\"]\"","v":"Saint-Pierre-de-Broughton [Chaudière-Appalaches (12)]"}]
["Saint-Pierre-de-Lamy","Bas-Saint-Laurent (01)",{"$f":"Tableau6[[#This Row],[Nom de municipalité]]&\" [\"&Tableau6[[#This Row],[Région administrative]]&\"]\"","v":"Saint-Pierre-de-Lamy [Bas-Saint-Laurent (01)]"}]
["Saint-Pierre-de-l'Île-d'Orléans","Capitale-Nationale (03)",{"$f":"Tableau6[[#This Row],[Nom de municipalité]]&\" [\"&Tableau6[[#This Row],[Région administrative]]&\"]\"","v":"Saint-Pierre-de-l'Île-d'Orléans [Capitale-Nationale (03)]"}]
["Saint-Pierre-les-Becquets","Centre-du-Québec (17)",{"$f":"Tableau6[[#This Row],[Nom de municipalité]]&\" [\"&Tableau6[[#This Row],[Région administrative]]&\"]\"","v":"Saint-Pierre-les-Becquets [Centre-du-Québec (17)]"}]
["Saint-Pierre/Rivière-du-Sud","Chaudière-Appalaches (12)",{"$f":"Tableau6[[#This Row],[Nom de municipalité]]&\" [\"&Tableau6[[#This Row],[Région administrative]]&\"]\"","v":"Saint-Pierre/Rivière-du-Sud [Chaudière-Appalaches (12)]"}]
["Saint-Placide","Laurentides (15)",{"$f":"Tableau6[[#This Row],[Nom de municipalité]]&\" [\"&Tableau6[[#This Row],[Région administrative]]&\"]\"","v":"Saint-Placide [Laurentides (15)]"}]
["Saint-Polycarpe","Montérégie (16)",{"$f":"Tableau6[[#This Row],[Nom de municipalité]]&\" [\"&Tableau6[[#This Row],[Région administrative]]&\"]\"","v":"Saint-Polycarpe [Montérégie (16)]"}]
["Saint-Prime","Saguenay--Lac-Saint-Jean (02)",{"$f":"Tableau6[[#This Row],[Nom de municipalité]]&\" [\"&Tableau6[[#This Row],[Région administrative]]&\"]\"","v":"Saint-Prime [Saguenay--Lac-Saint-Jean (02)]"}]
["Saint-Prosper","Chaudière-Appalaches (12)",{"$f":"Tableau6[[#This Row],[Nom de municipalité]]&\" [\"&Tableau6[[#This Row],[Région administrative]]&\"]\"","v":"Saint-Prosper [Chaudière-Appalaches (12)]"}]
["Saint-Prosper-de-Champlain","Mauricie (04)",{"$f":"Tableau6[[#This Row],[Nom de municipalité]]&\" [\"&Tableau6[[#This Row],[Région administrative]]&\"]\"","v":"Saint-Prosper-de-Champlain [Mauricie (04)]"}]
["Saint-Raphaël","Chaudière-Appalaches (12)",{"$f":"Tableau6[[#This Row],[Nom de municipalité]]&\" [\"&Tableau6[[#This Row],[Région administrative]]&\"]\"","v":"Saint-Raphaël [Chaudière-Appalaches (12)]"}]
["Saint-Raymond","Capitale-Nationale (03)",{"$f":"Tableau6[[#This Row],[Nom de municipalité]]&\" [\"&Tableau6[[#This Row],[Région administrative]]&\"]\"","v":"Saint-Raymond [Capitale-Nationale (03)]"}]
["Saint-Rémi","Montérégie (16)",{"$f":"Tableau6[[#This Row],[Nom de municipalité]]&\" [\"&Tableau6[[#This Row],[Région administrative]]&\"]\"","v":"Saint-Rémi [Montérégie (16)]"}]
["Saint-Rémi-de-Tingwick","Centre-du-Québec (17)",{"$f":"Tableau6[[#This Row],[Nom de municipalité]]&\" [\"&Tableau6[[#This Row],[Région administrative]]&\"]\"","v":"Saint-Rémi-de-Tingwick [Centre-du-Québec (17)]"}]
["Saint-René","Chaudière-Appalaches (12)",{"$f":"Tableau6[[#This Row],[Nom de municipalité]]&\" [\"&Tableau6[[#This Row],[Région administrative]]&\"]\"","v":"Saint-René [Chaudière-Appalaches (12)]"}]
["Saint-René-de-Matane","Bas-Saint-Laurent (01)",{"$f":"Tableau6[[#This Row],[Nom de municipalité]]&\" [\"&Tableau6[[#This Row],[Région administrative]]&\"]\"","v":"Saint-René-de-Matane [Bas-Saint-Laurent (01)]"}]
["Saint-Robert","Montérégie (16)",{"$f":"Tableau6[[#This Row],[Nom de municipalité]]&\" [\"&Tableau6[[#This Row],[Région administrative]]&\"]\"","v":"Saint-Robert [Montérégie (16)]"}]
["Saint-Robert-Bellarmin","Estrie (05)",{"$f":"Tableau6[[#This Row],[Nom de municipalité]]&\" [\"&Tableau6[[#This Row],[Région administrative]]&\"]\"","v":"Saint-Robert-Bellarmin [Estrie (05)]"}]
["Saint-Roch-de-l'Achigan","Lanaudière (14)",{"$f":"Tableau6[[#This Row],[Nom de municipalité]]&\" [\"&Tableau6[[#This Row],[Région administrative]]&\"]\"","v":"Saint-Roch-de-l'Achigan [Lanaudière (14)]"}]
["Saint-Roch-de-Mékinac","Mauricie (04)",{"$f":"Tableau6[[#This Row],[Nom de municipalité]]&\" [\"&Tableau6[[#This Row],[Région administrative]]&\"]\"","v":"Saint-Roch-de-Mékinac [Mauricie (04)]"}]
["Saint-Roch-de-Richelieu","Montérégie (16)",{"$f":"Tableau6[[#This Row],[Nom de municipalité]]&\" [\"&Tableau6[[#This Row],[Région administrative]]&\"]\"","v":"Saint-Roch-de-Richelieu [Montérégie (16)]"}]
["Saint-Roch-des-Aulnaies","Chaudière-Appalaches (12)",{"$f":"Tableau6[[#This Row],[Nom de municipalité]]&\" [\"&Tableau6[[#This Row],[Région administrative]]&\"]\"","v":"Saint-Roch-des-Aulnaies [Chaudière-Appalaches (12)]"}]
["Saint-Roch-Ouest","Lanaudière (14)",{"$f":"Tableau6[[#This Row],[Nom de municipalité]]&\" [\"&Tableau6[[#This Row],[Région administrative]]&\"]\"","v":"Saint-Roch-Ouest [Lanaudière (14)]"}]
["Saint-Romain","Estrie (05)",{"$f":"Tableau6[[#This Row],[Nom de municipalité]]&\" [\"&Tableau6[[#This Row],[Région administrative]]&\"]\"","v":"Saint-Romain [Estrie (05)]"}]
["Saint-Rosaire","Centre-du-Québec (17)",{"$f":"Tableau6[[#This Row],[Nom de municipalité]]&\" [\"&Tableau6[[#This Row],[Région administrative]]&\"]\"","v":"Saint-Rosaire [Centre-du-Québec (17)]"}]
["Saint-Samuel","Centre-du-Québec (17)",{"$f":"Tableau6[[#This Row],[Nom de municipalité]]&\" [\"&Tableau6[[#This Row],[Région administrative]]&\"]\"","v":"Saint-Samuel [Centre-du-Québec (17)]"}]
["Saints-Anges","Chaudière-Appalaches (12)",{"$f":"Tableau6[[#This Row],[Nom de municipalité]]&\" [\"&Tableau6[[#This Row],[Région administrative]]&\"]\"","v":"Saints-Anges [Chaudière-Appalaches (12)]"}]
["Saint-Sauveur","Laurentides (15)",{"$f":"Tableau6[[#This Row],[Nom de municipalité]]&\" [\"&Tableau6[[#This Row],[Région administrative]]&\"]\"","v":"Saint-Sauveur [Laurentides (15)]"}]
["Saint-Sébastien","Estrie (05)",{"$f":"Tableau6[[#This Row],[Nom de municipalité]]&\" [\"&Tableau6[[#This Row],[Région administrative]]&\"]\"","v":"Saint-Sébastien [Estrie (05)]"}]
["Saint-Sébastien","Montérégie (16)",{"$f":"Tableau6[[#This Row],[Nom de municipalité]]&\" [\"&Tableau6[[#This Row],[Région administrative]]&\"]\"","v":"Saint-Sébastien [Montérégie (16)]"}]
["Saint-Sévère","Mauricie (04)",{"$f":"Tableau6[[#This Row],[Nom de municipalité]]&\" [\"&Tableau6[[#This Row],[Région administrative]]&\"]\"","v":"Saint-Sévère [Mauricie (04)]"}]
["Saint-Séverin","Chaudière-Appalaches (12)",{"$f":"Tableau6[[#This Row],[Nom de municipalité]]&\" [\"&Tableau6[[#This Row],[Région administrative]]&\"]\"","v":"Saint-Séverin [Chaudière-Appalaches (12)]"}]
["Saint-Séverin","Mauricie (04)",{"$f":"Tableau6[[#This Row],[Nom de municipalité]]&\" [\"&Tableau6[[#This Row],[Région administrative]]&\"]\"","v":"Saint-Séverin [Mauricie (04)]"}]
["Saint-Siméon","Gaspésie--Îles-de-la-Madeleine (11)",{"$f":"Tableau6[[#This Row],[Nom de municipalité]]&\" [\"&Tableau6[[#This Row],[Région administrative]]&\"]\"","v":"Saint-Siméon [Gaspésie--Îles-de-la-Madeleine (11)]"}]
["Saint-Siméon","Capitale-Nationale (03)",{"$f":"Tableau6[[#This Row],[Nom de municipalité]]&\" [\"&Tableau6[[#This Row],[Région administrative]]&\"]\"","v":"Saint-Siméon [Capitale-Nationale (03)]"}]
["Saint-Simon","Montérégie (16)",{"$f":"Tableau6[[#This Row],[Nom de municipalité]]&\" [\"&Tableau6[[#This Row],[Région administrative]]&\"]\"","v":"Saint-Simon [Montérégie (16)]"}]
["Saint-Simon","Bas-Saint-Laurent (01)",{"$f":"Tableau6[[#This Row],[Nom de municipalité]]&\" [\"&Tableau6[[#This Row],[Région administrative]]&\"]\"","v":"Saint-Simon [Bas-Saint-Laurent (01)]"}]
["Saint-Simon-les-Mines","Chaudière-Appalaches (12)",{"$f":"Tableau6[[#This Row],[Nom de municipalité]]&\" [\"&Tableau6[[#This Row],[Région administrative]]&\"]\"","v":"Saint-Simon-les-Mines [Chaudière-Appalaches (12)]"}]
["Saint-Sixte","Outaouais (07)",{"$f":"Tableau6[[#This Row],[Nom de municipalité]]&\" [\"&Tableau6[[#This Row],[Région administrative]]&\"]\"","v":"Saint-Sixte [Outaouais (07)]"}]
["Saints-Martyrs-Canadiens","Centre-du-Québec (17)",{"$f":"Tableau6[[#This Row],[Nom de municipalité]]&\" [\"&Tableau6[[#This Row],[Région administrative]]&\"]\"","v":"Saints-Martyrs-Canadiens [Centre-du-Québec (17)]"}]
["Saint-Stanislas","Saguenay--Lac-Saint-Jean (02)",{"$f":"Tableau6[[#This Row],[Nom de municipalité]]&\" [\"&Tableau6[[#This Row],[Région administrative]]&\"]\"","v":"Saint-Stanislas [Saguenay--Lac-Saint-Jean (02)]"}]
["Saint-Stanislas","Mauricie (04)",{"$f":"Tableau6[[#This Row],[Nom de municipalité]]&\" [\"&Tableau6[[#This Row],[Région administrative]]&\"]\"","v":"Saint-Stanislas [Mauricie (04)]"}]
["Saint-Stanislas-de-Kostka","Montérégie (16)",{"$f":"Tableau6[[#This Row],[Nom de municipalité]]&\" [\"&Tableau6[[#This Row],[Région administrative]]&\"]\"","v":"Saint-Stanislas-de-Kostka [Montérégie (16)]"}]
["Saint-Sulpice","Lanaudière (14)",{"$f":"Tableau6[[#This Row],[Nom de municipalité]]&\" [\"&Tableau6[[#This Row],[Région administrative]]&\"]\"","v":"Saint-Sulpice [Lanaudière (14)]"}]
["Saint-Sylvère","Centre-du-Québec (17)",{"$f":"Tableau6[[#This Row],[Nom de municipalité]]&\" [\"&Tableau6[[#This Row],[Région administrative]]&\"]\"","v":"Saint-Sylvère [Centre-du-Québec (17)]"}]
["Saint-Sylvestre","Chaudière-Appalaches (12)",{"$f":"Tableau6[[#This Row],[Nom de municipalité]]&\" [\"&Tableau6[[#This Row],[Région administrative]]&\"]\"","v":"Saint-Sylvestre [Chaudière-Appalaches (12)]"}]
["Saint-Télesphore","Montérégie (16)",{"$f":"Tableau6[[#This Row],[Nom de municipalité]]&\" [\"&Tableau6[[#This Row],[Région administrative]]&\"]\"","v":"Saint-Télesphore [Montérégie (16)]"}]
["Saint-Tharcisius","Bas-Saint-Laurent (01)",{"$f":"Tableau6[[#This Row],[Nom de municipalité]]&\" [\"&Tableau6[[#This Row],[Région administrative]]&\"]\"","v":"Saint-Tharcisius [Bas-Saint-Laurent (01)]"}]
["Saint-Théodore-d'Acton","Montérégie (16)",{"$f":"Tableau6[[#This Row],[Nom de municipalité]]&\" [\"&Tableau6[[#This Row],[Région administrative]]&\"]\"","v":"Saint-Théodore-d'Acton [Montérégie (16)]"}]
["Saint-Théophile","Chaudière-Appalaches (12)",{"$f":"Tableau6[[#This Row],[Nom de municipalité]]&\" [\"&Tableau6[[#This Row],[Région administrative]]&\"]\"","v":"Saint-Théophile [Chaudière-Appalaches (12)]"}]
["Saint-Thomas","Lanaudière (14)",{"$f":"Tableau6[[#This Row],[Nom de municipalité]]&\" [\"&Tableau6[[#This Row],[Région administrative]]&\"]\"","v":"Saint-Thomas [Lanaudière (14)]"}]
["Saint-Thomas-Didyme","Saguenay--Lac-Saint-Jean (02)",{"$f":"Tableau6[[#This Row],[Nom de municipalité]]&\" [\"&Tableau6[[#This Row],[Région administrative]]&\"]\"","v":"Saint-Thomas-Didyme [Saguenay--Lac-Saint-Jean (02)]"}]
["Saint-Thuribe","Capitale-Nationale (03)",{"$f":"Tableau6[[#This Row],[Nom de municipalité]]&\" [\"&Tableau6[[#This Row],[Région administrative]]&\"]\"","v":"Saint-Thuribe [Capitale-Nationale (03)]"}]
["Saint-Tite","Mauricie (04)",{"$f":"Tableau6[[#This Row],[Nom de municipalité]]&\" [\"&Tableau6[[#This Row],[Région administrative]]&\"]\"","v":"Saint-Tite [Mauricie (04)]"}]
["Saint-Tite-des-Caps","Capitale-Nationale (03)",{"$f":"Tableau6[[#This Row],[Nom de municipalité]]&\" [\"&Tableau6[[#This Row],[Région administrative]]&\"]\"","v":"Saint-Tite-des-Caps [Capitale-Nationale (03)]"}]
["Saint-Ubalde","Capitale-Nationale (03)",{"$f":"Tableau6[[#This Row],[Nom de municipalité]]&\" [\"&Tableau6[[#This Row],[Région administrative]]&\"]\"","v":"Saint-Ubalde [Capitale-Nationale (03)]"}]
["Saint-Ulric","Bas-Saint-Laurent (01)",{"$f":"Tableau6[[#This Row],[Nom de municipalité]]&\" [\"&Tableau6[[#This Row],[Région administrative]]&\"]\"","v":"Saint-Ulric [Bas-Saint-Laurent (01)]"}]
["Saint-Urbain","Capitale-Nationale (03)",{"$f":"Tableau6[[#This Row],[Nom de municipalité]]&\" [\"&Tableau6[[#This Row],[Région administrative]]&\"]\"","v":"Saint-Urbain [Capitale-Nationale (03)]"}]
["Saint-Urbain-Premier","Montérégie (16)",{"$f":"Tableau6[[#This Row],[Nom de municipalité]]&\" [\"&Tableau6[[#This Row],[Région administrative]]&\"]\"","v":"Saint-Urbain-Premier [Montérégie (16)]"}]
["Saint-Valentin","Montérégie (16)",{"$f":"Tableau6[[#This Row],[Nom de municipalité]]&\" [\"&Tableau6[[#This Row],[Région administrative]]&\"]\"","v":"Saint-Valentin [Montérégie (16)]"}]
["Saint-Valère","Centre-du-Québec (17)",{"$f":"Tableau6[[#This Row],[Nom de municipalité]]&\" [\"&Tableau6[[#This Row],[Région administrative]]&\"]\"","v":"Saint-Valère [Centre-du-Québec (17)]"}]
["Saint-Valérien","Bas-Saint-Laurent (01)",{"$f":"Tableau6[[#This Row],[Nom de municipalité]]&\" [\"&Tableau6[[#This Row],[Région administrative]]&\"]\"","v":"Saint-Valérien [Bas-Saint-Laurent (01)]"}]
["Saint-Valérien-de-Milton","Montérégie (16)",{"$f":"Tableau6[[#This Row],[Nom de municipalité]]&\" [\"&Tableau6[[#This Row],[Région administrative]]&\"]\"","v":"Saint-Valérien-de-Milton [Montérégie (16)]"}]
["Saint-Vallier","Chaudière-Appalaches (12)",{"$f":"Tableau6[[#This Row],[Nom de municipalité]]&\" [\"&Tableau6[[#This Row],[Région administrative]]&\"]\"","v":"Saint-Vallier [Chaudière-Appalaches (12)]"}]
["Saint-Venant-de-Paquette","Estrie (05)",{"$f":"Tableau6[[#This Row],[Nom de municipalité]]&\" [\"&Tableau6[[#This Row],[Région administrative]]&\"]\"","v":"Saint-Venant-de-Paquette [Estrie (05)]"}]
["Saint-Vianney","Bas-Saint-Laurent (01)",{"$f":"Tableau6[[#This Row],[Nom de municipalité]]&\" [\"&Tableau6[[#This Row],[Région administrative]]&\"]\"","v":"Saint-Vianney [Bas-Saint-Laurent (01)]"}]
["Saint-Victor","Chaudière-Appalaches (12)",{"$f":"Tableau6[[#This Row],[Nom de municipalité]]&\" [\"&Tableau6[[#This Row],[Région administrative]]&\"]\"","v":"Saint-Victor [Chaudière-Appalaches (12)]"}]
["Saint-Wenceslas","Centre-du-Québec (17)",{"$f":"Tableau6[[#This Row],[Nom de municipalité]]&\" [\"&Tableau6[[#This Row],[Région administrative]]&\"]\"","v":"Saint-Wenceslas [Centre-du-Québec (17)]"}]
["Saint-Zacharie","Chaudière-Appalaches (12)",{"$f":"Tableau6[[#This Row],[Nom de municipalité]]&\" [\"&Tableau6[[#This Row],[Région administrative]]&\"]\"","v":"Saint-Zacharie [Chaudière-Appalaches (12)]"}]
["Saint-Zénon","Lanaudière (14)",{"$f":"Tableau6[[#This Row],[Nom de municipalité]]&\" [\"&Tableau6[[#This Row],[Région administrative]]&\"]\"","v":"Saint-Zénon [Lanaudière (14)]"}]
["Saint-Zénon-du-Lac-Humqui","Bas-Saint-Laurent (01)",{"$f":"Tableau6[[#This Row],[Nom de municipalité]]&\" [\"&Tableau6[[#This Row],[Région administrative]]&\"]\"","v":"Saint-Zénon-du-Lac-Humqui [Bas-Saint-Laurent (01)]"}]
["Saint-Zéphirin-de-Courval","Centre-du-Québec (17)",{"$f":"Tableau6[[#This Row],[Nom de municipalité]]&\" [\"&Tableau6[[#This Row],[Région administrative]]&\"]\"","v":"Saint-Zéphirin-de-Courval [Centre-du-Québec (17)]"}]
["Saint-Zotique","Montérégie (16)",{"$f":"Tableau6[[#This Row],[Nom de municipalité]]&\" [\"&Tableau6[[#This Row],[Région administrative]]&\"]\"","v":"Saint-Zotique [Montérégie (16)]"}]
["Salaberry-de-Valleyfield","Montérégie (16)",{"$f":"Tableau6[[#This Row],[Nom de municipalité]]&\" [\"&Tableau6[[#This Row],[Région administrative]]&\"]\"","v":"Salaberry-de-Valleyfield [Montérégie (16)]"}]
["Salluit","Nord-du-Québec (10)",{"$f":"Tableau6[[#This Row],[Nom de municipalité]]&\" [\"&Tableau6[[#This Row],[Région administrative]]&\"]\"","v":"Salluit [Nord-du-Québec (10)]"}]
["Sayabec","Bas-Saint-Laurent (01)",{"$f":"Tableau6[[#This Row],[Nom de municipalité]]&\" [\"&Tableau6[[#This Row],[Région administrative]]&\"]\"","v":"Sayabec [Bas-Saint-Laurent (01)]"}]
["Schefferville","Côte-Nord (09)",{"$f":"Tableau6[[#This Row],[Nom de municipalité]]&\" [\"&Tableau6[[#This Row],[Région administrative]]&\"]\"","v":"Schefferville [Côte-Nord (09)]"}]
["Scotstown","Estrie (05)",{"$f":"Tableau6[[#This Row],[Nom de municipalité]]&\" [\"&Tableau6[[#This Row],[Région administrative]]&\"]\"","v":"Scotstown [Estrie (05)]"}]
["Scott","Chaudière-Appalaches (12)",{"$f":"Tableau6[[#This Row],[Nom de municipalité]]&\" [\"&Tableau6[[#This Row],[Région administrative]]&\"]\"","v":"Scott [Chaudière-Appalaches (12)]"}]
["Senneterre","Abitibi-Témiscamingue (08)",{"$f":"Tableau6[[#This Row],[Nom de municipalité]]&\" [\"&Tableau6[[#This Row],[Région administrative]]&\"]\"","v":"Senneterre [Abitibi-Témiscamingue (08)]"}]
["Senneterre","Abitibi-Témiscamingue (08)",{"$f":"Tableau6[[#This Row],[Nom de municipalité]]&\" [\"&Tableau6[[#This Row],[Région administrative]]&\"]\"","v":"Senneterre [Abitibi-Témiscamingue (08)]"}]
["Senneville","Montréal (06)",{"$f":"Tableau6[[#This Row],[Nom de municipalité]]&\" [\"&Tableau6[[#This Row],[Région administrative]]&\"]\"","v":"Senneville [Montréal (06)]"}]
["Sept-Îles","Côte-Nord (09)",{"$f":"Tableau6[[#This Row],[Nom de municipalité]]&\" [\"&Tableau6[[#This Row],[Région administrative]]&\"]\"","v":"Sept-Îles [Côte-Nord (09)]"}]
["Shannon","Capitale-Nationale (03)",{"$f":"Tableau6[[#This Row],[Nom de municipalité]]&\" [\"&Tableau6[[#This Row],[Région administrative]]&\"]\"","v":"Shannon [Capitale-Nationale (03)]"}]
["Shawinigan","Mauricie (04)",{"$f":"Tableau6[[#This Row],[Nom de municipalité]]&\" [\"&Tableau6[[#This Row],[Région administrative]]&\"]\"","v":"Shawinigan [Mauricie (04)]"}]
["Shawville","Outaouais (07)",{"$f":"Tableau6[[#This Row],[Nom de municipalité]]&\" [\"&Tableau6[[#This Row],[Région administrative]]&\"]\"","v":"Shawville [Outaouais (07)]"}]
["Sheenboro","Outaouais (07)",{"$f":"Tableau6[[#This Row],[Nom de municipalité]]&\" [\"&Tableau6[[#This Row],[Région administrative]]&\"]\"","v":"Sheenboro [Outaouais (07)]"}]
["Shefford","Montérégie (16)",{"$f":"Tableau6[[#This Row],[Nom de municipalité]]&\" [\"&Tableau6[[#This Row],[Région administrative]]&\"]\"","v":"Shefford [Montérégie (16)]"}]
["Sherbrooke","Estrie (05)",{"$f":"Tableau6[[#This Row],[Nom de municipalité]]&\" [\"&Tableau6[[#This Row],[Région administrative]]&\"]\"","v":"Sherbrooke [Estrie (05)]"}]
["Shigawake","Gaspésie--Îles-de-la-Madeleine (11)",{"$f":"Tableau6[[#This Row],[Nom de municipalité]]&\" [\"&Tableau6[[#This Row],[Région administrative]]&\"]\"","v":"Shigawake [Gaspésie--Îles-de-la-Madeleine (11)]"}]
["Sorel-Tracy","Montérégie (16)",{"$f":"Tableau6[[#This Row],[Nom de municipalité]]&\" [\"&Tableau6[[#This Row],[Région administrative]]&\"]\"","v":"Sorel-Tracy [Montérégie (16)]"}]
["Stanbridge East","Montérégie (16)",{"$f":"Tableau6[[#This Row],[Nom de municipalité]]&\" [\"&Tableau6[[#This Row],[Région administrative]]&\"]\"","v":"Stanbridge East [Montérégie (16)]"}]
["Stanbridge Station","Montérégie (16)",{"$f":"Tableau6[[#This Row],[Nom de municipalité]]&\" [\"&Tableau6[[#This Row],[Région administrative]]&\"]\"","v":"Stanbridge Station [Montérégie (16)]"}]
["Stanstead","Estrie (05)",{"$f":"Tableau6[[#This Row],[Nom de municipalité]]&\" [\"&Tableau6[[#This Row],[Région administrative]]&\"]\"","v":"Stanstead [Estrie (05)]"}]
["Stanstead","Estrie (05)",{"$f":"Tableau6[[#This Row],[Nom de municipalité]]&\" [\"&Tableau6[[#This Row],[Région administrative]]&\"]\"","v":"Stanstead [Estrie (05)]"}]
["Stanstead-Est","Estrie (05)",{"$f":"Tableau6[[#This Row],[Nom de municipalité]]&\" [\"&Tableau6[[#This Row],[Région administrative]]&\"]\"","v":"Stanstead-Est [Estrie (05)]"}]
["Ste-Catherine-de-la-Jacques-Cartier","Capitale-Nationale (03)",{"$f":"Tableau6[[#This Row],[Nom de municipalité]]&\" [\"&Tableau6[[#This Row],[Région administrative]]&\"]\"","v":"Ste-Catherine-de-la-Jacques-Cartier [Capitale-Nationale (03)]"}]
["Stoke","Estrie (05)",{"$f":"Tableau6[[#This Row],[Nom de municipalité]]&\" [\"&Tableau6[[#This Row],[Région administrative]]&\"]\"","v":"Stoke [Estrie (05)]"}]
["Stoneham-et-Tewkesbury","Capitale-Nationale (03)",{"$f":"Tableau6[[#This Row],[Nom de municipalité]]&\" [\"&Tableau6[[#This Row],[Région administrative]]&\"]\"","v":"Stoneham-et-Tewkesbury [Capitale-Nationale (03)]"}]
["Stornoway","Estrie (05)",{"$f":"Tableau6[[#This Row],[Nom de municipalité]]&\" [\"&Tableau6[[#This Row],[Région administrative]]&\"]\"","v":"Stornoway [Estrie (05)]"}]
["Stratford","Estrie (05)",{"$f":"Tableau6[[#This Row],[Nom de municipalité]]&\" [\"&Tableau6[[#This Row],[Région administrative]]&\"]\"","v":"Stratford [Estrie (05)]"}]
["Stukely-Sud","Estrie (05)",{"$f":"Tableau6[[#This Row],[Nom de municipalité]]&\" [\"&Tableau6[[#This Row],[Région administrative]]&\"]\"","v":"Stukely-Sud [Estrie (05)]"}]
["Sutton","Montérégie (16)",{"$f":"Tableau6[[#This Row],[Nom de municipalité]]&\" [\"&Tableau6[[#This Row],[Région administrative]]&\"]\"","v":"Sutton [Montérégie (16)]"}]
["Tadoussac","Côte-Nord (09)",{"$f":"Tableau6[[#This Row],[Nom de municipalité]]&\" [\"&Tableau6[[#This Row],[Région administrative]]&\"]\"","v":"Tadoussac [Côte-Nord (09)]"}]
["Taschereau","Abitibi-Témiscamingue (08)",{"$f":"Tableau6[[#This Row],[Nom de municipalité]]&\" [\"&Tableau6[[#This Row],[Région administrative]]&\"]\"","v":"Taschereau [Abitibi-Témiscamingue (08)]"}]
["Tasiujaq","Nord-du-Québec (10)",{"$f":"Tableau6[[#This Row],[Nom de municipalité]]&\" [\"&Tableau6[[#This Row],[Région administrative]]&\"]\"","v":"Tasiujaq [Nord-du-Québec (10)]"}]
["Témiscaming","Abitibi-Témiscamingue (08)",{"$f":"Tableau6[[#This Row],[Nom de municipalité]]&\" [\"&Tableau6[[#This Row],[Région administrative]]&\"]\"","v":"Témiscaming [Abitibi-Témiscamingue (08)]"}]
["Témiscouata-sur-le-Lac","Bas-Saint-Laurent (01)",{"$f":"Tableau6[[#This Row],[Nom de municipalité]]&\" [\"&Tableau6[[#This Row],[Région administrative]]&\"]\"","v":"Témiscouata-sur-le-Lac [Bas-Saint-Laurent (01)]"}]
["Terrasse-Vaudreuil","Montérégie (16)",{"$f":"Tableau6[[#This Row],[Nom de municipalité]]&\" [\"&Tableau6[[#This Row],[Région administrative]]&\"]\"","v":"Terrasse-Vaudreuil [Montérégie (16)]"}]
["Terrebonne","Lanaudière (14)",{"$f":"Tableau6[[#This Row],[Nom de municipalité]]&\" [\"&Tableau6[[#This Row],[Région administrative]]&\"]\"","v":"Terrebonne [Lanaudière (14)]"}]
["Thetford Mines","Chaudière-Appalaches (12)",{"$f":"Tableau6[[#This Row],[Nom de municipalité]]&\" [\"&Tableau6[[#This Row],[Région administrative]]&\"]\"","v":"Thetford Mines [Chaudière-Appalaches (12)]"}]
["Thorne","Outaouais (07)",{"$f":"Tableau6[[#This Row],[Nom de municipalité]]&\" [\"&Tableau6[[#This Row],[Région administrative]]&\"]\"","v":"Thorne [Outaouais (07)]"}]
["Thurso","Outaouais (07)",{"$f":"Tableau6[[#This Row],[Nom de municipalité]]&\" [\"&Tableau6[[#This Row],[Région administrative]]&\"]\"","v":"Thurso [Outaouais (07)]"}]
["Tingwick","Centre-du-Québec (17)",{"$f":"Tableau6[[#This Row],[Nom de municipalité]]&\" [\"&Tableau6[[#This Row],[Région administrative]]&\"]\"","v":"Tingwick [Centre-du-Québec (17)]"}]
["Tourville","Chaudière-Appalaches (12)",{"$f":"Tableau6[[#This Row],[Nom de municipalité]]&\" [\"&Tableau6[[#This Row],[Région administrative]]&\"]\"","v":"Tourville [Chaudière-Appalaches (12)]"}]
["Trécesson","Abitibi-Témiscamingue (08)",{"$f":"Tableau6[[#This Row],[Nom de municipalité]]&\" [\"&Tableau6[[#This Row],[Région administrative]]&\"]\"","v":"Trécesson [Abitibi-Témiscamingue (08)]"}]
["Très-Saint-Rédempteur","Montérégie (16)",{"$f":"Tableau6[[#This Row],[Nom de municipalité]]&\" [\"&Tableau6[[#This Row],[Région administrative]]&\"]\"","v":"Très-Saint-Rédempteur [Montérégie (16)]"}]
["Très-Saint-Sacrement","Montérégie (16)",{"$f":"Tableau6[[#This Row],[Nom de municipalité]]&\" [\"&Tableau6[[#This Row],[Région administrative]]&\"]\"","v":"Très-Saint-Sacrement [Montérégie (16)]"}]
["Tring-Jonction","Chaudière-Appalaches (12)",{"$f":"Tableau6[[#This Row],[Nom de municipalité]]&\" [\"&Tableau6[[#This Row],[Région administrative]]&\"]\"","v":"Tring-Jonction [Chaudière-Appalaches (12)]"}]
["Trois-Pistoles","Bas-Saint-Laurent (01)",{"$f":"Tableau6[[#This Row],[Nom de municipalité]]&\" [\"&Tableau6[[#This Row],[Région administrative]]&\"]\"","v":"Trois-Pistoles [Bas-Saint-Laurent (01)]"}]
["Trois-Rives","Mauricie (04)",{"$f":"Tableau6[[#This Row],[Nom de municipalité]]&\" [\"&Tableau6[[#This Row],[Région administrative]]&\"]\"","v":"Trois-Rives [Mauricie (04)]"}]
["Trois-Rivières","Mauricie (04)",{"$f":"Tableau6[[#This Row],[Nom de municipalité]]&\" [\"&Tableau6[[#This Row],[Région administrative]]&\"]\"","v":"Trois-Rivières [Mauricie (04)]"}]
["Ulverton","Estrie (05)",{"$f":"Tableau6[[#This Row],[Nom de municipalité]]&\" [\"&Tableau6[[#This Row],[Région administrative]]&\"]\"","v":"Ulverton [Estrie (05)]"}]
["Umiujaq","Nord-du-Québec (10)",{"$f":"Tableau6[[#This Row],[Nom de municipalité]]&\" [\"&Tableau6[[#This Row],[Région administrative]]&\"]\"","v":"Umiujaq [Nord-du-Québec (10)]"}]
["Upton","Montérégie (16)",{"$f":"Tableau6[[#This Row],[Nom de municipalité]]&\" [\"&Tableau6[[#This Row],[Région administrative]]&\"]\"","v":"Upton [Montérégie (16)]"}]
["Val-Alain","Chaudière-Appalaches (12)",{"$f":"Tableau6[[#This Row],[Nom de municipalité]]&\" [\"&Tableau6[[#This Row],[Région administrative]]&\"]\"","v":"Val-Alain [Chaudière-Appalaches (12)]"}]
["Val-Brillant","Bas-Saint-Laurent (01)",{"$f":"Tableau6[[#This Row],[Nom de municipalité]]&\" [\"&Tableau6[[#This Row],[Région administrative]]&\"]\"","v":"Val-Brillant [Bas-Saint-Laurent (01)]"}]
["Valcourt","Estrie (05)",{"$f":"Tableau6[[#This Row],[Nom de municipalité]]&\" [\"&Tableau6[[#This Row],[Région administrative]]&\"]\"","v":"Valcourt [Estrie (05)]"}]
["Valcourt","Estrie (05)",{"$f":"Tableau6[[#This Row],[Nom de municipalité]]&\" [\"&Tableau6[[#This Row],[Région administrative]]&\"]\"","v":"Valcourt [Estrie (05)]"}]
["Val-David","Laurentides (15)",{"$f":"Tableau6[[#This Row],[Nom de municipalité]]&\" [\"&Tableau6[[#This Row],[Région administrative]]&\"]\"","v":"Val-David [Laurentides (15)]"}]
["Val-des-Bois","Outaouais (07)",{"$f":"Tableau6[[#This Row],[Nom de municipalité]]&\" [\"&Tableau6[[#This Row],[Région administrative]]&\"]\"","v":"Val-des-Bois [Outaouais (07)]"}]
["Val-des-Lacs","Laurentides (15)",{"$f":"Tableau6[[#This Row],[Nom de municipalité]]&\" [\"&Tableau6[[#This Row],[Région administrative]]&\"]\"","v":"Val-des-Lacs [Laurentides (15)]"}]
["Val-des-Monts","Outaouais (07)",{"$f":"Tableau6[[#This Row],[Nom de municipalité]]&\" [\"&Tableau6[[#This Row],[Région administrative]]&\"]\"","v":"Val-des-Monts [Outaouais (07)]"}]
["Val-d'Or","Abitibi-Témiscamingue (08)",{"$f":"Tableau6[[#This Row],[Nom de municipalité]]&\" [\"&Tableau6[[#This Row],[Région administrative]]&\"]\"","v":"Val-d'Or [Abitibi-Témiscamingue (08)]"}]
["Val-Joli","Estrie (05)",{"$f":"Tableau6[[#This Row],[Nom de municipalité]]&\" [\"&Tableau6[[#This Row],[Région administrative]]&\"]\"","v":"Val-Joli [Estrie (05)]"}]
["Vallée-Jonction","Chaudière-Appalaches (12)",{"$f":"Tableau6[[#This Row],[Nom de municipalité]]&\" [\"&Tableau6[[#This Row],[Région administrative]]&\"]\"","v":"Vallée-Jonction [Chaudière-Appalaches (12)]"}]
["Val-Morin","Laurentides (15)",{"$f":"Tableau6[[#This Row],[Nom de municipalité]]&\" [\"&Tableau6[[#This Row],[Région administrative]]&\"]\"","v":"Val-Morin [Laurentides (15)]"}]
["Val-Racine","Estrie (05)",{"$f":"Tableau6[[#This Row],[Nom de municipalité]]&\" [\"&Tableau6[[#This Row],[Région administrative]]&\"]\"","v":"Val-Racine [Estrie (05)]"}]
["Val-Saint-Gilles","Abitibi-Témiscamingue (08)",{"$f":"Tableau6[[#This Row],[Nom de municipalité]]&\" [\"&Tableau6[[#This Row],[Région administrative]]&\"]\"","v":"Val-Saint-Gilles [Abitibi-Témiscamingue (08)]"}]
["Varennes","Montérégie (16)",{"$f":"Tableau6[[#This Row],[Nom de municipalité]]&\" [\"&Tableau6[[#This Row],[Région administrative]]&\"]\"","v":"Varennes [Montérégie (16)]"}]
["Vaudreuil-Dorion","Montérégie (16)",{"$f":"Tableau6[[#This Row],[Nom de municipalité]]&\" [\"&Tableau6[[#This Row],[Région administrative]]&\"]\"","v":"Vaudreuil-Dorion [Montérégie (16)]"}]
["Vaudreuil-sur-le-Lac","Montérégie (16)",{"$f":"Tableau6[[#This Row],[Nom de municipalité]]&\" [\"&Tableau6[[#This Row],[Région administrative]]&\"]\"","v":"Vaudreuil-sur-le-Lac [Montérégie (16)]"}]
["Venise-en-Québec","Montérégie (16)",{"$f":"Tableau6[[#This Row],[Nom de municipalité]]&\" [\"&Tableau6[[#This Row],[Région administrative]]&\"]\"","v":"Venise-en-Québec [Montérégie (16)]"}]
["Verchères","Montérégie (16)",{"$f":"Tableau6[[#This Row],[Nom de municipalité]]&\" [\"&Tableau6[[#This Row],[Région administrative]]&\"]\"","v":"Verchères [Montérégie (16)]"}]
["Victoriaville","Centre-du-Québec (17)",{"$f":"Tableau6[[#This Row],[Nom de municipalité]]&\" [\"&Tableau6[[#This Row],[Région administrative]]&\"]\"","v":"Victoriaville [Centre-du-Québec (17)]"}]
["Ville-Marie","Abitibi-Témiscamingue (08)",{"$f":"Tableau6[[#This Row],[Nom de municipalité]]&\" [\"&Tableau6[[#This Row],[Région administrative]]&\"]\"","v":"Ville-Marie [Abitibi-Témiscamingue (08)]"}]
["Villeroy","Centre-du-Québec (17)",{"$f":"Tableau6[[#This Row],[Nom de municipalité]]&\" [\"&Tableau6[[#This Row],[Région administrative]]&\"]\"","v":"Villeroy [Centre-du-Québec (17)]"}]
["Waltham","Outaouais (07)",{"$f":"Tableau6[[#This Row],[Nom de municipalité]]&\" [\"&Tableau6[[#This Row],[Région administrative]]&\"]\"","v":"Waltham [Outaouais (07)]"}]
["Warden","Montérégie (16)",{"$f":"Tableau6[[#This Row],[Nom de municipalité]]&\" [\"&Tableau6[[#This Row],[Région administrative]]&\"]\"","v":"Warden [Montérégie (16)]"}]
["Warwick","Centre-du-Québec (17)",{"$f":"Tableau6[[#This Row],[Nom de municipalité]]&\" [\"&Tableau6[[#This Row],[Région administrative]]&\"]\"","v":"Warwick [Centre-du-Québec (17)]"}]
["Waskaganish","Nord-du-Québec (10)",{"$f":"Tableau6[[#This Row],[Nom de municipalité]]&\" [\"&Tableau6[[#This Row],[Région administrative]]&\"]\"","v":"Waskaganish [Nord-du-Québec (10)]"}]
["Waswanipi","Nord-du-Québec (10)",{"$f":"Tableau6[[#This Row],[Nom de municipalité]]&\" [\"&Tableau6[[#This Row],[Région administrative]]&\"]\"","v":"Waswanipi [Nord-du-Québec (10)]"}]
["Waterloo","Montérégie (16)",{"$f":"Tableau6[[#This Row],[Nom de municipalité]]&\" [\"&Tableau6[[#This Row],[Région administrative]]&\"]\"","v":"Waterloo [Montérégie (16)]"}]
["Waterville","Estrie (05)",{"$f":"Tableau6[[#This Row],[Nom de municipalité]]&\" [\"&Tableau6[[#This Row],[Région administrative]]&\"]\"","v":"Waterville [Estrie (05)]"}]
["Weedon","Estrie (05)",{"$f":"Tableau6[[#This Row],[Nom de municipalité]]&\" [\"&Tableau6[[#This Row],[Région administrative]]&\"]\"","v":"Weedon [Estrie (05)]"}]
["Wemindji","Nord-du-Québec (10)",{"$f":"Tableau6[[#This Row],[Nom de municipalité]]&\" [\"&Tableau6[[#This Row],[Région administrative]]&\"]\"","v":"Wemindji [Nord-du-Québec (10)]"}]
["Wentworth","Laurentides (15)",{"$f":"Tableau6[[#This Row],[Nom de municipalité]]&\" [\"&Tableau6[[#This Row],[Région administrative]]&\"]\"","v":"Wentworth [Laurentides (15)]"}]
["Wentworth-Nord","Laurentides (15)",{"$f":"Tableau6[[#This Row],[Nom de municipalité]]&\" [\"&Tableau6[[#This Row],[Région administrative]]&\"]\"","v":"Wentworth-Nord [Laurentides (15)]"}]
["Westbury","Estrie (05)",{"$f":"Tableau6[[#This Row],[Nom de municipalité]]&\" [\"&Tableau6[[#This Row],[Région administrative]]&\"]\"","v":"Westbury [Estrie (05)]"}]
["Westmount","Montréal (06)",{"$f":"Tableau6[[#This Row],[Nom de municipalité]]&\" [\"&Tableau6[[#This Row],[Région administrative]]&\"]\"","v":"Westmount [Montréal (06)]"}]
["Whapmagoostui","Nord-du-Québec (10)",{"$f":"Tableau6[[#This Row],[Nom de municipalité]]&\" [\"&Tableau6[[#This Row],[Région administrative]]&\"]\"","v":"Whapmagoostui [Nord-du-Québec (10)]"}]
["Wickham","Centre-du-Québec (17)",{"$f":"Tableau6[[#This Row],[Nom de municipalité]]&\" [\"&Tableau6[[#This Row],[Région administrative]]&\"]\"","v":"Wickham [Centre-du-Québec (17)]"}]
["Windsor","Estrie (05)",{"$f":"Tableau6[[#This Row],[Nom de municipalité]]&\" [\"&Tableau6[[#This Row],[Région administrative]]&\"]\"","v":"Windsor [Estrie (05)]"}]
["Wotton","Estrie (05)",{"$f":"Tableau6[[#This Row],[Nom de municipalité]]&\" [\"&Tableau6[[#This Row],[Région administrative]]&\"]\"","v":"Wotton [Estrie (05)]"}]
["Yamachiche","Mauricie (04)",{"$f":"Tableau6[[#This Row],[Nom de municipalité]]&\" [\"&Tableau6[[#This Row],[Région administrative]]&\"]\"","v":"Yamachiche [Mauricie (04)]"}]
["Yamaska","Montérégie (16)",{"$f":"Tableau6[[#This Row],[Nom de municipalité]]&\" [\"&Tableau6[[#This Row],[Région administrative]]&\"]\"","v":"Yamaska [Montérégie (16)]"}]